date,department/service,beneficiary,amount,summary of purpose,category,transaction number,SAP vendor number
01.02.2020,ADULT SOCIAL CARE,LUCAS CONSULT LTD,277,SAFEGUARDING & DOLS,EXTERNAL AGENCIES AND BODIES,5902400138,1000078082
01.02.2020,ADULT SOCIAL CARE,RADHA CONSULTING LTD,262.55,SAFEGUARDING & DOLS,OTHER CONTRACTORS,5902400159,1000061154
01.02.2020,CHILDREN AND ADULT,LARK LANDSCAPE DESIGN LIMITED,"1,200.00",CAPITAL PS (EDUCATION),CONSTRUCTION FEES,5902400802,1000035609
01.02.2020,CHILDREN'S SERVICES,WELFARE CALL (LAC) LTD,"9,818.25",PUPIL PREMIUM CURRENT YEAR,EXTERNAL AGENCIES AND BODIES,5902400852,1000057872
01.02.2020,CHILDREN'S SERVICES,THEATRE PECKHAM,300,SERVICE DEVELOPMENT UNIT,TRAINING,5902399966,1000082993
01.02.2020,CUSTOMER EXPERIENCE,CIVICA UK LTD,"3,496.00",HOUSING NEEDS,TRAINING,5902400127,1730625
01.02.2020,CUSTOMER EXPERIENCE HGF,PRIME UK MANAGEMENT LTD,"1,299.06",HOMELESS PROJECTS,GRANTS,5902401035,1000081616
01.02.2020,CUSTOMER EXPERIENCE HGF,TUNSTALL HEALTHCARE (UK) LTD,"9,900.00",SMART MOBILE RESPONSE TEAM,SUBSCRIPTIONS,5902400314,1012297
01.02.2020,ENVIRONMENT DIRECTORATE,CROWN OIL LTD,514.03,SANDGATE STREET,VEHICLE FUEL,5902400781,1000081749
01.02.2020,HOUSING GENERAL FUND,L H BRIDGE LTD,950,CAPITAL PS (HOUSING GF),CAPITAL GRANTS,5902400363,1000056928
01.02.2020,HOUSING HRA,A & E ELKINS LTD,"251,310.57",CAPITAL PS (HRA),CONSTRUCTION MAIN CONTRACT -CERTIFICATED,2103055736,4012501
01.02.2020,LEISURE DIRECTORATE,BRITISH GAS,481.58,CEMETERIES,GAS,5902400780,1000054825
01.02.2020,LEISURE DIRECTORATE,SPORTS AND LEISURE MANAGEMENT LTD,598,HOMERSTALL ROAD SPORTS GROUND,BUILDING R&M,5902400112,1000077862
01.02.2020,REGENERATION,CLYDE & CO,"7,297.50","COURAGE YARD, SHAD THAMES",SOLICITORS FRAMEWORK LEGAL SERVICES,5902401384,1000067838
01.02.2020,RESIDENT SERVICES,SOUTH LONDON & MAUDSLEY HOSPITAL,"17,010.00",HOARDING,EXTERNAL AGENCIES AND BODIES,5902401364,1000013096
02.02.2020,ASSET MANAGEMENT,AJM ADAPTIONS LTD,"2,495.00",ADAPTATIONS,BUILDING R&M,5902401193,1000080297
02.02.2020,CENTRAL FUNCTIONS,KENT COUNTY COUNCIL - LASER,"5,490.09",HEATING ACCOUNT,ELECTRICITY,5902400892,1000012926
02.02.2020,CENTRAL FUNCTIONS,KENT COUNTY COUNCIL - LASER,"65,603.91",HEATING ACCOUNT,ELECTRICITY,5902400892,1000012926
02.02.2020,CENTRAL FUNCTIONS,KENT COUNTY COUNCIL - LASER,"27,396.48",HEATING ACCOUNT,GAS,5902400895,1000012926
02.02.2020,CENTRAL FUNCTIONS,KENT COUNTY COUNCIL - LASER,"566,073.71",HEATING ACCOUNT,GAS,5902400895,1000012926
02.02.2020,CHILDREN & HEALTH PROTECTION,NHS SOUTHWARK CCG,"316,835.00",5-19 PUBLIC HEALTH,EXTERNAL AGENCIES AND BODIES,5902400357,1000073431
02.02.2020,CHILDREN & HEALTH PROTECTION,NHS SOUTHWARK CCG,"1,561,256.98",PH 0-5 SERVICES,EXTERNAL AGENCIES AND BODIES,5902400357,1000073431
02.02.2020,CHILDREN'S SERVICES,REDACTED PERSONAL DATA,338.57,FAMILY GROUP CONFERENCES,EXTERNAL AGENCIES AND BODIES,REDACTED,REDACTED
02.02.2020,CHILDREN'S SERVICES,GOLD SEAL PROJECT,"8,000.00",YOS SUPPORT,EXTERNAL AGENCIES AND BODIES,5902401270,1000050352
02.02.2020,CUSTOMER EXPERIENCE HGF,THE WHITTINGTON HOSPITAL NHS TRUST,450,CORONER'S,PROFESSIONAL FEES,5902401066,1000073133
02.02.2020,CUSTOMER EXPERIENCE HGF,ST MUNGOS,"2,000.00",RAPID REHOUSING,GRANTS,5902401061,1000017600
02.02.2020,ENVIRONMENT DIRECTORATE,BELL BRUSH COMPANY,789.7,MANAGEMENT TEAM,MATERIALS,5902400254,1259776
02.02.2020,ENVIRONMENT DIRECTORATE,F R JONES & SON LTD,457.7,NON HOUSING GROUNDS,EQUIPMENT PURCHASE & REPAIR,5902400349,1000037178
02.02.2020,ENVIRONMENT DIRECTORATE,SOUTHWARK NEWSPAPER LTD,288,STREET WORKS OVERHEADS,MARKETING & PUBLICITY SERVICES,5902400669,1556957
02.02.2020,ENVIRONMENT DIRECTORATE,SOUTHWARK NEWSPAPER LTD,312,STREET WORKS OVERHEADS,MARKETING & PUBLICITY SERVICES,5902400654,1556957
02.02.2020,ENVIRONMENT DIRECTORATE,SOUTHWARK NEWSPAPER LTD,312,STREET WORKS OVERHEADS,MARKETING & PUBLICITY SERVICES,5902400662,1556957
02.02.2020,ENVIRONMENT DIRECTORATE,SOUTHWARK NEWSPAPER LTD,336,STREET WORKS OVERHEADS,MARKETING & PUBLICITY SERVICES,5902400675,1556957
02.02.2020,EXCHEQUER SERVICES,INFORM CPI LTD,"1,248.75",NNDR,PROFESSIONAL FEES,5902401289,1000073418
02.02.2020,HOUSING HRA,A & E ELKINS LTD,"56,180.00",CAPITAL PS (HRA),CONSTRUCTION MAIN CONTRACT -CERTIFICATED,2103056966,4012501
02.02.2020,PUBLIC HEALTH,NHS SOUTHWARK CCG,"54,499.37",HEALTH CHECKS CONTRACTS,EXTERNAL AGENCIES AND BODIES,5902400357,1000073431
02.02.2020,PUBLIC HEALTH,NHS SOUTHWARK CCG,"19,250.00",HEALTHY WEIGHT,EXTERNAL AGENCIES AND BODIES,5902400357,1000073431
02.02.2020,PUBLIC HEALTH,NHS SOUTHWARK CCG,"22,458.25",HEALTHY WEIGHT,EXTERNAL AGENCIES AND BODIES,5902400357,1000073431
02.02.2020,PUBLIC HEALTH,NHS SOUTHWARK CCG,"17,755.00",SEXUAL HEALTH - CONTRACEPTION,EXTERNAL AGENCIES AND BODIES,5902400357,1000073431
02.02.2020,PUBLIC HEALTH,NHS SOUTHWARK CCG,"75,885.00",STOP SMOKING,EXTERNAL AGENCIES AND BODIES,5902400357,1000073431
03.02.2020,CENTRAL FUNCTIONS,OCEAN MEDIA GROUP LIMITED,816.53,OPERATIONAL TEAM,SUBSCRIPTIONS,5902401064,1000003205
03.02.2020,CHIEF EXECUTIVE'S OFFICE,THE SKILLS CENTRE LONDON LTD,"24,975.00",CHIEF EXECUTIVE'S OFFICE,CONSULTANTS SERVICES,5902401093,1000083470
03.02.2020,CHIEF EXECUTIVE'S OFFICE,TWIN EMPLOYMENT & TRAINING,"32,373.91",CHIEF EXECUTIVE'S OFFICE,EXTERNAL AGENCIES AND BODIES,5902400376,1000083699
03.02.2020,CHILDREN'S SERVICES,THE APPROPRIATE ADULT SERVICE LTD,990,APPROPRIATE ADULT CO-ORDINATOR,EXTERNAL AGENCIES AND BODIES,5902400597,1000047682
03.02.2020,CHILDREN'S SERVICES,INFINITY NETWORKS LTD,"2,729.00",HEAD OF CARE,OTHER PAYMENTS FOR CLIENTS,5902400842,1000035571
03.02.2020,CHILDREN'S SERVICES,NPOWER LTD,550.98,SUMMERHOUSE,ELECTRICITY,5902401044,1000078994
03.02.2020,ENVIRONMENT AND LEISURE,VISION COMMERCIAL KITCHENS LTD,"4,687.80",CAPITAL PS (LEISURE),CONSTRUCTION,2103057300,3000002136
03.02.2020,ENVIRONMENT DIRECTORATE,THE RIOT ACT LTD,"20,979.00","ROAD SAFETY EDUCATION,TRAINING&PUBLICITY",PROFESSIONAL FEES,5902401057,1000070068
03.02.2020,EXCHEQUER SERVICES,ARCUS GLOBAL LTD,397.5,ADMINISTRATIVE SUPPORT,SOFTWARE,5902401182,1000080110
03.02.2020,HOUSING HRA,CALFORD SEADEN LLP,"3,169.33",CAPITAL PS (HRA),CONSTRUCTION FEES  - EXTERNAL,5902400569,1061592
03.02.2020,LAW & DEMOCRACY,ST GILES PCC,490,GENERAL ELECTION,HIRE OF ROOMS/HALLS,5902401186,1876988
03.02.2020,LEISURE DIRECTORATE,CASTLE WATER LTD,"3,374.82",DULWICH AREA TEAM,WATER,5902400395,1000078867
03.02.2020,LEISURE DIRECTORATE,CASTLE WATER LTD,698.28,SOUTHWARK AREA TEAM,WATER,5902400374,1000078867
03.02.2020,RESIDENT SERVICES,PINNACLE POWER LTD,690,PRIVATE SERVICE CHARGES,SERVICE CHARGES,5902400994,1000081494
04.02.2020,ADULT SOCIAL CARE,REDACTED PERSONAL DATA,400,APPOINTEESHIPS,OTHER PAYMENTS FOR CLIENTS,REDACTED,REDACTED
04.02.2020,ADULT SOCIAL CARE,REDACTED PERSONAL DATA,388.6,APPOINTEESHIPS,OTHER PAYMENTS FOR CLIENTS,REDACTED,REDACTED
04.02.2020,ADULT SOCIAL CARE,SHARE COMMUNITY LTD,975,LD LTS 18-64,DAYCARE,2103057873,1000062408
04.02.2020,ADULT SOCIAL CARE,WESTMINSTER HOMECARE LTD,863.14,MEM LTS 65+,HOMECARE - SPOT,2103057866,1000075287
04.02.2020,ADULT SOCIAL CARE,WESTMINSTER HOMECARE LTD,966.72,MEM LTS 65+,HOMECARE - SPOT,2103057863,1000075287
04.02.2020,ADULT SOCIAL CARE,WESTMINSTER HOMECARE LTD,966.72,MEM LTS 65+,HOMECARE - SPOT,2103057864,1000075287
04.02.2020,ADULT SOCIAL CARE,WESTMINSTER HOMECARE LTD,966.72,MEM LTS 65+,HOMECARE - SPOT,2103057869,1000075287
04.02.2020,ADULT SOCIAL CARE,WESTMINSTER HOMECARE LTD,966.72,MEM LTS 65+,HOMECARE - SPOT,2103057870,1000075287
04.02.2020,ADULT SOCIAL CARE,WESTMINSTER HOMECARE LTD,966.72,MEM LTS 65+,HOMECARE - SPOT,2103057871,1000075287
04.02.2020,ADULT SOCIAL CARE,WESTMINSTER HOMECARE LTD,966.72,MEM LTS 65+,HOMECARE - SPOT,2103057872,1000075287
04.02.2020,ADULT SOCIAL CARE,WESTMINSTER HOMECARE LTD,"1,030.56",PHY LTS 18-64,HOMECARE - SPOT,2103057868,1000075287
04.02.2020,ADULT SOCIAL CARE,THAMES HOMECARE SERVICE LTD,402.75,PHY LTS 18-64,HOMECARE - SPOT,2103057853,1000079295
04.02.2020,ADULT SOCIAL CARE,SERVESOUL LTD,408.91,PHY LTS 18-64,HOMECARE - SPOT,2103057822,1000081503
04.02.2020,ADULT SOCIAL CARE,WESTMINSTER HOMECARE LTD,893.76,PHY LTS 65+,HOMECARE - SPOT,2103057867,1000075287
04.02.2020,ADULT SOCIAL CARE,WESTMINSTER HOMECARE LTD,"1,185.60",PHY LTS 65+,HOMECARE - SPOT,2103057862,1000075287
04.02.2020,ADULT SOCIAL CARE,THAMES HOMECARE SERVICE LTD,563.85,PHY LTS 65+,HOMECARE - SPOT,2103057855,1000079295
04.02.2020,ADULT SOCIAL CARE,SERVESOUL LTD,262.87,PHY LTS 65+,HOMECARE - SPOT,2103057829,1000081503
04.02.2020,ADULT SOCIAL CARE,SERVESOUL LTD,292.08,PHY LTS 65+,HOMECARE - SPOT,2103057850,1000081503
04.02.2020,ADULT SOCIAL CARE,SERVESOUL LTD,308.77,PHY LTS 65+,HOMECARE - SPOT,2103057839,1000081503
04.02.2020,ADULT SOCIAL CARE,SERVESOUL LTD,346.32,PHY LTS 65+,HOMECARE - SPOT,2103057830,1000081503
04.02.2020,ADULT SOCIAL CARE,SERVESOUL LTD,421.42,PHY LTS 65+,HOMECARE - SPOT,2103057832,1000081503
04.02.2020,ADULT SOCIAL CARE,SERVESOUL LTD,433.94,PHY LTS 65+,HOMECARE - SPOT,2103057842,1000081503
04.02.2020,ADULT SOCIAL CARE,SERVESOUL LTD,517.39,PHY LTS 65+,HOMECARE - SPOT,2103057848,1000081503
04.02.2020,ADULT SOCIAL CARE,SERVESOUL LTD,559.12,PHY LTS 65+,HOMECARE - SPOT,2103057844,1000081503
04.02.2020,ADULT SOCIAL CARE,SERVESOUL LTD,579.98,PHY LTS 65+,HOMECARE - SPOT,2103057826,1000081503
04.02.2020,ADULT SOCIAL CARE,SERVESOUL LTD,642.57,PHY LTS 65+,HOMECARE - SPOT,2103057824,1000081503
04.02.2020,ADULT SOCIAL CARE,SERVESOUL LTD,350.49,PHY STS 65+,HOMECARE - IC,2103057834,1000081503
04.02.2020,ADULT SOCIAL CARE,SERVESOUL LTD,375.53,SUB LTS 18-64,HOMECARE - SPOT,2103057841,1000081503
04.02.2020,ADULT SOCIAL CARE,LONDON COUNCILS,"7,609.00",TAXICARD SCHEME,EXTERNAL AGENCIES AND BODIES,5902401546,11237079
04.02.2020,ADULT SOCIAL CARE,LONDON COUNCILS,"15,363.00",TAXICARD SCHEME,MISCELLANEOUS EXPENSES,5902401546,11237079
04.02.2020,ASSET MANAGEMENT,PARS LTD,"1,481.00",ADAPTATIONS,BUILDING R&M,2103057882,3000001275
04.02.2020,ASSET MANAGEMENT,GAS ADVISORY SERVICES LIMITED,1653.63,ENG CONTRACTS (NORTH),HEATING -DISTRICT SERVICE (CONTRACT SUM),5902401485,1000064649
04.02.2020,ASSET MANAGEMENT,PRB ESTATES LTD,38771.33,MAJOR REPAIRS,BUILDING R&M,2103057884,3000001691
04.02.2020,CENTRAL FUNCTIONS,KENT COUNTY COUNCIL - LASER,506.34,HEATING ACCOUNT,ELECTRICITY,2103057894,1000012926
04.02.2020,CENTRAL FUNCTIONS,KENT COUNTY COUNCIL - LASER,506.34,HEATING ACCOUNT,ELECTRICITY,2103057897,1000012926
04.02.2020,CENTRAL FUNCTIONS,KENT COUNTY COUNCIL - LASER,781.26,HEATING ACCOUNT,ELECTRICITY,2103057888,1000012926
04.02.2020,CENTRAL FUNCTIONS,KENT COUNTY COUNCIL - LASER,970.02,HEATING ACCOUNT,ELECTRICITY,2103057896,1000012926
04.02.2020,CENTRAL FUNCTIONS,KENT COUNTY COUNCIL - LASER,"1,079.88",HEATING ACCOUNT,ELECTRICITY,2103057892,1000012926
04.02.2020,CENTRAL FUNCTIONS,KENT COUNTY COUNCIL - LASER,"1,133.87",HEATING ACCOUNT,ELECTRICITY,2103057889,1000012926
04.02.2020,CENTRAL FUNCTIONS,KENT COUNTY COUNCIL - LASER,"1,261.84",HEATING ACCOUNT,ELECTRICITY,2103057891,1000012926
04.02.2020,CENTRAL FUNCTIONS,KENT COUNTY COUNCIL - LASER,"1,421.70",HEATING ACCOUNT,ELECTRICITY,2103057887,1000012926
04.02.2020,CENTRAL FUNCTIONS,KENT COUNTY COUNCIL - LASER,"1,197.23",HEATING ACCOUNT,GAS,2103057893,1000012926
04.02.2020,CENTRAL FUNCTIONS,KENT COUNTY COUNCIL - LASER,"1,877.33",HEATING ACCOUNT,GAS,2103057890,1000012926
04.02.2020,CENTRAL FUNCTIONS,REDACTED PERSONAL DATA,"1,260.00",LEDBURY ESTATE,COUNCIL TAX,REDACTED,REDACTED
04.02.2020,CENTRAL FUNCTIONS,REDACTED PERSONAL DATA,"2,436.58",LEDBURY ESTATE,COUNCIL TAX,REDACTED,REDACTED
04.02.2020,CHILDREN'S SERVICES,REDACTED PERSONAL DATA,480,ADOPTION PLACEMENTS & INTER AGENCY,PAYMENTS TO CARERS,REDACTED,REDACTED
04.02.2020,CHILDREN'S SERVICES,TLG:THE EDUCATION CHARITY,"6,900.00",ALTERNATIVE PROVISION,EXTERNAL AGENCIES AND BODIES,5902401447,1000082864
04.02.2020,CHILDREN'S SERVICES,TLG:THE EDUCATION CHARITY,"6,900.00",ALTERNATIVE PROVISION,EXTERNAL AGENCIES AND BODIES,5902401449,1000082864
04.02.2020,CHILDREN'S SERVICES,RUTH  DEUTSCH,"2,000.00",EDUCATIONAL PSYCHOLOGY - SEND,TRAINING,5902401332,1000058738
04.02.2020,CHILDREN'S SERVICES,TFL TELESALES / OYSTER FULFILMENT,577.5,FREE AND EARLY LEARNING TEAM,TRAINING,5902401473,1000059727
04.02.2020,CHILDREN'S SERVICES,REDACTED PERSONAL DATA,"1,000.00",LEAVING CARE GRANT,OTHER PAYMENTS FOR CLIENTS,REDACTED,REDACTED
04.02.2020,CHILDREN'S SERVICES,TFL TELESALES / OYSTER FULFILMENT,280,MANAGEMENT SAFEE,PUBLIC TRANSPORT,5902401436,1000059727
04.02.2020,CHILDREN'S SERVICES,ACCESS MOBILITY TRANSPORT LTD,"11,650.60",SCH TRANS - CONTRACT COST,CAB FARES,5902401585,1000074637
04.02.2020,CHILDREN'S SERVICES,ACCESS MOBILITY TRANSPORT LTD,"24,939.40",SCH TRANS - CONTRACT COST,CAB FARES,5902401585,1000074637
04.02.2020,CHILDREN'S SERVICES,MP HABILITATION SERVICES LTD,794,SCH TRANS - CONTRACT COST,OTHER PAYMENTS FOR CLIENTS,5902401605,1000082223
04.02.2020,CHILDREN'S SERVICES,OWNLIFE LTD,"1,500.00",SEMI INDEPENDENT CARE LEAVERS,EXTERNAL AGENCIES AND BODIES,2103057815,1000056219
04.02.2020,CHILDREN'S SERVICES,OWNLIFE LTD,"3,808.57",SEMI INDEPENDENT CARE LEAVERS,EXTERNAL AGENCIES AND BODIES,2103057818,1000056219
04.02.2020,CHILDREN'S SERVICES,OWNLIFE LTD,"4,400.00",SEMI INDEPENDENT CARE LEAVERS,EXTERNAL AGENCIES AND BODIES,2103057819,1000056219
04.02.2020,CHILDREN'S SERVICES,OWNLIFE LTD,"10,385.00",SEMI INDEPENDENT CARE LEAVERS,EXTERNAL AGENCIES AND BODIES,2103057821,1000056219
04.02.2020,CHILDREN'S SERVICES,HEARTWOOD OUTREACH SERVICES LTD,"1,887.59",SEMI INDEPENDENT CARE LEAVERS,EXTERNAL AGENCIES AND BODIES,2103057820,1000075021
04.02.2020,CHILDREN'S SERVICES,REDACTED PERSONAL DATA,300,SEMI INDEPENDENT LAC,OTHER PAYMENTS FOR CLIENTS,REDACTED,REDACTED
04.02.2020,COMMUNITIES,STYLES HOUSE TMO,"16,385.25",STYLES HOUSE TMO,M&M ALLOWANCE CO-OPS,5902401463,1000072012
04.02.2020,CUSTOMER EXPERIENCE HGF,WILLOW ESTATE AGENTS (LONDON) LTD,"1,190.00",NIGHTLY TA (NSC),EXTERNAL AGENCIES AND BODIES,5902401455,1000060607
04.02.2020,CUSTOMER EXPERIENCE HGF,WILLOW ESTATE AGENTS (LONDON) LTD,"2,100.00",NIGHTLY TA (NSC),EXTERNAL AGENCIES AND BODIES,5902401456,1000060607
04.02.2020,CUSTOMER EXPERIENCE HGF,NORBURY PROPERTY SERVICES (LONDON) LTD,"49,279.70",NIGHTLY TA (NSC),EXTERNAL AGENCIES AND BODIES,5902401459,1000075566
04.02.2020,CUSTOMER EXPERIENCE HGF,FINEFAIR LTD,"46,250.00",PSL PLACEMENTS,EXTERNAL AGENCIES AND BODIES,5902401604,1000075570
04.02.2020,CUSTOMER EXPERIENCE HGF,FINEFAIR LTD,"88,891.39",PSL PLACEMENTS,EXTERNAL AGENCIES AND BODIES,5902401603,1000075570
04.02.2020,ENVIRONMENT AND LEISURE,STREET TREE CARE LTD,"5,649.00",CAPITAL PS (LEISURE),CONST'N MAIN CONTRACT - NON CERTIFICATED,2103057885,3000001537
04.02.2020,ENVIRONMENT AND LEISURE,CONWAY AECOM LTD,339.79,CAPITAL PS (LEISURE),CONSTR'N SUB CONTRACT - NON CERTIFICATED,2103057875,3000001595
04.02.2020,ENVIRONMENT DIRECTORATE,AUTOMOTIVE LEASING,612.38,CAR LEASING CTRL A/C,VEHICLE LEASING CHARGES,5902401598,11014756
04.02.2020,ENVIRONMENT DIRECTORATE,ARNOLD CLARK VEHICLE MANAGEMENT,265.75,CAR LEASING CTRL A/C,VEHICLE LEASING CHARGES,5902401526,1000079116
04.02.2020,ENVIRONMENT DIRECTORATE,ARNOLD CLARK VEHICLE MANAGEMENT,305.32,CAR LEASING CTRL A/C,VEHICLE LEASING CHARGES,5902401525,1000079116
04.02.2020,ENVIRONMENT DIRECTORATE,ARNOLD CLARK VEHICLE MANAGEMENT,311.03,CAR LEASING CTRL A/C,VEHICLE LEASING CHARGES,5902401523,1000079116
04.02.2020,ENVIRONMENT DIRECTORATE,ARNOLD CLARK VEHICLE MANAGEMENT,319.05,CAR LEASING CTRL A/C,VEHICLE LEASING CHARGES,5902401526,1000079116
04.02.2020,ENVIRONMENT DIRECTORATE,ARNOLD CLARK VEHICLE MANAGEMENT,327.55,CAR LEASING CTRL A/C,VEHICLE LEASING CHARGES,5902401514,1000079116
04.02.2020,ENVIRONMENT DIRECTORATE,ARNOLD CLARK VEHICLE MANAGEMENT,333.07,CAR LEASING CTRL A/C,VEHICLE LEASING CHARGES,5902401523,1000079116
04.02.2020,ENVIRONMENT DIRECTORATE,ARNOLD CLARK VEHICLE MANAGEMENT,334.89,CAR LEASING CTRL A/C,VEHICLE LEASING CHARGES,5902401525,1000079116
04.02.2020,ENVIRONMENT DIRECTORATE,ARNOLD CLARK VEHICLE MANAGEMENT,337.48,CAR LEASING CTRL A/C,VEHICLE LEASING CHARGES,5902401514,1000079116
04.02.2020,ENVIRONMENT DIRECTORATE,ARNOLD CLARK VEHICLE MANAGEMENT,359.07,CAR LEASING CTRL A/C,VEHICLE LEASING CHARGES,5902401503,1000079116
04.02.2020,ENVIRONMENT DIRECTORATE,ARNOLD CLARK VEHICLE MANAGEMENT,403.1,CAR LEASING CTRL A/C,VEHICLE LEASING CHARGES,5902401503,1000079116
04.02.2020,ENVIRONMENT DIRECTORATE,ARNOLD CLARK VEHICLE MANAGEMENT,419.13,CAR LEASING CTRL A/C,VEHICLE LEASING CHARGES,5902401509,1000079116
04.02.2020,ENVIRONMENT DIRECTORATE,ARNOLD CLARK VEHICLE MANAGEMENT,420.64,CAR LEASING CTRL A/C,VEHICLE LEASING CHARGES,5902401519,1000079116
04.02.2020,ENVIRONMENT DIRECTORATE,ARNOLD CLARK VEHICLE MANAGEMENT,433.46,CAR LEASING CTRL A/C,VEHICLE LEASING CHARGES,5902401509,1000079116
04.02.2020,ENVIRONMENT DIRECTORATE,ARNOLD CLARK VEHICLE MANAGEMENT,449.38,CAR LEASING CTRL A/C,VEHICLE LEASING CHARGES,5902401519,1000079116
04.02.2020,ENVIRONMENT DIRECTORATE,ARNOLD CLARK VEHICLE MANAGEMENT,458.48,CAR LEASING CTRL A/C,VEHICLE LEASING CHARGES,5902401516,1000079116
04.02.2020,ENVIRONMENT DIRECTORATE,ARNOLD CLARK VEHICLE MANAGEMENT,461.2,CAR LEASING CTRL A/C,VEHICLE LEASING CHARGES,5902401516,1000079116
04.02.2020,ENVIRONMENT DIRECTORATE,ARNOLD CLARK VEHICLE MANAGEMENT,482.81,CAR LEASING CTRL A/C,VEHICLE LEASING CHARGES,5902401508,1000079116
04.02.2020,ENVIRONMENT DIRECTORATE,ARNOLD CLARK VEHICLE MANAGEMENT,497.04,CAR LEASING CTRL A/C,VEHICLE LEASING CHARGES,5902401508,1000079116
04.02.2020,ENVIRONMENT DIRECTORATE,ARNOLD CLARK VEHICLE MANAGEMENT,503.72,CAR LEASING CTRL A/C,VEHICLE LEASING CHARGES,5902401521,1000079116
04.02.2020,ENVIRONMENT DIRECTORATE,ARNOLD CLARK VEHICLE MANAGEMENT,523.04,CAR LEASING CTRL A/C,VEHICLE LEASING CHARGES,5902401524,1000079116
04.02.2020,ENVIRONMENT DIRECTORATE,ARNOLD CLARK VEHICLE MANAGEMENT,525.49,CAR LEASING CTRL A/C,VEHICLE LEASING CHARGES,5902401505,1000079116
04.02.2020,ENVIRONMENT DIRECTORATE,ARNOLD CLARK VEHICLE MANAGEMENT,552.89,CAR LEASING CTRL A/C,VEHICLE LEASING CHARGES,5902401521,1000079116
04.02.2020,ENVIRONMENT DIRECTORATE,ARNOLD CLARK VEHICLE MANAGEMENT,560.43,CAR LEASING CTRL A/C,VEHICLE LEASING CHARGES,5902401527,1000079116
04.02.2020,ENVIRONMENT DIRECTORATE,ARNOLD CLARK VEHICLE MANAGEMENT,572.83,CAR LEASING CTRL A/C,VEHICLE LEASING CHARGES,5902401505,1000079116
04.02.2020,ENVIRONMENT DIRECTORATE,ARNOLD CLARK VEHICLE MANAGEMENT,574.8,CAR LEASING CTRL A/C,VEHICLE LEASING CHARGES,5902401524,1000079116
04.02.2020,ENVIRONMENT DIRECTORATE,ARNOLD CLARK VEHICLE MANAGEMENT,614.28,CAR LEASING CTRL A/C,VEHICLE LEASING CHARGES,5902401527,1000079116
04.02.2020,ENVIRONMENT DIRECTORATE,ARNOLD CLARK VEHICLE MANAGEMENT,715.76,CAR LEASING CTRL A/C,VEHICLE LEASING CHARGES,5902401507,1000079116
04.02.2020,ENVIRONMENT DIRECTORATE,ARNOLD CLARK VEHICLE MANAGEMENT,732.08,CAR LEASING CTRL A/C,VEHICLE LEASING CHARGES,5902401531,1000079116
04.02.2020,ENVIRONMENT DIRECTORATE,ARNOLD CLARK VEHICLE MANAGEMENT,763.29,CAR LEASING CTRL A/C,VEHICLE LEASING CHARGES,5902401507,1000079116
04.02.2020,ENVIRONMENT DIRECTORATE,ARNOLD CLARK VEHICLE MANAGEMENT,769.48,CAR LEASING CTRL A/C,VEHICLE LEASING CHARGES,5902401532,1000079116
04.02.2020,ENVIRONMENT DIRECTORATE,ARNOLD CLARK VEHICLE MANAGEMENT,789.71,CAR LEASING CTRL A/C,VEHICLE LEASING CHARGES,5902401530,1000079116
04.02.2020,ENVIRONMENT DIRECTORATE,ARNOLD CLARK VEHICLE MANAGEMENT,814.92,CAR LEASING CTRL A/C,VEHICLE LEASING CHARGES,5902401532,1000079116
04.02.2020,ENVIRONMENT DIRECTORATE,ARNOLD CLARK VEHICLE MANAGEMENT,818.98,CAR LEASING CTRL A/C,VEHICLE LEASING CHARGES,5902401531,1000079116
04.02.2020,ENVIRONMENT DIRECTORATE,ARNOLD CLARK VEHICLE MANAGEMENT,825.28,CAR LEASING CTRL A/C,VEHICLE LEASING CHARGES,5902401502,1000079116
04.02.2020,ENVIRONMENT DIRECTORATE,ARNOLD CLARK VEHICLE MANAGEMENT,828.82,CAR LEASING CTRL A/C,VEHICLE LEASING CHARGES,5902401502,1000079116
04.02.2020,ENVIRONMENT DIRECTORATE,ARNOLD CLARK VEHICLE MANAGEMENT,837.49,CAR LEASING CTRL A/C,VEHICLE LEASING CHARGES,5902401530,1000079116
04.02.2020,ENVIRONMENT DIRECTORATE,ARNOLD CLARK VEHICLE MANAGEMENT,950.84,CAR LEASING CTRL A/C,VEHICLE LEASING CHARGES,5902401529,1000079116
04.02.2020,ENVIRONMENT DIRECTORATE,ARNOLD CLARK VEHICLE MANAGEMENT,990.66,CAR LEASING CTRL A/C,VEHICLE LEASING CHARGES,5902401510,1000079116
04.02.2020,ENVIRONMENT DIRECTORATE,ARNOLD CLARK VEHICLE MANAGEMENT,"1,016.45",CAR LEASING CTRL A/C,VEHICLE LEASING CHARGES,5902401513,1000079116
04.02.2020,ENVIRONMENT DIRECTORATE,ARNOLD CLARK VEHICLE MANAGEMENT,"1,023.24",CAR LEASING CTRL A/C,VEHICLE LEASING CHARGES,5902401520,1000079116
04.02.2020,ENVIRONMENT DIRECTORATE,ARNOLD CLARK VEHICLE MANAGEMENT,"1,036.55",CAR LEASING CTRL A/C,VEHICLE LEASING CHARGES,5902401533,1000079116
04.02.2020,ENVIRONMENT DIRECTORATE,ARNOLD CLARK VEHICLE MANAGEMENT,"1,053.80",CAR LEASING CTRL A/C,VEHICLE LEASING CHARGES,5902401529,1000079116
04.02.2020,ENVIRONMENT DIRECTORATE,ARNOLD CLARK VEHICLE MANAGEMENT,"1,055.48",CAR LEASING CTRL A/C,VEHICLE LEASING CHARGES,5902401513,1000079116
04.02.2020,ENVIRONMENT DIRECTORATE,ARNOLD CLARK VEHICLE MANAGEMENT,"1,069.14",CAR LEASING CTRL A/C,VEHICLE LEASING CHARGES,5902401510,1000079116
04.02.2020,ENVIRONMENT DIRECTORATE,ARNOLD CLARK VEHICLE MANAGEMENT,"1,081.04",CAR LEASING CTRL A/C,VEHICLE LEASING CHARGES,5902401520,1000079116
04.02.2020,ENVIRONMENT DIRECTORATE,ARNOLD CLARK VEHICLE MANAGEMENT,"1,118.08",CAR LEASING CTRL A/C,VEHICLE LEASING CHARGES,5902401533,1000079116
04.02.2020,ENVIRONMENT DIRECTORATE,ARNOLD CLARK VEHICLE MANAGEMENT,"1,463.78",CAR LEASING CTRL A/C,VEHICLE LEASING CHARGES,5902401517,1000079116
04.02.2020,ENVIRONMENT DIRECTORATE,ARNOLD CLARK VEHICLE MANAGEMENT,"1,506.10",CAR LEASING CTRL A/C,VEHICLE LEASING CHARGES,5902401517,1000079116
04.02.2020,ENVIRONMENT DIRECTORATE,ARNOLD CLARK VEHICLE MANAGEMENT,"1,583.17",CAR LEASING CTRL A/C,VEHICLE LEASING CHARGES,5902401504,1000079116
04.02.2020,ENVIRONMENT DIRECTORATE,ARNOLD CLARK VEHICLE MANAGEMENT,"1,692.88",CAR LEASING CTRL A/C,VEHICLE LEASING CHARGES,5902401504,1000079116
04.02.2020,ENVIRONMENT DIRECTORATE,AUTOMOTIVE LEASING,"39,933.13",COMMERCIAL VEH CTRL A/C,HIRED VEHICLES,5902401601,11014756
04.02.2020,ENVIRONMENT DIRECTORATE,AMETHYST HORTICULTURE LTD,"4,629.10",GROUNDS MAINTENANCE - GENERAL,MATERIALS,5902401488,1000054623
04.02.2020,ENVIRONMENT DIRECTORATE,CTC RECRUITMENT LTD,"1,801.20",NON HOUSING GROUNDS,AGENCY STAFF,5902401448,1000041410
04.02.2020,ENVIRONMENT DIRECTORATE,STANBURY BUILDING SERVICES LTD,"10,490.00",NON HOUSING GROUNDS,BUILDING R&M,2103057880,3000001967
04.02.2020,ENVIRONMENT DIRECTORATE,TRAVIS PERKINS TRADING COMPANY LTD,287.43,NUNHEAD DD,MATERIALS,5902401578,1514319
04.02.2020,ENVIRONMENT DIRECTORATE,TYCO INTEGRATED FIRE & SECURITY,"4,730.04",PARKING & CAR PARKS CCTV,PROFESSIONAL FEES,5902401462,1000077948
04.02.2020,ENVIRONMENT DIRECTORATE,BRITISH TELECOMMUNICATIONS PLC,812.13,TOWN CENTRE CCTV,TELEPHONES (LAND LINES),5902401458,11149671
04.02.2020,ENVIRONMENT DIRECTORATE,BRITISH TELECOMMUNICATIONS PLC,"17,195.74",TOWN CENTRE CCTV,TELEPHONES (LAND LINES),5902401457,11149671
04.02.2020,EXCHEQUER SERVICES,MRO PEOPLE LTD,750,ADMINISTRATIVE SUPPORT,TRAINING,5902401465,1000083017
04.02.2020,HOUSING,SILK & MACKMAN SERVICES LTD,"78,388.77",PAYMENTS CONTROL ACCOUNT SILK & MACKMAN,MANUAL CREDITORS,5902401478,1000035282
04.02.2020,HOUSING GENERAL FUND,PORTAKABIN LIMITED,"1,620.66",CAPITAL PS (HOUSING GF),LAND & BUILDINGS ACQUISITION,5902401535,1000015195
04.02.2020,HOUSING HRA,PRB ESTATES LTD,"7,423.71",CAPITAL PS (HRA),CONST'N MAIN CONTRACT - NON CERTIFICATED,2103057879,3000001691
04.02.2020,HOUSING HRA,PRB ESTATES LTD,"8,828.93",CAPITAL PS (HRA),CONST'N MAIN CONTRACT - NON CERTIFICATED,2103057878,3000001691
04.02.2020,HOUSING HRA,FARRER HUXLEY ASSOCIATES,"3,300.00",CAPITAL PS (HRA),CONSTRUCTION FEES  - EXTERNAL,5902401593,1000052362
04.02.2020,HOUSING HRA,ENGIE REGENERATION (APOLLO) LTD,"90,594.21",CAPITAL PS (HRA),CONSTRUCTION MAIN CONTRACT -CERTIFICATED,2103057876,4000449
04.02.2020,HOUSING HRA,ENGIE REGENERATION (APOLLO) LTD,"2,902,376.42",CAPITAL PS (HRA),CONSTRUCTION MAIN CONTRACT -CERTIFICATED,2103057881,4000449
04.02.2020,HOUSING HRA,POTTER RAPER LTD,"1,352.75",CAPITAL PS (HRA),CONSTRUCTION SITE COSTS,5902401600,1009369
04.02.2020,HOUSING HRA,LEVITT BERNSTEIN ASSOCIATION LIMITED,"3,043.67",CAPITAL PS (REGEN),CONSTRUCTION FEES - ARCHITECT,5902401445,1000036622
04.02.2020,HOUSING HRA,LEVITT BERNSTEIN ASSOCIATION LIMITED,"20,576.00",CAPITAL PS (REGEN),CONSTRUCTION FEES - ARCHITECT,5902401444,1000036622
04.02.2020,LAW & DEMOCRACY,CENTRE FOR PUBLIC SCRUTINY LTD,390,SCRUTINY,TRAINING,5902401606,1000076455
04.02.2020,LEISURE DIRECTORATE,P D CONSTRUCTION LTD,485,BURGESS AREA TEAM,GROUNDS MAINTENANCE,5902401466,1000000390
04.02.2020,LEISURE DIRECTORATE,P D CONSTRUCTION LTD,"5,000.00",BURGESS AREA TEAM,GROUNDS MAINTENANCE,5902401464,1000000390
04.02.2020,LEISURE DIRECTORATE,THE CONSERVATION VOLUNTEERS,"9,566.00",ENVIRONMENT & LEISURE GRANTS,OTHER CONTRACTORS,5902401484,1872821
04.02.2020,MODERNISATION HGF,THE DEXTROUS WEB LTD,"5,000.00",DIGITAL DELIVERY,INFORMATION MANAGEMENT,5902401472,1000083020
04.02.2020,MODERNISATION HGF,VIRGIN MEDIA,252.06,IT MANAGEMENT,DATA COMMUNICATIONS,5902401453,1000026457
04.02.2020,MODERNISATION HGF,VIRGIN MEDIA,315,IT MANAGEMENT,DATA COMMUNICATIONS,5902401451,1000026457
04.02.2020,MODERNISATION HGF,VIRGIN MEDIA,553.87,IT MANAGEMENT,DATA COMMUNICATIONS,5902401552,1000026457
04.02.2020,MODERNISATION HGF,VIRGIN MEDIA,"1,000.08",IT MANAGEMENT,DATA COMMUNICATIONS,5902401468,1000026457
04.02.2020,MODERNISATION HGF,VIRGIN MEDIA,"1,080.00",IT MANAGEMENT,DATA COMMUNICATIONS,5902401450,1000026457
04.02.2020,MODERNISATION HGF,VIRGIN MEDIA,"1,165.40",IT MANAGEMENT,DATA COMMUNICATIONS,5902401469,1000026457
04.02.2020,MODERNISATION HGF,VIRGIN MEDIA,"1,165.40",IT MANAGEMENT,DATA COMMUNICATIONS,5902401538,1000026457
04.02.2020,MODERNISATION HGF,VIRGIN MEDIA,"7,600.69",IT MANAGEMENT,DATA COMMUNICATIONS,5902401541,1000026457
04.02.2020,MODERNISATION HGF,MIDAS TRAINING SOLUTIONS LTD,"1,402.00",MEMBER DEVELOPMENT,MEMBERS' TRAINING,5902401461,1000023193
04.02.2020,PLANNING AND TRANSPORT,WATES PROPERTY SERVICES LTD,459.94,DANGEROUS STRUCTURES,OTHER CONTRACTORS,5902401560,11322039
04.02.2020,PLANNING AND TRANSPORT,SOUTHWARK NEWSPAPER LTD,336,DEVELOPMENT CONTROL ADMINSTRATION,MARKETING & PUBLICITY SERVICES,5902401594,1556957
04.02.2020,PLANNING AND TRANSPORT,BPS CHARTERED SURVEYORS,"5,600.00",MAJOR APPLICATIONS,PROFESSIONAL FEES,5902401569,1000077923
04.02.2020,REGENERATION,CBS MAINTENANCE SERVICES LTD,"1,010.00",5/5A WESTMINSTER BRIDGE ROAD.,BUILDING R&M,5902401434,1000072375
04.02.2020,REGENERATION,A R LAWRENCE & SONS LTD,"2,170.50",CPHA  MANAGED PROPERTIES,BUILDING R&M,2103057877,3000002102
04.02.2020,REGENERATION,CBS MAINTENANCE SERVICES LTD,951.97,LBS SOJOURNER TRUTH COMMUNITY CENTRE,BUILDING R&M,5902401435,1000072375
04.02.2020,REPORTING & TREASURY,BGC EUROPEAN HOLDINGS,"17,548.37",EXTERNAL INTEREST,DEBT MANAGEMENT EXPENSES,5902401487,1000081336
04.02.2020,RESIDENT SERVICES,WJL CONTRACTS,"4,895.19",EXTRA CARE,MAJOR VOIDS,5902401442,1000083818
04.02.2020,RESIDENT SERVICES,EDF ENERGY PLC,639.79,OPERATIONS/OFFICES ACCOMMODATION,ELECTRICITY,5902401467,1008746
04.02.2020,RESIDENT SERVICES,REDACTED PERSONAL DATA,357,TA PLACEMENTS,EXTERNAL AGENCIES AND BODIES,REDACTED,REDACTED
04.02.2020,RESIDENT SERVICES,SHUTTLEWORTH (UK) LTD,"1,116.00",TA PLACEMENTS,EXTERNAL AGENCIES AND BODIES,5902401556,1000056468
04.02.2020,RESIDENT SERVICES,KINDLY PROPERTIES LTD,420,TA PLACEMENTS,EXTERNAL AGENCIES AND BODIES,5902401490,1000060734
04.02.2020,RESIDENT SERVICES,KINDLY PROPERTIES LTD,"1,998.00",TA PLACEMENTS,EXTERNAL AGENCIES AND BODIES,5902401491,1000060734
05.02.2020,ADULT SOCIAL CARE,SALMON YOUTH CENTRE,"10,500.00",AAD TEAM,DAYCARE,5902401611,11015254
05.02.2020,ADULT SOCIAL CARE,REDACTED PERSONAL DATA,362,APPOINTEESHIPS,OTHER PAYMENTS FOR CLIENTS,REDACTED,REDACTED
05.02.2020,ADULT SOCIAL CARE,BEVAN BRITTAN LLP,497,DIR OF ASC,LEGAL FEES & COURT COSTS,2103058921,1000047779
05.02.2020,ADULT SOCIAL CARE,BY THE BRIDGE LTD,"5,757.14",DISABILITIES LAC,EXTERNAL AGENCIES AND BODIES,2103058463,1000043961
05.02.2020,ADULT SOCIAL CARE,BY THE BRIDGE LTD,"6,231.00",DISABILITIES LAC,EXTERNAL AGENCIES AND BODIES,2103058457,1000043961
05.02.2020,ADULT SOCIAL CARE,SUPREME CARE SERVICES LTD,409.2,LD LTS 18-64,HOMECARE - C&V,2103058616,1000059416
05.02.2020,ADULT SOCIAL CARE,SUPREME CARE SERVICES LTD,447.56,LD LTS 18-64,HOMECARE - C&V,2103058509,1000059416
05.02.2020,ADULT SOCIAL CARE,SUPREME CARE SERVICES LTD,451.83,LD LTS 18-64,HOMECARE - C&V,2103058621,1000059416
05.02.2020,ADULT SOCIAL CARE,SUPREME CARE SERVICES LTD,895.16,LD LTS 18-64,HOMECARE - C&V,2103058485,1000059416
05.02.2020,ADULT SOCIAL CARE,SUPREME CARE SERVICES LTD,865.29,LD LTS 65+,HOMECARE - C&V,2103058792,1000059416
05.02.2020,ADULT SOCIAL CARE,SUPREME CARE SERVICES LTD,932.01,MEM LTS 18-64,HOMECARE - C&V,2103058594,1000059416
05.02.2020,ADULT SOCIAL CARE,SUPREME CARE SERVICES LTD,255.86,MEM LTS 65+,HOMECARE - C&V,2103058706,1000059416
05.02.2020,ADULT SOCIAL CARE,SUPREME CARE SERVICES LTD,265.98,MEM LTS 65+,HOMECARE - C&V,2103058740,1000059416
05.02.2020,ADULT SOCIAL CARE,SUPREME CARE SERVICES LTD,319.8,MEM LTS 65+,HOMECARE - C&V,2103058834,1000059416
05.02.2020,ADULT SOCIAL CARE,SUPREME CARE SERVICES LTD,322.36,MEM LTS 65+,HOMECARE - C&V,2103058784,1000059416
05.02.2020,ADULT SOCIAL CARE,SUPREME CARE SERVICES LTD,330.78,MEM LTS 65+,HOMECARE - C&V,2103058585,1000059416
05.02.2020,ADULT SOCIAL CARE,SUPREME CARE SERVICES LTD,544.18,MEM LTS 65+,HOMECARE - C&V,2103058876,1000059416
05.02.2020,ADULT SOCIAL CARE,SUPREME CARE SERVICES LTD,601.97,MEM LTS 65+,HOMECARE - C&V,2103058753,1000059416
05.02.2020,ADULT SOCIAL CARE,SUPREME CARE SERVICES LTD,619.06,MEM LTS 65+,HOMECARE - C&V,2103058523,1000059416
05.02.2020,ADULT SOCIAL CARE,SUPREME CARE SERVICES LTD,716.51,MEM LTS 65+,HOMECARE - C&V,2103058713,1000059416
05.02.2020,ADULT SOCIAL CARE,SUPREME CARE SERVICES LTD,809.37,MEM LTS 65+,HOMECARE - C&V,2103058734,1000059416
05.02.2020,ADULT SOCIAL CARE,SUPREME CARE SERVICES LTD,"1,021.01",MEM LTS 65+,HOMECARE - C&V,2103058631,1000059416
05.02.2020,ADULT SOCIAL CARE,SUPREME CARE SERVICES LTD,"1,108.64",MEM LTS 65+,HOMECARE - C&V,2103058814,1000059416
05.02.2020,ADULT SOCIAL CARE,SUPREME CARE SERVICES LTD,"2,912.07",MEM LTS 65+,HOMECARE - C&V,2103058522,1000059416
05.02.2020,ADULT SOCIAL CARE,SUPREME CARE SERVICES LTD,289.88,MH LTS 18-64,HOMECARE - C&V,2103058540,1000059416
05.02.2020,ADULT SOCIAL CARE,SUPREME CARE SERVICES LTD,312.34,MH LTS 18-64,HOMECARE - C&V,2103058520,1000059416
05.02.2020,ADULT SOCIAL CARE,SUPREME CARE SERVICES LTD,362.31,MH LTS 18-64,HOMECARE - C&V,2103058658,1000059416
05.02.2020,ADULT SOCIAL CARE,SUPREME CARE SERVICES LTD,473.14,MH LTS 18-64,HOMECARE - C&V,2103058902,1000059416
05.02.2020,ADULT SOCIAL CARE,SUPREME CARE SERVICES LTD,514.99,MH LTS 18-64,HOMECARE - C&V,2103058494,1000059416
05.02.2020,ADULT SOCIAL CARE,SUPREME CARE SERVICES LTD,613.8,MH LTS 18-64,HOMECARE - C&V,2103058577,1000059416
05.02.2020,ADULT SOCIAL CARE,SUPREME CARE SERVICES LTD,673.48,MH LTS 18-64,HOMECARE - C&V,2103058908,1000059416
05.02.2020,ADULT SOCIAL CARE,SUPREME CARE SERVICES LTD,856.82,MH LTS 18-64,HOMECARE - C&V,2103058800,1000059416
05.02.2020,ADULT SOCIAL CARE,SUPREME CARE SERVICES LTD,267.36,MH LTS 65+,HOMECARE - C&V,2103058895,1000059416
05.02.2020,ADULT SOCIAL CARE,SUPREME CARE SERVICES LTD,272.8,MH LTS 65+,HOMECARE - C&V,2103058490,1000059416
05.02.2020,ADULT SOCIAL CARE,SUPREME CARE SERVICES LTD,272.8,MH LTS 65+,HOMECARE - C&V,2103058788,1000059416
05.02.2020,ADULT SOCIAL CARE,SUPREME CARE SERVICES LTD,358.12,MH LTS 65+,HOMECARE - C&V,2103058572,1000059416
05.02.2020,ADULT SOCIAL CARE,SUPREME CARE SERVICES LTD,396.42,MH LTS 65+,HOMECARE - C&V,2103058692,1000059416
05.02.2020,ADULT SOCIAL CARE,SUPREME CARE SERVICES LTD,404.97,MH LTS 65+,HOMECARE - C&V,2103058798,1000059416
05.02.2020,ADULT SOCIAL CARE,SUPREME CARE SERVICES LTD,413.49,MH LTS 65+,HOMECARE - C&V,2103058624,1000059416
05.02.2020,ADULT SOCIAL CARE,SUPREME CARE SERVICES LTD,545.6,MH LTS 65+,HOMECARE - C&V,2103058526,1000059416
05.02.2020,ADULT SOCIAL CARE,SUPREME CARE SERVICES LTD,774.16,MH LTS 65+,HOMECARE - C&V,2103058641,1000059416
05.02.2020,ADULT SOCIAL CARE,SUPREME CARE SERVICES LTD,774.94,MH LTS 65+,HOMECARE - C&V,2103058818,1000059416
05.02.2020,ADULT SOCIAL CARE,SUPREME CARE SERVICES LTD,933.82,MH LTS 65+,HOMECARE - C&V,2103058653,1000059416
05.02.2020,ADULT SOCIAL CARE,SUPREME CARE SERVICES LTD,281.32,PHY LTS 18-64,HOMECARE - C&V,2103058634,1000059416
05.02.2020,ADULT SOCIAL CARE,SUPREME CARE SERVICES LTD,281.45,PHY LTS 18-64,HOMECARE - C&V,2103058886,1000059416
05.02.2020,ADULT SOCIAL CARE,SUPREME CARE SERVICES LTD,294.17,PHY LTS 18-64,HOMECARE - C&V,2103058903,1000059416
05.02.2020,ADULT SOCIAL CARE,SUPREME CARE SERVICES LTD,298.44,PHY LTS 18-64,HOMECARE - C&V,2103058597,1000059416
05.02.2020,ADULT SOCIAL CARE,SUPREME CARE SERVICES LTD,341,PHY LTS 18-64,HOMECARE - C&V,2103058884,1000059416
05.02.2020,ADULT SOCIAL CARE,SUPREME CARE SERVICES LTD,351.23,PHY LTS 18-64,HOMECARE - C&V,2103058840,1000059416
05.02.2020,ADULT SOCIAL CARE,SUPREME CARE SERVICES LTD,353.79,PHY LTS 18-64,HOMECARE - C&V,2103058632,1000059416
05.02.2020,ADULT SOCIAL CARE,SUPREME CARE SERVICES LTD,362.36,PHY LTS 18-64,HOMECARE - C&V,2103058799,1000059416
05.02.2020,ADULT SOCIAL CARE,SUPREME CARE SERVICES LTD,362.38,PHY LTS 18-64,HOMECARE - C&V,2103058716,1000059416
05.02.2020,ADULT SOCIAL CARE,SUPREME CARE SERVICES LTD,362.38,PHY LTS 18-64,HOMECARE - C&V,2103058912,1000059416
05.02.2020,ADULT SOCIAL CARE,SUPREME CARE SERVICES LTD,367.35,PHY LTS 18-64,HOMECARE - C&V,2103058532,1000059416
05.02.2020,ADULT SOCIAL CARE,SUPREME CARE SERVICES LTD,370.27,PHY LTS 18-64,HOMECARE - C&V,2103058689,1000059416
05.02.2020,ADULT SOCIAL CARE,SUPREME CARE SERVICES LTD,370.94,PHY LTS 18-64,HOMECARE - C&V,2103058695,1000059416
05.02.2020,ADULT SOCIAL CARE,SUPREME CARE SERVICES LTD,396.4,PHY LTS 18-64,HOMECARE - C&V,2103058803,1000059416
05.02.2020,ADULT SOCIAL CARE,SUPREME CARE SERVICES LTD,409.41,PHY LTS 18-64,HOMECARE - C&V,2103058670,1000059416
05.02.2020,ADULT SOCIAL CARE,SUPREME CARE SERVICES LTD,409.77,PHY LTS 18-64,HOMECARE - C&V,2103058552,1000059416
05.02.2020,ADULT SOCIAL CARE,SUPREME CARE SERVICES LTD,422.06,PHY LTS 18-64,HOMECARE - C&V,2103058651,1000059416
05.02.2020,ADULT SOCIAL CARE,SUPREME CARE SERVICES LTD,423.48,PHY LTS 18-64,HOMECARE - C&V,2103058505,1000059416
05.02.2020,ADULT SOCIAL CARE,SUPREME CARE SERVICES LTD,443.36,PHY LTS 18-64,HOMECARE - C&V,2103058847,1000059416
05.02.2020,ADULT SOCIAL CARE,SUPREME CARE SERVICES LTD,456.15,PHY LTS 18-64,HOMECARE - C&V,2103058511,1000059416
05.02.2020,ADULT SOCIAL CARE,SUPREME CARE SERVICES LTD,485.99,PHY LTS 18-64,HOMECARE - C&V,2103058625,1000059416
05.02.2020,ADULT SOCIAL CARE,SUPREME CARE SERVICES LTD,490.31,PHY LTS 18-64,HOMECARE - C&V,2103058744,1000059416
05.02.2020,ADULT SOCIAL CARE,SUPREME CARE SERVICES LTD,490.43,PHY LTS 18-64,HOMECARE - C&V,2103058592,1000059416
05.02.2020,ADULT SOCIAL CARE,SUPREME CARE SERVICES LTD,490.43,PHY LTS 18-64,HOMECARE - C&V,2103058712,1000059416
05.02.2020,ADULT SOCIAL CARE,SUPREME CARE SERVICES LTD,539.63,PHY LTS 18-64,HOMECARE - C&V,2103058647,1000059416
05.02.2020,ADULT SOCIAL CARE,SUPREME CARE SERVICES LTD,541.6,PHY LTS 18-64,HOMECARE - C&V,2103058687,1000059416
05.02.2020,ADULT SOCIAL CARE,SUPREME CARE SERVICES LTD,547.02,PHY LTS 18-64,HOMECARE - C&V,2103058506,1000059416
05.02.2020,ADULT SOCIAL CARE,SUPREME CARE SERVICES LTD,562.64,PHY LTS 18-64,HOMECARE - C&V,2103058643,1000059416
05.02.2020,ADULT SOCIAL CARE,SUPREME CARE SERVICES LTD,571.36,PHY LTS 18-64,HOMECARE - C&V,2103058528,1000059416
05.02.2020,ADULT SOCIAL CARE,SUPREME CARE SERVICES LTD,596.96,PHY LTS 18-64,HOMECARE - C&V,2103058557,1000059416
05.02.2020,ADULT SOCIAL CARE,SUPREME CARE SERVICES LTD,596.96,PHY LTS 18-64,HOMECARE - C&V,2103058752,1000059416
05.02.2020,ADULT SOCIAL CARE,SUPREME CARE SERVICES LTD,601.21,PHY LTS 18-64,HOMECARE - C&V,2103058549,1000059416
05.02.2020,ADULT SOCIAL CARE,SUPREME CARE SERVICES LTD,613.97,PHY LTS 18-64,HOMECARE - C&V,2103058853,1000059416
05.02.2020,ADULT SOCIAL CARE,SUPREME CARE SERVICES LTD,618.06,PHY LTS 18-64,HOMECARE - C&V,2103058499,1000059416
05.02.2020,ADULT SOCIAL CARE,SUPREME CARE SERVICES LTD,622.52,PHY LTS 18-64,HOMECARE - C&V,2103058694,1000059416
05.02.2020,ADULT SOCIAL CARE,SUPREME CARE SERVICES LTD,652.31,PHY LTS 18-64,HOMECARE - C&V,2103058512,1000059416
05.02.2020,ADULT SOCIAL CARE,SUPREME CARE SERVICES LTD,660.85,PHY LTS 18-64,HOMECARE - C&V,2103058497,1000059416
05.02.2020,ADULT SOCIAL CARE,SUPREME CARE SERVICES LTD,665.14,PHY LTS 18-64,HOMECARE - C&V,2103058614,1000059416
05.02.2020,ADULT SOCIAL CARE,SUPREME CARE SERVICES LTD,669.42,PHY LTS 18-64,HOMECARE - C&V,2103058595,1000059416
05.02.2020,ADULT SOCIAL CARE,SUPREME CARE SERVICES LTD,672.8,PHY LTS 18-64,HOMECARE - C&V,2103058827,1000059416
05.02.2020,ADULT SOCIAL CARE,SUPREME CARE SERVICES LTD,686.46,PHY LTS 18-64,HOMECARE - C&V,2103058719,1000059416
05.02.2020,ADULT SOCIAL CARE,SUPREME CARE SERVICES LTD,699.28,PHY LTS 18-64,HOMECARE - C&V,2103058882,1000059416
05.02.2020,ADULT SOCIAL CARE,SUPREME CARE SERVICES LTD,707.78,PHY LTS 18-64,HOMECARE - C&V,2103058699,1000059416
05.02.2020,ADULT SOCIAL CARE,SUPREME CARE SERVICES LTD,774.15,PHY LTS 18-64,HOMECARE - C&V,2103058698,1000059416
05.02.2020,ADULT SOCIAL CARE,SUPREME CARE SERVICES LTD,780.33,PHY LTS 18-64,HOMECARE - C&V,2103058745,1000059416
05.02.2020,ADULT SOCIAL CARE,SUPREME CARE SERVICES LTD,785.72,PHY LTS 18-64,HOMECARE - C&V,2103058602,1000059416
05.02.2020,ADULT SOCIAL CARE,SUPREME CARE SERVICES LTD,818.46,PHY LTS 18-64,HOMECARE - C&V,2103058848,1000059416
05.02.2020,ADULT SOCIAL CARE,SUPREME CARE SERVICES LTD,822.07,PHY LTS 18-64,HOMECARE - C&V,2103058721,1000059416
05.02.2020,ADULT SOCIAL CARE,SUPREME CARE SERVICES LTD,861.03,PHY LTS 18-64,HOMECARE - C&V,2103058623,1000059416
05.02.2020,ADULT SOCIAL CARE,SUPREME CARE SERVICES LTD,882.4,PHY LTS 18-64,HOMECARE - C&V,2103058824,1000059416
05.02.2020,ADULT SOCIAL CARE,SUPREME CARE SERVICES LTD,885.18,PHY LTS 18-64,HOMECARE - C&V,2103058825,1000059416
05.02.2020,ADULT SOCIAL CARE,SUPREME CARE SERVICES LTD,902.11,PHY LTS 18-64,HOMECARE - C&V,2103058900,1000059416
05.02.2020,ADULT SOCIAL CARE,SUPREME CARE SERVICES LTD,908.26,PHY LTS 18-64,HOMECARE - C&V,2103058775,1000059416
05.02.2020,ADULT SOCIAL CARE,SUPREME CARE SERVICES LTD,916.49,PHY LTS 18-64,HOMECARE - C&V,2103058899,1000059416
05.02.2020,ADULT SOCIAL CARE,SUPREME CARE SERVICES LTD,941.16,PHY LTS 18-64,HOMECARE - C&V,2103058604,1000059416
05.02.2020,ADULT SOCIAL CARE,SUPREME CARE SERVICES LTD,963.56,PHY LTS 18-64,HOMECARE - C&V,2103058584,1000059416
05.02.2020,ADULT SOCIAL CARE,SUPREME CARE SERVICES LTD,989.15,PHY LTS 18-64,HOMECARE - C&V,2103058575,1000059416
05.02.2020,ADULT SOCIAL CARE,SUPREME CARE SERVICES LTD,"1,023.09",PHY LTS 18-64,HOMECARE - C&V,2103058817,1000059416
05.02.2020,ADULT SOCIAL CARE,SUPREME CARE SERVICES LTD,"1,040.28",PHY LTS 18-64,HOMECARE - C&V,2103058588,1000059416
05.02.2020,ADULT SOCIAL CARE,SUPREME CARE SERVICES LTD,"1,129.76",PHY LTS 18-64,HOMECARE - C&V,2103058684,1000059416
05.02.2020,ADULT SOCIAL CARE,SUPREME CARE SERVICES LTD,"1,198.09",PHY LTS 18-64,HOMECARE - C&V,2103058510,1000059416
05.02.2020,ADULT SOCIAL CARE,SUPREME CARE SERVICES LTD,"1,260.33",PHY LTS 18-64,HOMECARE - C&V,2103058913,1000059416
05.02.2020,ADULT SOCIAL CARE,SUPREME CARE SERVICES LTD,"1,313.20",PHY LTS 18-64,HOMECARE - C&V,2103058857,1000059416
05.02.2020,ADULT SOCIAL CARE,SUPREME CARE SERVICES LTD,"1,317.46",PHY LTS 18-64,HOMECARE - C&V,2103058642,1000059416
05.02.2020,ADULT SOCIAL CARE,SUPREME CARE SERVICES LTD,"1,551.76",PHY LTS 18-64,HOMECARE - C&V,2103058515,1000059416
05.02.2020,ADULT SOCIAL CARE,SUPREME CARE SERVICES LTD,"1,769.05",PHY LTS 18-64,HOMECARE - C&V,2103058795,1000059416
05.02.2020,ADULT SOCIAL CARE,SUPREME CARE SERVICES LTD,"1,845.80",PHY LTS 18-64,HOMECARE - C&V,2103058493,1000059416
05.02.2020,ADULT SOCIAL CARE,SUPREME CARE SERVICES LTD,"2,064.20",PHY LTS 18-64,HOMECARE - C&V,2103058587,1000059416
05.02.2020,ADULT SOCIAL CARE,SUPREME CARE SERVICES LTD,"2,153.53",PHY LTS 18-64,HOMECARE - C&V,2103058710,1000059416
05.02.2020,ADULT SOCIAL CARE,SUPREME CARE SERVICES LTD,"3,124.81",PHY LTS 18-64,HOMECARE - C&V,2103058609,1000059416
05.02.2020,ADULT SOCIAL CARE,SUPREME CARE SERVICES LTD,"3,271.02",PHY LTS 18-64,HOMECARE - C&V,2103058581,1000059416
05.02.2020,ADULT SOCIAL CARE,SUPREME CARE SERVICES LTD,251.59,PHY LTS 65+,HOMECARE - C&V,2103058650,1000059416
05.02.2020,ADULT SOCIAL CARE,SUPREME CARE SERVICES LTD,255.78,PHY LTS 65+,HOMECARE - C&V,2103058676,1000059416
05.02.2020,ADULT SOCIAL CARE,SUPREME CARE SERVICES LTD,264.39,PHY LTS 65+,HOMECARE - C&V,2103058627,1000059416
05.02.2020,ADULT SOCIAL CARE,SUPREME CARE SERVICES LTD,268.6,PHY LTS 65+,HOMECARE - C&V,2103058780,1000059416
05.02.2020,ADULT SOCIAL CARE,SUPREME CARE SERVICES LTD,268.9,PHY LTS 65+,HOMECARE - C&V,2103058830,1000059416
05.02.2020,ADULT SOCIAL CARE,SUPREME CARE SERVICES LTD,272.84,PHY LTS 65+,HOMECARE - C&V,2103058761,1000059416
05.02.2020,ADULT SOCIAL CARE,SUPREME CARE SERVICES LTD,272.92,PHY LTS 65+,HOMECARE - C&V,2103058524,1000059416
05.02.2020,ADULT SOCIAL CARE,SUPREME CARE SERVICES LTD,277.18,PHY LTS 65+,HOMECARE - C&V,2103058829,1000059416
05.02.2020,ADULT SOCIAL CARE,SUPREME CARE SERVICES LTD,281.35,PHY LTS 65+,HOMECARE - C&V,2103058596,1000059416
05.02.2020,ADULT SOCIAL CARE,SUPREME CARE SERVICES LTD,299.62,PHY LTS 65+,HOMECARE - C&V,2103058484,1000059416
05.02.2020,ADULT SOCIAL CARE,SUPREME CARE SERVICES LTD,319.8,PHY LTS 65+,HOMECARE - C&V,2103058598,1000059416
05.02.2020,ADULT SOCIAL CARE,SUPREME CARE SERVICES LTD,332.53,PHY LTS 65+,HOMECARE - C&V,2103058779,1000059416
05.02.2020,ADULT SOCIAL CARE,SUPREME CARE SERVICES LTD,336.8,PHY LTS 65+,HOMECARE - C&V,2103058869,1000059416
05.02.2020,ADULT SOCIAL CARE,SUPREME CARE SERVICES LTD,341.15,PHY LTS 65+,HOMECARE - C&V,2103058525,1000059416
05.02.2020,ADULT SOCIAL CARE,SUPREME CARE SERVICES LTD,345.33,PHY LTS 65+,HOMECARE - C&V,2103058709,1000059416
05.02.2020,ADULT SOCIAL CARE,SUPREME CARE SERVICES LTD,347.93,PHY LTS 65+,HOMECARE - C&V,2103058773,1000059416
05.02.2020,ADULT SOCIAL CARE,SUPREME CARE SERVICES LTD,349.57,PHY LTS 65+,HOMECARE - C&V,2103058707,1000059416
05.02.2020,ADULT SOCIAL CARE,SUPREME CARE SERVICES LTD,349.62,PHY LTS 65+,HOMECARE - C&V,2103058547,1000059416
05.02.2020,ADULT SOCIAL CARE,SUPREME CARE SERVICES LTD,349.71,PHY LTS 65+,HOMECARE - C&V,2103058536,1000059416
05.02.2020,ADULT SOCIAL CARE,SUPREME CARE SERVICES LTD,353.99,PHY LTS 65+,HOMECARE - C&V,2103058563,1000059416
05.02.2020,ADULT SOCIAL CARE,SUPREME CARE SERVICES LTD,358.11,PHY LTS 65+,HOMECARE - C&V,2103058568,1000059416
05.02.2020,ADULT SOCIAL CARE,SUPREME CARE SERVICES LTD,358.12,PHY LTS 65+,HOMECARE - C&V,2103058688,1000059416
05.02.2020,ADULT SOCIAL CARE,SUPREME CARE SERVICES LTD,358.12,PHY LTS 65+,HOMECARE - C&V,2103058728,1000059416
05.02.2020,ADULT SOCIAL CARE,SUPREME CARE SERVICES LTD,358.12,PHY LTS 65+,HOMECARE - C&V,2103058769,1000059416
05.02.2020,ADULT SOCIAL CARE,SUPREME CARE SERVICES LTD,358.12,PHY LTS 65+,HOMECARE - C&V,2103058782,1000059416
05.02.2020,ADULT SOCIAL CARE,SUPREME CARE SERVICES LTD,358.12,PHY LTS 65+,HOMECARE - C&V,2103058815,1000059416
05.02.2020,ADULT SOCIAL CARE,SUPREME CARE SERVICES LTD,362.35,PHY LTS 65+,HOMECARE - C&V,2103058606,1000059416
05.02.2020,ADULT SOCIAL CARE,SUPREME CARE SERVICES LTD,362.43,PHY LTS 65+,HOMECARE - C&V,2103058558,1000059416
05.02.2020,ADULT SOCIAL CARE,SUPREME CARE SERVICES LTD,366.61,PHY LTS 65+,HOMECARE - C&V,2103058822,1000059416
05.02.2020,ADULT SOCIAL CARE,SUPREME CARE SERVICES LTD,370.85,PHY LTS 65+,HOMECARE - C&V,2103058481,1000059416
05.02.2020,ADULT SOCIAL CARE,SUPREME CARE SERVICES LTD,374.35,PHY LTS 65+,HOMECARE - C&V,2103058826,1000059416
05.02.2020,ADULT SOCIAL CARE,SUPREME CARE SERVICES LTD,375.19,PHY LTS 65+,HOMECARE - C&V,2103058754,1000059416
05.02.2020,ADULT SOCIAL CARE,SUPREME CARE SERVICES LTD,375.24,PHY LTS 65+,HOMECARE - C&V,2103058877,1000059416
05.02.2020,ADULT SOCIAL CARE,SUPREME CARE SERVICES LTD,379.41,PHY LTS 65+,HOMECARE - C&V,2103058872,1000059416
05.02.2020,ADULT SOCIAL CARE,SUPREME CARE SERVICES LTD,379.52,PHY LTS 65+,HOMECARE - C&V,2103058778,1000059416
05.02.2020,ADULT SOCIAL CARE,SUPREME CARE SERVICES LTD,383.75,PHY LTS 65+,HOMECARE - C&V,2103058644,1000059416
05.02.2020,ADULT SOCIAL CARE,SUPREME CARE SERVICES LTD,393.04,PHY LTS 65+,HOMECARE - C&V,2103058718,1000059416
05.02.2020,ADULT SOCIAL CARE,SUPREME CARE SERVICES LTD,408.38,PHY LTS 65+,HOMECARE - C&V,2103058866,1000059416
05.02.2020,ADULT SOCIAL CARE,SUPREME CARE SERVICES LTD,409.26,PHY LTS 65+,HOMECARE - C&V,2103058711,1000059416
05.02.2020,ADULT SOCIAL CARE,SUPREME CARE SERVICES LTD,409.34,PHY LTS 65+,HOMECARE - C&V,2103058660,1000059416
05.02.2020,ADULT SOCIAL CARE,SUPREME CARE SERVICES LTD,413.53,PHY LTS 65+,HOMECARE - C&V,2103058741,1000059416
05.02.2020,ADULT SOCIAL CARE,SUPREME CARE SERVICES LTD,413.67,PHY LTS 65+,HOMECARE - C&V,2103058492,1000059416
05.02.2020,ADULT SOCIAL CARE,SUPREME CARE SERVICES LTD,417.93,PHY LTS 65+,HOMECARE - C&V,2103058738,1000059416
05.02.2020,ADULT SOCIAL CARE,SUPREME CARE SERVICES LTD,419.15,PHY LTS 65+,HOMECARE - C&V,2103058679,1000059416
05.02.2020,ADULT SOCIAL CARE,SUPREME CARE SERVICES LTD,426.25,PHY LTS 65+,HOMECARE - C&V,2103058567,1000059416
05.02.2020,ADULT SOCIAL CARE,SUPREME CARE SERVICES LTD,426.32,PHY LTS 65+,HOMECARE - C&V,2103058652,1000059416
05.02.2020,ADULT SOCIAL CARE,SUPREME CARE SERVICES LTD,426.32,PHY LTS 65+,HOMECARE - C&V,2103058807,1000059416
05.02.2020,ADULT SOCIAL CARE,SUPREME CARE SERVICES LTD,430.66,PHY LTS 65+,HOMECARE - C&V,2103058562,1000059416
05.02.2020,ADULT SOCIAL CARE,SUPREME CARE SERVICES LTD,439.09,PHY LTS 65+,HOMECARE - C&V,2103058605,1000059416
05.02.2020,ADULT SOCIAL CARE,SUPREME CARE SERVICES LTD,455.28,PHY LTS 65+,HOMECARE - C&V,2103058696,1000059416
05.02.2020,ADULT SOCIAL CARE,SUPREME CARE SERVICES LTD,460.44,PHY LTS 65+,HOMECARE - C&V,2103058564,1000059416
05.02.2020,ADULT SOCIAL CARE,SUPREME CARE SERVICES LTD,460.58,PHY LTS 65+,HOMECARE - C&V,2103058610,1000059416
05.02.2020,ADULT SOCIAL CARE,SUPREME CARE SERVICES LTD,473.3,PHY LTS 65+,HOMECARE - C&V,2103058810,1000059416
05.02.2020,ADULT SOCIAL CARE,SUPREME CARE SERVICES LTD,473.33,PHY LTS 65+,HOMECARE - C&V,2103058833,1000059416
05.02.2020,ADULT SOCIAL CARE,SUPREME CARE SERVICES LTD,477.4,PHY LTS 65+,HOMECARE - C&V,2103058805,1000059416
05.02.2020,ADULT SOCIAL CARE,SUPREME CARE SERVICES LTD,477.6,PHY LTS 65+,HOMECARE - C&V,2103058607,1000059416
05.02.2020,ADULT SOCIAL CARE,SUPREME CARE SERVICES LTD,481.68,PHY LTS 65+,HOMECARE - C&V,2103058791,1000059416
05.02.2020,ADULT SOCIAL CARE,SUPREME CARE SERVICES LTD,494.7,PHY LTS 65+,HOMECARE - C&V,2103058858,1000059416
05.02.2020,ADULT SOCIAL CARE,SUPREME CARE SERVICES LTD,507.59,PHY LTS 65+,HOMECARE - C&V,2103058479,1000059416
05.02.2020,ADULT SOCIAL CARE,SUPREME CARE SERVICES LTD,513.35,PHY LTS 65+,HOMECARE - C&V,2103058655,1000059416
05.02.2020,ADULT SOCIAL CARE,SUPREME CARE SERVICES LTD,514.06,PHY LTS 65+,HOMECARE - C&V,2103058910,1000059416
05.02.2020,ADULT SOCIAL CARE,SUPREME CARE SERVICES LTD,515.93,PHY LTS 65+,HOMECARE - C&V,2103058735,1000059416
05.02.2020,ADULT SOCIAL CARE,SUPREME CARE SERVICES LTD,537.18,PHY LTS 65+,HOMECARE - C&V,2103058686,1000059416
05.02.2020,ADULT SOCIAL CARE,SUPREME CARE SERVICES LTD,545.86,PHY LTS 65+,HOMECARE - C&V,2103058901,1000059416
05.02.2020,ADULT SOCIAL CARE,SUPREME CARE SERVICES LTD,545.88,PHY LTS 65+,HOMECARE - C&V,2103058507,1000059416
05.02.2020,ADULT SOCIAL CARE,SUPREME CARE SERVICES LTD,550,PHY LTS 65+,HOMECARE - C&V,2103058763,1000059416
05.02.2020,ADULT SOCIAL CARE,SUPREME CARE SERVICES LTD,559.38,PHY LTS 65+,HOMECARE - C&V,2103058768,1000059416
05.02.2020,ADULT SOCIAL CARE,SUPREME CARE SERVICES LTD,562.46,PHY LTS 65+,HOMECARE - C&V,2103058491,1000059416
05.02.2020,ADULT SOCIAL CARE,SUPREME CARE SERVICES LTD,562.82,PHY LTS 65+,HOMECARE - C&V,2103058739,1000059416
05.02.2020,ADULT SOCIAL CARE,SUPREME CARE SERVICES LTD,563.79,PHY LTS 65+,HOMECARE - C&V,2103058701,1000059416
05.02.2020,ADULT SOCIAL CARE,SUPREME CARE SERVICES LTD,570.15,PHY LTS 65+,HOMECARE - C&V,2103058657,1000059416
05.02.2020,ADULT SOCIAL CARE,SUPREME CARE SERVICES LTD,571.24,PHY LTS 65+,HOMECARE - C&V,2103058811,1000059416
05.02.2020,ADULT SOCIAL CARE,SUPREME CARE SERVICES LTD,572.88,PHY LTS 65+,HOMECARE - C&V,2103058648,1000059416
05.02.2020,ADULT SOCIAL CARE,SUPREME CARE SERVICES LTD,572.88,PHY LTS 65+,HOMECARE - C&V,2103058839,1000059416
05.02.2020,ADULT SOCIAL CARE,SUPREME CARE SERVICES LTD,575.64,PHY LTS 65+,HOMECARE - C&V,2103058841,1000059416
05.02.2020,ADULT SOCIAL CARE,SUPREME CARE SERVICES LTD,583.11,PHY LTS 65+,HOMECARE - C&V,2103058892,1000059416
05.02.2020,ADULT SOCIAL CARE,SUPREME CARE SERVICES LTD,584.15,PHY LTS 65+,HOMECARE - C&V,2103058837,1000059416
05.02.2020,ADULT SOCIAL CARE,SUPREME CARE SERVICES LTD,584.17,PHY LTS 65+,HOMECARE - C&V,2103058854,1000059416
05.02.2020,ADULT SOCIAL CARE,SUPREME CARE SERVICES LTD,588.48,PHY LTS 65+,HOMECARE - C&V,2103058518,1000059416
05.02.2020,ADULT SOCIAL CARE,SUPREME CARE SERVICES LTD,605.45,PHY LTS 65+,HOMECARE - C&V,2103058873,1000059416
05.02.2020,ADULT SOCIAL CARE,SUPREME CARE SERVICES LTD,618.24,PHY LTS 65+,HOMECARE - C&V,2103058890,1000059416
05.02.2020,ADULT SOCIAL CARE,SUPREME CARE SERVICES LTD,618.26,PHY LTS 65+,HOMECARE - C&V,2103058790,1000059416
05.02.2020,ADULT SOCIAL CARE,SUPREME CARE SERVICES LTD,622.51,PHY LTS 65+,HOMECARE - C&V,2103058793,1000059416
05.02.2020,ADULT SOCIAL CARE,SUPREME CARE SERVICES LTD,622.53,PHY LTS 65+,HOMECARE - C&V,2103058897,1000059416
05.02.2020,ADULT SOCIAL CARE,SUPREME CARE SERVICES LTD,633.51,PHY LTS 65+,HOMECARE - C&V,2103058756,1000059416
05.02.2020,ADULT SOCIAL CARE,SUPREME CARE SERVICES LTD,643.79,PHY LTS 65+,HOMECARE - C&V,2103058885,1000059416
05.02.2020,ADULT SOCIAL CARE,SUPREME CARE SERVICES LTD,644.86,PHY LTS 65+,HOMECARE - C&V,2103058559,1000059416
05.02.2020,ADULT SOCIAL CARE,SUPREME CARE SERVICES LTD,647.7,PHY LTS 65+,HOMECARE - C&V,2103058579,1000059416
05.02.2020,ADULT SOCIAL CARE,SUPREME CARE SERVICES LTD,652.14,PHY LTS 65+,HOMECARE - C&V,2103058569,1000059416
05.02.2020,ADULT SOCIAL CARE,SUPREME CARE SERVICES LTD,654.88,PHY LTS 65+,HOMECARE - C&V,2103058583,1000059416
05.02.2020,ADULT SOCIAL CARE,SUPREME CARE SERVICES LTD,656.62,PHY LTS 65+,HOMECARE - C&V,2103058626,1000059416
05.02.2020,ADULT SOCIAL CARE,SUPREME CARE SERVICES LTD,665.16,PHY LTS 65+,HOMECARE - C&V,2103058593,1000059416
05.02.2020,ADULT SOCIAL CARE,SUPREME CARE SERVICES LTD,669.54,PHY LTS 65+,HOMECARE - C&V,2103058618,1000059416
05.02.2020,ADULT SOCIAL CARE,SUPREME CARE SERVICES LTD,673.68,PHY LTS 65+,HOMECARE - C&V,2103058638,1000059416
05.02.2020,ADULT SOCIAL CARE,SUPREME CARE SERVICES LTD,678.01,PHY LTS 65+,HOMECARE - C&V,2103058801,1000059416
05.02.2020,ADULT SOCIAL CARE,SUPREME CARE SERVICES LTD,690.73,PHY LTS 65+,HOMECARE - C&V,2103058545,1000059416
05.02.2020,ADULT SOCIAL CARE,SUPREME CARE SERVICES LTD,694.84,PHY LTS 65+,HOMECARE - C&V,2103058864,1000059416
05.02.2020,ADULT SOCIAL CARE,SUPREME CARE SERVICES LTD,695.02,PHY LTS 65+,HOMECARE - C&V,2103058570,1000059416
05.02.2020,ADULT SOCIAL CARE,SUPREME CARE SERVICES LTD,695.07,PHY LTS 65+,HOMECARE - C&V,2103058797,1000059416
05.02.2020,ADULT SOCIAL CARE,SUPREME CARE SERVICES LTD,703.35,PHY LTS 65+,HOMECARE - C&V,2103058794,1000059416
05.02.2020,ADULT SOCIAL CARE,SUPREME CARE SERVICES LTD,712.12,PHY LTS 65+,HOMECARE - C&V,2103058898,1000059416
05.02.2020,ADULT SOCIAL CARE,SUPREME CARE SERVICES LTD,716.31,PHY LTS 65+,HOMECARE - C&V,2103058697,1000059416
05.02.2020,ADULT SOCIAL CARE,SUPREME CARE SERVICES LTD,720.63,PHY LTS 65+,HOMECARE - C&V,2103058673,1000059416
05.02.2020,ADULT SOCIAL CARE,SUPREME CARE SERVICES LTD,720.74,PHY LTS 65+,HOMECARE - C&V,2103058529,1000059416
05.02.2020,ADULT SOCIAL CARE,SUPREME CARE SERVICES LTD,725.2,PHY LTS 65+,HOMECARE - C&V,2103058693,1000059416
05.02.2020,ADULT SOCIAL CARE,SUPREME CARE SERVICES LTD,733.05,PHY LTS 65+,HOMECARE - C&V,2103058708,1000059416
05.02.2020,ADULT SOCIAL CARE,SUPREME CARE SERVICES LTD,733.3,PHY LTS 65+,HOMECARE - C&V,2103058533,1000059416
05.02.2020,ADULT SOCIAL CARE,SUPREME CARE SERVICES LTD,733.36,PHY LTS 65+,HOMECARE - C&V,2103058891,1000059416
05.02.2020,ADULT SOCIAL CARE,SUPREME CARE SERVICES LTD,737.62,PHY LTS 65+,HOMECARE - C&V,2103058787,1000059416
05.02.2020,ADULT SOCIAL CARE,SUPREME CARE SERVICES LTD,741.86,PHY LTS 65+,HOMECARE - C&V,2103058504,1000059416
05.02.2020,ADULT SOCIAL CARE,SUPREME CARE SERVICES LTD,741.88,PHY LTS 65+,HOMECARE - C&V,2103058482,1000059416
05.02.2020,ADULT SOCIAL CARE,SUPREME CARE SERVICES LTD,750.32,PHY LTS 65+,HOMECARE - C&V,2103058809,1000059416
05.02.2020,ADULT SOCIAL CARE,SUPREME CARE SERVICES LTD,767.4,PHY LTS 65+,HOMECARE - C&V,2103058842,1000059416
05.02.2020,ADULT SOCIAL CARE,SUPREME CARE SERVICES LTD,767.56,PHY LTS 65+,HOMECARE - C&V,2103058727,1000059416
05.02.2020,ADULT SOCIAL CARE,SUPREME CARE SERVICES LTD,776.13,PHY LTS 65+,HOMECARE - C&V,2103058700,1000059416
05.02.2020,ADULT SOCIAL CARE,SUPREME CARE SERVICES LTD,777.19,PHY LTS 65+,HOMECARE - C&V,2103058764,1000059416
05.02.2020,ADULT SOCIAL CARE,SUPREME CARE SERVICES LTD,780.46,PHY LTS 65+,HOMECARE - C&V,2103058538,1000059416
05.02.2020,ADULT SOCIAL CARE,SUPREME CARE SERVICES LTD,785.24,PHY LTS 65+,HOMECARE - C&V,2103058832,1000059416
05.02.2020,ADULT SOCIAL CARE,SUPREME CARE SERVICES LTD,792.97,PHY LTS 65+,HOMECARE - C&V,2103058702,1000059416
05.02.2020,ADULT SOCIAL CARE,SUPREME CARE SERVICES LTD,793.23,PHY LTS 65+,HOMECARE - C&V,2103058863,1000059416
05.02.2020,ADULT SOCIAL CARE,SUPREME CARE SERVICES LTD,801.97,PHY LTS 65+,HOMECARE - C&V,2103058868,1000059416
05.02.2020,ADULT SOCIAL CARE,SUPREME CARE SERVICES LTD,805.64,PHY LTS 65+,HOMECARE - C&V,2103058750,1000059416
05.02.2020,ADULT SOCIAL CARE,SUPREME CARE SERVICES LTD,818.84,PHY LTS 65+,HOMECARE - C&V,2103058717,1000059416
05.02.2020,ADULT SOCIAL CARE,SUPREME CARE SERVICES LTD,822.8,PHY LTS 65+,HOMECARE - C&V,2103058534,1000059416
05.02.2020,ADULT SOCIAL CARE,SUPREME CARE SERVICES LTD,824.48,PHY LTS 65+,HOMECARE - C&V,2103058747,1000059416
05.02.2020,ADULT SOCIAL CARE,SUPREME CARE SERVICES LTD,827.08,PHY LTS 65+,HOMECARE - C&V,2103058541,1000059416
05.02.2020,ADULT SOCIAL CARE,SUPREME CARE SERVICES LTD,831.26,PHY LTS 65+,HOMECARE - C&V,2103058765,1000059416
05.02.2020,ADULT SOCIAL CARE,SUPREME CARE SERVICES LTD,835.8,PHY LTS 65+,HOMECARE - C&V,2103058542,1000059416
05.02.2020,ADULT SOCIAL CARE,SUPREME CARE SERVICES LTD,835.8,PHY LTS 65+,HOMECARE - C&V,2103058580,1000059416
05.02.2020,ADULT SOCIAL CARE,SUPREME CARE SERVICES LTD,842.84,PHY LTS 65+,HOMECARE - C&V,2103058732,1000059416
05.02.2020,ADULT SOCIAL CARE,SUPREME CARE SERVICES LTD,844.3,PHY LTS 65+,HOMECARE - C&V,2103058690,1000059416
05.02.2020,ADULT SOCIAL CARE,SUPREME CARE SERVICES LTD,844.32,PHY LTS 65+,HOMECARE - C&V,2103058874,1000059416
05.02.2020,ADULT SOCIAL CARE,SUPREME CARE SERVICES LTD,848.48,PHY LTS 65+,HOMECARE - C&V,2103058611,1000059416
05.02.2020,ADULT SOCIAL CARE,SUPREME CARE SERVICES LTD,848.53,PHY LTS 65+,HOMECARE - C&V,2103058705,1000059416
05.02.2020,ADULT SOCIAL CARE,SUPREME CARE SERVICES LTD,852.5,PHY LTS 65+,HOMECARE - C&V,2103058663,1000059416
05.02.2020,ADULT SOCIAL CARE,SUPREME CARE SERVICES LTD,857.11,PHY LTS 65+,HOMECARE - C&V,2103058574,1000059416
05.02.2020,ADULT SOCIAL CARE,SUPREME CARE SERVICES LTD,860.46,PHY LTS 65+,HOMECARE - C&V,2103058500,1000059416
05.02.2020,ADULT SOCIAL CARE,SUPREME CARE SERVICES LTD,861.17,PHY LTS 65+,HOMECARE - C&V,2103058513,1000059416
05.02.2020,ADULT SOCIAL CARE,SUPREME CARE SERVICES LTD,861.36,PHY LTS 65+,HOMECARE - C&V,2103058838,1000059416
05.02.2020,ADULT SOCIAL CARE,SUPREME CARE SERVICES LTD,862.11,PHY LTS 65+,HOMECARE - C&V,2103058770,1000059416
05.02.2020,ADULT SOCIAL CARE,SUPREME CARE SERVICES LTD,886.6,PHY LTS 65+,HOMECARE - C&V,2103058724,1000059416
05.02.2020,ADULT SOCIAL CARE,SUPREME CARE SERVICES LTD,900.92,PHY LTS 65+,HOMECARE - C&V,2103058502,1000059416
05.02.2020,ADULT SOCIAL CARE,SUPREME CARE SERVICES LTD,912.15,PHY LTS 65+,HOMECARE - C&V,2103058645,1000059416
05.02.2020,ADULT SOCIAL CARE,SUPREME CARE SERVICES LTD,929.54,PHY LTS 65+,HOMECARE - C&V,2103058555,1000059416
05.02.2020,ADULT SOCIAL CARE,SUPREME CARE SERVICES LTD,929.55,PHY LTS 65+,HOMECARE - C&V,2103058656,1000059416
05.02.2020,ADULT SOCIAL CARE,SUPREME CARE SERVICES LTD,933.6,PHY LTS 65+,HOMECARE - C&V,2103058831,1000059416
05.02.2020,ADULT SOCIAL CARE,SUPREME CARE SERVICES LTD,938.08,PHY LTS 65+,HOMECARE - C&V,2103058619,1000059416
05.02.2020,ADULT SOCIAL CARE,SUPREME CARE SERVICES LTD,938.08,PHY LTS 65+,HOMECARE - C&V,2103058828,1000059416
05.02.2020,ADULT SOCIAL CARE,SUPREME CARE SERVICES LTD,938.15,PHY LTS 65+,HOMECARE - C&V,2103058845,1000059416
05.02.2020,ADULT SOCIAL CARE,SUPREME CARE SERVICES LTD,950.86,PHY LTS 65+,HOMECARE - C&V,2103058757,1000059416
05.02.2020,ADULT SOCIAL CARE,SUPREME CARE SERVICES LTD,957.82,PHY LTS 65+,HOMECARE - C&V,2103058578,1000059416
05.02.2020,ADULT SOCIAL CARE,SUPREME CARE SERVICES LTD,967.58,PHY LTS 65+,HOMECARE - C&V,2103058781,1000059416
05.02.2020,ADULT SOCIAL CARE,SUPREME CARE SERVICES LTD,972.14,PHY LTS 65+,HOMECARE - C&V,2103058554,1000059416
05.02.2020,ADULT SOCIAL CARE,SUPREME CARE SERVICES LTD,976.51,PHY LTS 65+,HOMECARE - C&V,2103058861,1000059416
05.02.2020,ADULT SOCIAL CARE,SUPREME CARE SERVICES LTD,976.62,PHY LTS 65+,HOMECARE - C&V,2103058612,1000059416
05.02.2020,ADULT SOCIAL CARE,SUPREME CARE SERVICES LTD,984.97,PHY LTS 65+,HOMECARE - C&V,2103058486,1000059416
05.02.2020,ADULT SOCIAL CARE,SUPREME CARE SERVICES LTD,993.5,PHY LTS 65+,HOMECARE - C&V,2103058685,1000059416
05.02.2020,ADULT SOCIAL CARE,SUPREME CARE SERVICES LTD,993.5,PHY LTS 65+,HOMECARE - C&V,2103058774,1000059416
05.02.2020,ADULT SOCIAL CARE,SUPREME CARE SERVICES LTD,"1,005.96",PHY LTS 65+,HOMECARE - C&V,2103058850,1000059416
05.02.2020,ADULT SOCIAL CARE,SUPREME CARE SERVICES LTD,"1,023.27",PHY LTS 65+,HOMECARE - C&V,2103058783,1000059416
05.02.2020,ADULT SOCIAL CARE,SUPREME CARE SERVICES LTD,"1,023.28",PHY LTS 65+,HOMECARE - C&V,2103058519,1000059416
05.02.2020,ADULT SOCIAL CARE,SUPREME CARE SERVICES LTD,"1,045.19",PHY LTS 65+,HOMECARE - C&V,2103058733,1000059416
05.02.2020,ADULT SOCIAL CARE,SUPREME CARE SERVICES LTD,"1,053.29",PHY LTS 65+,HOMECARE - C&V,2103058804,1000059416
05.02.2020,ADULT SOCIAL CARE,SUPREME CARE SERVICES LTD,"1,053.92",PHY LTS 65+,HOMECARE - C&V,2103058726,1000059416
05.02.2020,ADULT SOCIAL CARE,SUPREME CARE SERVICES LTD,"1,061.74",PHY LTS 65+,HOMECARE - C&V,2103058615,1000059416
05.02.2020,ADULT SOCIAL CARE,SUPREME CARE SERVICES LTD,"1,070.44",PHY LTS 65+,HOMECARE - C&V,2103058844,1000059416
05.02.2020,ADULT SOCIAL CARE,SUPREME CARE SERVICES LTD,"1,073.23",PHY LTS 65+,HOMECARE - C&V,2103058819,1000059416
05.02.2020,ADULT SOCIAL CARE,SUPREME CARE SERVICES LTD,"1,082.68",PHY LTS 65+,HOMECARE - C&V,2103058487,1000059416
05.02.2020,ADULT SOCIAL CARE,SUPREME CARE SERVICES LTD,"1,095.93",PHY LTS 65+,HOMECARE - C&V,2103058477,1000059416
05.02.2020,ADULT SOCIAL CARE,SUPREME CARE SERVICES LTD,"1,095.94",PHY LTS 65+,HOMECARE - C&V,2103058662,1000059416
05.02.2020,ADULT SOCIAL CARE,SUPREME CARE SERVICES LTD,"1,100.19",PHY LTS 65+,HOMECARE - C&V,2103058630,1000059416
05.02.2020,ADULT SOCIAL CARE,SUPREME CARE SERVICES LTD,"1,104.07",PHY LTS 65+,HOMECARE - C&V,2103058755,1000059416
05.02.2020,ADULT SOCIAL CARE,SUPREME CARE SERVICES LTD,"1,104.17",PHY LTS 65+,HOMECARE - C&V,2103058543,1000059416
05.02.2020,ADULT SOCIAL CARE,SUPREME CARE SERVICES LTD,"1,119.84",PHY LTS 65+,HOMECARE - C&V,2103058893,1000059416
05.02.2020,ADULT SOCIAL CARE,SUPREME CARE SERVICES LTD,"1,131.14",PHY LTS 65+,HOMECARE - C&V,2103058785,1000059416
05.02.2020,ADULT SOCIAL CARE,SUPREME CARE SERVICES LTD,"1,138.54",PHY LTS 65+,HOMECARE - C&V,2103058742,1000059416
05.02.2020,ADULT SOCIAL CARE,SUPREME CARE SERVICES LTD,"1,167.65",PHY LTS 65+,HOMECARE - C&V,2103058480,1000059416
05.02.2020,ADULT SOCIAL CARE,SUPREME CARE SERVICES LTD,"1,168.16",PHY LTS 65+,HOMECARE - C&V,2103058560,1000059416
05.02.2020,ADULT SOCIAL CARE,SUPREME CARE SERVICES LTD,"1,172.64",PHY LTS 65+,HOMECARE - C&V,2103058816,1000059416
05.02.2020,ADULT SOCIAL CARE,SUPREME CARE SERVICES LTD,"1,174.63",PHY LTS 65+,HOMECARE - C&V,2103058681,1000059416
05.02.2020,ADULT SOCIAL CARE,SUPREME CARE SERVICES LTD,"1,180.98",PHY LTS 65+,HOMECARE - C&V,2103058731,1000059416
05.02.2020,ADULT SOCIAL CARE,SUPREME CARE SERVICES LTD,"1,181.06",PHY LTS 65+,HOMECARE - C&V,2103058703,1000059416
05.02.2020,ADULT SOCIAL CARE,SUPREME CARE SERVICES LTD,"1,181.07",PHY LTS 65+,HOMECARE - C&V,2103058617,1000059416
05.02.2020,ADULT SOCIAL CARE,SUPREME CARE SERVICES LTD,"1,185.38",PHY LTS 65+,HOMECARE - C&V,2103058601,1000059416
05.02.2020,ADULT SOCIAL CARE,SUPREME CARE SERVICES LTD,"1,193.92",PHY LTS 65+,HOMECARE - C&V,2103058852,1000059416
05.02.2020,ADULT SOCIAL CARE,SUPREME CARE SERVICES LTD,"1,193.96",PHY LTS 65+,HOMECARE - C&V,2103058635,1000059416
05.02.2020,ADULT SOCIAL CARE,SUPREME CARE SERVICES LTD,"1,198.25",PHY LTS 65+,HOMECARE - C&V,2103058720,1000059416
05.02.2020,ADULT SOCIAL CARE,SUPREME CARE SERVICES LTD,"1,215.23",PHY LTS 65+,HOMECARE - C&V,2103058862,1000059416
05.02.2020,ADULT SOCIAL CARE,SUPREME CARE SERVICES LTD,"1,223.70",PHY LTS 65+,HOMECARE - C&V,2103058846,1000059416
05.02.2020,ADULT SOCIAL CARE,SUPREME CARE SERVICES LTD,"1,228.08",PHY LTS 65+,HOMECARE - C&V,2103058639,1000059416
05.02.2020,ADULT SOCIAL CARE,SUPREME CARE SERVICES LTD,"1,232.08",PHY LTS 65+,HOMECARE - C&V,2103058680,1000059416
05.02.2020,ADULT SOCIAL CARE,SUPREME CARE SERVICES LTD,"1,240.62",PHY LTS 65+,HOMECARE - C&V,2103058906,1000059416
05.02.2020,ADULT SOCIAL CARE,SUPREME CARE SERVICES LTD,"1,313.19",PHY LTS 65+,HOMECARE - C&V,2103058725,1000059416
05.02.2020,ADULT SOCIAL CARE,SUPREME CARE SERVICES LTD,"1,313.20",PHY LTS 65+,HOMECARE - C&V,2103058691,1000059416
05.02.2020,ADULT SOCIAL CARE,SUPREME CARE SERVICES LTD,"1,338.84",PHY LTS 65+,HOMECARE - C&V,2103058620,1000059416
05.02.2020,ADULT SOCIAL CARE,SUPREME CARE SERVICES LTD,"1,338.89",PHY LTS 65+,HOMECARE - C&V,2103058762,1000059416
05.02.2020,ADULT SOCIAL CARE,SUPREME CARE SERVICES LTD,"1,347.00",PHY LTS 65+,HOMECARE - C&V,2103058659,1000059416
05.02.2020,ADULT SOCIAL CARE,SUPREME CARE SERVICES LTD,"1,347.36",PHY LTS 65+,HOMECARE - C&V,2103058668,1000059416
05.02.2020,ADULT SOCIAL CARE,SUPREME CARE SERVICES LTD,"1,434.12",PHY LTS 65+,HOMECARE - C&V,2103058759,1000059416
05.02.2020,ADULT SOCIAL CARE,SUPREME CARE SERVICES LTD,"1,455.62",PHY LTS 65+,HOMECARE - C&V,2103058582,1000059416
05.02.2020,ADULT SOCIAL CARE,SUPREME CARE SERVICES LTD,"1,538.98",PHY LTS 65+,HOMECARE - C&V,2103058771,1000059416
05.02.2020,ADULT SOCIAL CARE,SUPREME CARE SERVICES LTD,"1,591.33",PHY LTS 65+,HOMECARE - C&V,2103058875,1000059416
05.02.2020,ADULT SOCIAL CARE,SUPREME CARE SERVICES LTD,"1,682.27",PHY LTS 65+,HOMECARE - C&V,2103058551,1000059416
05.02.2020,ADULT SOCIAL CARE,SUPREME CARE SERVICES LTD,"1,688.64",PHY LTS 65+,HOMECARE - C&V,2103058760,1000059416
05.02.2020,ADULT SOCIAL CARE,SUPREME CARE SERVICES LTD,"1,697.14",PHY LTS 65+,HOMECARE - C&V,2103058766,1000059416
05.02.2020,ADULT SOCIAL CARE,SUPREME CARE SERVICES LTD,"1,735.03",PHY LTS 65+,HOMECARE - C&V,2103058714,1000059416
05.02.2020,ADULT SOCIAL CARE,SUPREME CARE SERVICES LTD,"1,795.13",PHY LTS 65+,HOMECARE - C&V,2103058821,1000059416
05.02.2020,ADULT SOCIAL CARE,SUPREME CARE SERVICES LTD,"1,850.92",PHY LTS 65+,HOMECARE - C&V,2103058880,1000059416
05.02.2020,ADULT SOCIAL CARE,SUPREME CARE SERVICES LTD,"1,863.49",PHY LTS 65+,HOMECARE - C&V,2103058665,1000059416
05.02.2020,ADULT SOCIAL CARE,SUPREME CARE SERVICES LTD,"2,059.26",PHY LTS 65+,HOMECARE - C&V,2103058889,1000059416
05.02.2020,ADULT SOCIAL CARE,SUPREME CARE SERVICES LTD,"2,059.67",PHY LTS 65+,HOMECARE - C&V,2103058622,1000059416
05.02.2020,ADULT SOCIAL CARE,SUPREME CARE SERVICES LTD,"2,091.63",PHY LTS 65+,HOMECARE - C&V,2103058530,1000059416
05.02.2020,ADULT SOCIAL CARE,SUPREME CARE SERVICES LTD,"2,118.60",PHY LTS 65+,HOMECARE - C&V,2103058646,1000059416
05.02.2020,ADULT SOCIAL CARE,SUPREME CARE SERVICES LTD,"2,151.56",PHY LTS 65+,HOMECARE - C&V,2103058776,1000059416
05.02.2020,ADULT SOCIAL CARE,SUPREME CARE SERVICES LTD,"2,169.77",PHY LTS 65+,HOMECARE - C&V,2103058498,1000059416
05.02.2020,ADULT SOCIAL CARE,SUPREME CARE SERVICES LTD,"2,213.14",PHY LTS 65+,HOMECARE - C&V,2103058674,1000059416
05.02.2020,ADULT SOCIAL CARE,SUPREME CARE SERVICES LTD,"2,230.15",PHY LTS 65+,HOMECARE - C&V,2103058483,1000059416
05.02.2020,ADULT SOCIAL CARE,SUPREME CARE SERVICES LTD,"2,289.90",PHY LTS 65+,HOMECARE - C&V,2103058566,1000059416
05.02.2020,ADULT SOCIAL CARE,SUPREME CARE SERVICES LTD,"2,298.40",PHY LTS 65+,HOMECARE - C&V,2103058870,1000059416
05.02.2020,ADULT SOCIAL CARE,SUPREME CARE SERVICES LTD,"2,305.11",PHY LTS 65+,HOMECARE - C&V,2103058856,1000059416
05.02.2020,ADULT SOCIAL CARE,SUPREME CARE SERVICES LTD,"2,336.75",PHY LTS 65+,HOMECARE - C&V,2103058736,1000059416
05.02.2020,ADULT SOCIAL CARE,SUPREME CARE SERVICES LTD,"2,417.22",PHY LTS 65+,HOMECARE - C&V,2103058571,1000059416
05.02.2020,ADULT SOCIAL CARE,SUPREME CARE SERVICES LTD,"2,451.77",PHY LTS 65+,HOMECARE - C&V,2103058723,1000059416
05.02.2020,ADULT SOCIAL CARE,SUPREME CARE SERVICES LTD,"2,498.62",PHY LTS 65+,HOMECARE - C&V,2103058835,1000059416
05.02.2020,ADULT SOCIAL CARE,SUPREME CARE SERVICES LTD,"2,520.02",PHY LTS 65+,HOMECARE - C&V,2103058666,1000059416
05.02.2020,ADULT SOCIAL CARE,SUPREME CARE SERVICES LTD,"2,596.63",PHY LTS 65+,HOMECARE - C&V,2103058836,1000059416
05.02.2020,ADULT SOCIAL CARE,SUPREME CARE SERVICES LTD,"2,626.71",PHY LTS 65+,HOMECARE - C&V,2103058516,1000059416
05.02.2020,ADULT SOCIAL CARE,SUPREME CARE SERVICES LTD,"2,741.43",PHY LTS 65+,HOMECARE - C&V,2103058495,1000059416
05.02.2020,ADULT SOCIAL CARE,SUPREME CARE SERVICES LTD,"2,988.56",PHY LTS 65+,HOMECARE - C&V,2103058682,1000059416
05.02.2020,ADULT SOCIAL CARE,SUPREME CARE SERVICES LTD,"3,559.28",PHY LTS 65+,HOMECARE - C&V,2103058820,1000059416
05.02.2020,ADULT SOCIAL CARE,SUPREME CARE SERVICES LTD,281.44,PHY LTS 65+,HOMECARE - SPOT,2103058535,1000059416
05.02.2020,ADULT SOCIAL CARE,SUPREME CARE SERVICES LTD,375.13,PHY LTS 65+,HOMECARE - SPOT,2103058546,1000059416
05.02.2020,ADULT SOCIAL CARE,SUPREME CARE SERVICES LTD,674.68,PHY LTS 65+,HOMECARE - SPOT,2103058654,1000059416
05.02.2020,ADULT SOCIAL CARE,SUPREME CARE SERVICES LTD,818.75,PHY LTS 65+,HOMECARE - SPOT,2103058503,1000059416
05.02.2020,ADULT SOCIAL CARE,SUPREME CARE SERVICES LTD,432.94,PHY STS 18-64,HOMECARE - IC,2103058531,1000059416
05.02.2020,ADULT SOCIAL CARE,SUPREME CARE SERVICES LTD,264.39,SEN LTS 65+,HOMECARE - C&V,2103058746,1000059416
05.02.2020,ADULT SOCIAL CARE,SUPREME CARE SERVICES LTD,554.12,SEN LTS 65+,HOMECARE - C&V,2103058669,1000059416
05.02.2020,ADULT SOCIAL CARE,SUPREME CARE SERVICES LTD,"2,545.53",SEN LTS 65+,HOMECARE - C&V,2103058859,1000059416
05.02.2020,ADULT SOCIAL CARE,SUPREME CARE SERVICES LTD,366.61,SOCIAL ISOLATION,HOMECARE - C&V,2103058608,1000059416
05.02.2020,ADULT SOCIAL CARE,SUPREME CARE SERVICES LTD,430.58,SOCIAL ISOLATION,HOMECARE - C&V,2103058849,1000059416
05.02.2020,ADULT SOCIAL CARE,SUPREME CARE SERVICES LTD,571.43,SOCIAL ISOLATION,HOMECARE - C&V,2103058565,1000059416
05.02.2020,ADULT SOCIAL CARE,SUPREME CARE SERVICES LTD,648.08,SOCIAL ISOLATION,HOMECARE - C&V,2103058590,1000059416
05.02.2020,ADULT SOCIAL CARE,SUPREME CARE SERVICES LTD,716.24,SOCIAL ISOLATION,HOMECARE - C&V,2103058671,1000059416
05.02.2020,ADULT SOCIAL CARE,SUPREME CARE SERVICES LTD,"1,833.69",SOCIAL ISOLATION,HOMECARE - C&V,2103058561,1000059416
05.02.2020,ADULT SOCIAL CARE,SUPREME CARE SERVICES LTD,"3,278.13",SOCIAL ISOLATION,HOMECARE - C&V,2103058911,1000059416
05.02.2020,ADULT SOCIAL CARE,MEDACS HOMECARE,808.08,SPECIALIST CARE,SECTION 17 PAYMENTS TO AGENCIES/CARERS,2103058444,11287415
05.02.2020,ADULT SOCIAL CARE,MEDACS HOMECARE,923.52,SPECIALIST CARE,SECTION 17 PAYMENTS TO AGENCIES/CARERS,2103058441,11287415
05.02.2020,ADULT SOCIAL CARE,MEDACS HOMECARE,"1,529.58",SPECIALIST CARE,SECTION 17 PAYMENTS TO AGENCIES/CARERS,2103058443,11287415
05.02.2020,ADULT SOCIAL CARE,SUPREME CARE SERVICES LTD,729.09,SUB LTS 18-64,HOMECARE - C&V,2103058867,1000059416
05.02.2020,ADULT SOCIAL CARE,TREVI HOUSE LTD,"1,697.14",SUB LTS 18-64,PLACEMENTS - REHAB,2103057809,1000056841
05.02.2020,ADULT SOCIAL CARE,TREVI HOUSE LTD,"4,628.57",SUB LTS 18-64,PLACEMENTS - REHAB,2103057808,1000056841
05.02.2020,ADULT SOCIAL CARE,TREVI HOUSE LTD,"4,782.86",SUB LTS 18-64,PLACEMENTS - REHAB,2103057807,1000056841
05.02.2020,ADULT SOCIAL CARE,MEDACS HOMECARE,685.43,TRANSITIONS 14-18YRS,SECTION 17 PAYMENTS TO AGENCIES/CARERS,2103058446,11287415
05.02.2020,ADULT SOCIAL CARE,MEDACS HOMECARE,"1,385.28",TRANSITIONS 14-18YRS,SECTION 17 PAYMENTS TO AGENCIES/CARERS,2103058445,11287415
05.02.2020,ASSET MANAGEMENT,BARNES SOLICITORS LLP,"1,000.00",DISREPAIR,PAYMENTS FOR LEGAL SERVICES,2103055820,1000083820
05.02.2020,ASSET MANAGEMENT,STEPHEN EVANS,255,DISREPAIR,LEGAL FEES & COURT COSTS,2103058978,1000043318
05.02.2020,ASSET MANAGEMENT,STEPHEN EVANS,340,DISREPAIR,LEGAL FEES & COURT COSTS,2103058971,1000043318
05.02.2020,ASSET MANAGEMENT,STEPHEN EVANS,340,DISREPAIR,LEGAL FEES & COURT COSTS,2103058980,1000043318
05.02.2020,ASSET MANAGEMENT,STEPHEN EVANS,340,DISREPAIR,LEGAL FEES & COURT COSTS,2103058982,1000043318
05.02.2020,ASSET MANAGEMENT,STEPHEN EVANS,340,DISREPAIR,LEGAL FEES & COURT COSTS,2103058987,1000043318
05.02.2020,ASSET MANAGEMENT,STEPHEN EVANS,425,DISREPAIR,LEGAL FEES & COURT COSTS,2103058975,1000043318
05.02.2020,ASSET MANAGEMENT,STEPHEN EVANS,425,DISREPAIR,LEGAL FEES & COURT COSTS,2103058976,1000043318
05.02.2020,ASSET MANAGEMENT,STEPHEN EVANS,425,DISREPAIR,LEGAL FEES & COURT COSTS,2103058977,1000043318
05.02.2020,ASSET MANAGEMENT,STEPHEN EVANS,425,DISREPAIR,LEGAL FEES & COURT COSTS,2103058979,1000043318
05.02.2020,ASSET MANAGEMENT,STEPHEN EVANS,467.5,DISREPAIR,LEGAL FEES & COURT COSTS,2103058981,1000043318
05.02.2020,ASSET MANAGEMENT,STEPHEN EVANS,722.5,DISREPAIR,LEGAL FEES & COURT COSTS,2103058973,1000043318
05.02.2020,ASSET MANAGEMENT,STEPHEN EVANS,"1,445.00",DISREPAIR,LEGAL FEES & COURT COSTS,2103058974,1000043318
05.02.2020,ASSET MANAGEMENT,DAVID MILES & PARTNERS LTD,2713.5,ENG CONTRACTS (NORTH),HEATING - DISTRICT SYSTEM REPAIR,5902401754,1000001119
05.02.2020,ASSET MANAGEMENT,SEDGWICK INTERNATIONAL UK,"1,173.60",REPAIRS OPERATIONS,PROFESSIONAL FEES,5902401918,1000082289
05.02.2020,ASSET MANAGEMENT,SEDGWICK INTERNATIONAL UK,"1,774.13",REPAIRS OPERATIONS,PROFESSIONAL FEES,5902401895,1000082289
05.02.2020,ASSET MANAGEMENT,SEDGWICK INTERNATIONAL UK,"1,884.60",REPAIRS OPERATIONS,PROFESSIONAL FEES,5902401907,1000082289
05.02.2020,ASSET MANAGEMENT,SEDGWICK INTERNATIONAL UK,"2,043.00",REPAIRS OPERATIONS,PROFESSIONAL FEES,5902401886,1000082289
05.02.2020,ASSET MANAGEMENT,SEDGWICK INTERNATIONAL UK,"2,121.00",REPAIRS OPERATIONS,PROFESSIONAL FEES,5902401903,1000082289
05.02.2020,ASSET MANAGEMENT,SEDGWICK INTERNATIONAL UK,"2,698.20",REPAIRS OPERATIONS,PROFESSIONAL FEES,5902401915,1000082289
05.02.2020,ASSET MANAGEMENT,SEDGWICK INTERNATIONAL UK,"3,021.30",REPAIRS OPERATIONS,PROFESSIONAL FEES,5902401912,1000082289
05.02.2020,CENTRAL FUNCTIONS,SHERCURITY LTD,"3,360.00",COMMERCIAL PROPERTIES,LEGAL FEES & COURT COSTS,2103058969,1000067090
05.02.2020,CHIEF EXECUTIVE,CURRIE & BROWN UK LTD,"3,000.00",CAPITAL PS (REGEN),CONSTRUCTION,5902401658,1000033455
05.02.2020,CHIEF EXECUTIVE'S OFFICE,J C CONSULTANT SERVICES LTD,"9,986.00",CHIEF EXECUTIVE'S OFFICE,EXTERNAL AGENCIES AND BODIES,5902401848,1000042476
05.02.2020,CHIEF EXECUTIVE'S OFFICE,J C CONSULTANT SERVICES LTD,"14,687.00",CHIEF EXECUTIVE'S OFFICE,EXTERNAL AGENCIES AND BODIES,5902401843,1000042476
05.02.2020,CHILDREN'S SERVICES,NATIONAL AUTISTIC SOCIETY CARE PACK,295,AST,TRAINING,5902401696,1000020538
05.02.2020,CHILDREN'S SERVICES,ZEBEDEES LUNCH BOX LTD,260.4,AYLESBURY EARLY YEARS CENTRE,BOOKS & PUBLICATIONS,5902401672,1000083646
05.02.2020,CHILDREN'S SERVICES,BLACKFRIARS SETTLEMENT,500,COMMUNITY LEARNING,GRANTS,5902401650,1000071456
05.02.2020,CHILDREN'S SERVICES,BLACKFRIARS SETTLEMENT,500,COMMUNITY LEARNING,GRANTS,5902401653,1000071456
05.02.2020,CHILDREN'S SERVICES,BY THE BRIDGE LTD,"-1,587.86",FRIENDS & FAMILY FOSTERING,EXTERNAL AGENCIES AND BODIES,2103058453,1000043961
05.02.2020,CHILDREN'S SERVICES,BY THE BRIDGE LTD,"-1,587.86",FRIENDS & FAMILY FOSTERING,EXTERNAL AGENCIES AND BODIES,2103058454,1000043961
05.02.2020,CHILDREN'S SERVICES,BY THE BRIDGE LTD,"-1,587.86",FRIENDS & FAMILY FOSTERING,EXTERNAL AGENCIES AND BODIES,2103058464,1000043961
05.02.2020,CHILDREN'S SERVICES,BY THE BRIDGE LTD,"4,218.52",FRIENDS & FAMILY FOSTERING,EXTERNAL AGENCIES AND BODIES,2103058451,1000043961
05.02.2020,CHILDREN'S SERVICES,BY THE BRIDGE LTD,"4,347.09",FRIENDS & FAMILY FOSTERING,EXTERNAL AGENCIES AND BODIES,2103058458,1000043961
05.02.2020,CHILDREN'S SERVICES,BY THE BRIDGE LTD,"4,440.57",FRIENDS & FAMILY FOSTERING,EXTERNAL AGENCIES AND BODIES,2103058455,1000043961
05.02.2020,CHILDREN'S SERVICES,BY THE BRIDGE LTD,"4,440.57",FRIENDS & FAMILY FOSTERING,EXTERNAL AGENCIES AND BODIES,2103058465,1000043961
05.02.2020,CHILDREN'S SERVICES,BY THE BRIDGE LTD,"4,475.82",FRIENDS & FAMILY FOSTERING,EXTERNAL AGENCIES AND BODIES,2103058461,1000043961
05.02.2020,CHILDREN'S SERVICES,BY THE BRIDGE LTD,"4,504.96",FRIENDS & FAMILY FOSTERING,EXTERNAL AGENCIES AND BODIES,2103058456,1000043961
05.02.2020,CHILDREN'S SERVICES,BY THE BRIDGE LTD,"4,580.78",FRIENDS & FAMILY FOSTERING,EXTERNAL AGENCIES AND BODIES,2103058450,1000043961
05.02.2020,CHILDREN'S SERVICES,BY THE BRIDGE LTD,"4,674.27",FRIENDS & FAMILY FOSTERING,EXTERNAL AGENCIES AND BODIES,2103058462,1000043961
05.02.2020,CHILDREN'S SERVICES,BY THE BRIDGE LTD,"4,805.49",FRIENDS & FAMILY FOSTERING,EXTERNAL AGENCIES AND BODIES,2103058449,1000043961
05.02.2020,CHILDREN'S SERVICES,BY THE BRIDGE LTD,"4,805.49",FRIENDS & FAMILY FOSTERING,EXTERNAL AGENCIES AND BODIES,2103058452,1000043961
05.02.2020,CHILDREN'S SERVICES,BY THE BRIDGE LTD,"4,903.54",FRIENDS & FAMILY FOSTERING,EXTERNAL AGENCIES AND BODIES,2103058459,1000043961
05.02.2020,CHILDREN'S SERVICES,BY THE BRIDGE LTD,"7,143.06",FRIENDS & FAMILY FOSTERING,EXTERNAL AGENCIES AND BODIES,2103058460,1000043961
05.02.2020,CHILDREN'S SERVICES,REDACTED PERSONAL DATA,565.71,FRIENDS & FAMILY FOSTERING,OTHER PAYMENTS FOR CLIENTS,REDACTED,REDACTED
05.02.2020,CHILDREN'S SERVICES,REDACTED PERSONAL DATA,300,FURTHER EDUCATION SUPPORT,CLIENT TRANSPORT,REDACTED,REDACTED
05.02.2020,CHILDREN'S SERVICES,REDACTED PERSONAL DATA,500,FURTHER EDUCATION SUPPORT,OTHER PAYMENTS FOR CLIENTS,REDACTED,REDACTED
05.02.2020,CHILDREN'S SERVICES,MC MEDICAL CONSULTING LTD,315.5,LEGAL,LEGAL FEES & COURT COSTS,2103058965,1000074284
05.02.2020,CHILDREN'S SERVICES,OLIVER MILLINGTON,750,LEGAL,LEGAL FEES & COURT COSTS,2103058966,1000051055
05.02.2020,CHILDREN'S SERVICES,OLIVER MILLINGTON,"1,875.00",LEGAL,LEGAL FEES & COURT COSTS,2103058967,1000051055
05.02.2020,CHILDREN'S SERVICES,DEBORAH BRYAN,600,LEGAL,LEGAL FEES & COURT COSTS,2103058952,1000072679
05.02.2020,CHILDREN'S SERVICES,VICTORIA KIVER,325,LEGAL,LEGAL FEES & COURT COSTS,2103058985,1000083032
05.02.2020,CHILDREN'S SERVICES,VICTORIA KIVER,325,LEGAL,LEGAL FEES & COURT COSTS,2103058986,1000083032
05.02.2020,CHILDREN'S SERVICES,KAMAURA ENTERPRISE LTD,"1,030.00",MENTAL HEALTH PREVENTION WORK,PROFESSIONAL FEES,5902401443,1000083609
05.02.2020,CHILDREN'S SERVICES,PURPLE PEBBLES(CHILD CARE) SERVICES,"1,882.14",RESOURCE PANEL,OTHER PAYMENTS FOR CLIENTS,2103058472,1000070705
05.02.2020,CHILDREN'S SERVICES,CARE O LINE,359.38,S & FAM SUPP - PRAC GRP B SET 17-19,OTHER PAYMENTS FOR CLIENTS,2103058473,11241743
05.02.2020,CHILDREN'S SERVICES,CARE O LINE,487.5,S & FAM SUPP - PRAC GRP B SET 17-19,OTHER PAYMENTS FOR CLIENTS,2103058476,11241743
05.02.2020,CHILDREN'S SERVICES,CARE O LINE,568.75,S & FAM SUPP - PRAC GRP B SET 17-19,OTHER PAYMENTS FOR CLIENTS,2103058475,11241743
05.02.2020,CHILDREN'S SERVICES,LITTLE CHERUBS CARE AND EDUCATION LTD,300,S & FAM SUPP - PRAC GRP B SET 17-19,OTHER PAYMENTS FOR CLIENTS,5902400522,1000083780
05.02.2020,CHILDREN'S SERVICES,LITTLE CHERUBS CARE AND EDUCATION LTD,"1,560.00",S & FAM SUPP - PRAC GRP B SET 17-19,OTHER PAYMENTS FOR CLIENTS,5902400520,1000083780
05.02.2020,CHILDREN'S SERVICES,CONTACT PROFESSIONALS,900,S & FAM SUPP - PRAC GRP F SET 29-31,OTHER PAYMENTS FOR CLIENTS,2103058474,1000057263
05.02.2020,CHILDREN'S SERVICES,SILVER BIRCH CARE LTD,450,SEMI INDEPENDENT LAC,ADDITIONAL PAYMENTS TO AGENCIES/CARERS,2103058468,1000076525
05.02.2020,CHILDREN'S SERVICES,SILVER BIRCH CARE LTD,"3,829.43",SEMI INDEPENDENT LAC,EXTERNAL AGENCIES AND BODIES,2103058466,1000076525
05.02.2020,CHILDREN'S SERVICES,SILVER BIRCH CARE LTD,"3,875.00",SEMI INDEPENDENT LAC,EXTERNAL AGENCIES AND BODIES,2103058471,1000076525
05.02.2020,CHILDREN'S SERVICES,SILVER BIRCH CARE LTD,"4,134.07",SEMI INDEPENDENT LAC,EXTERNAL AGENCIES AND BODIES,2103058469,1000076525
05.02.2020,CHILDREN'S SERVICES,SILVER BIRCH CARE LTD,265.71,SEMI INDEPENDENT LAC,OTHER PAYMENTS FOR CLIENTS,2103058470,1000076525
05.02.2020,CHILDREN'S SERVICES,REDACTED PERSONAL DATA,509.14,SPECIAL GUARDIANSHIP,EXTERNAL AGENCIES AND BODIES,REDACTED,REDACTED
05.02.2020,CHILDREN'S SERVICES,REDACTED PERSONAL DATA,318.42,SPECIAL GUARDIANSHIP,EXTERNAL AGENCIES AND BODIES,REDACTED,REDACTED
05.02.2020,CHILDREN'S SERVICES,REDACTED PERSONAL DATA,269.08,SPECIAL GUARDIANSHIP,PAYMENTS TO CARERS,REDACTED,REDACTED
05.02.2020,CHILDREN'S SERVICES,REDACTED PERSONAL DATA,388.04,SPECIAL GUARDIANSHIP,PAYMENTS TO CARERS,REDACTED,REDACTED
05.02.2020,CHILDREN'S SERVICES,REDACTED PERSONAL DATA,342.45,SPECIAL GUARDIANSHIP,PAYMENTS TO CARERS,REDACTED,REDACTED
05.02.2020,CHILDREN'S SERVICES,REDACTED PERSONAL DATA,389.34,SPECIAL GUARDIANSHIP,PAYMENTS TO CARERS,REDACTED,REDACTED
05.02.2020,CHILDREN'S SERVICES,REDACTED PERSONAL DATA,356.15,SPECIAL GUARDIANSHIP,PAYMENTS TO CARERS,REDACTED,REDACTED
05.02.2020,CHILDREN'S SERVICES,REDACTED PERSONAL DATA,403.04,SPECIAL GUARDIANSHIP,PAYMENTS TO CARERS,REDACTED,REDACTED
05.02.2020,CHILDREN'S SERVICES,REDACTED PERSONAL DATA,269.08,SPECIAL GUARDIANSHIP,PAYMENTS TO CARERS,REDACTED,REDACTED
05.02.2020,CHILDREN'S SERVICES,REDACTED PERSONAL DATA,343.05,SPECIAL GUARDIANSHIP,PAYMENTS TO CARERS,REDACTED,REDACTED
05.02.2020,CHILDREN'S SERVICES,REDACTED PERSONAL DATA,525,SPECIAL GUARDIANSHIP,PAYMENTS TO CARERS,REDACTED,REDACTED
05.02.2020,CHILDREN'S SERVICES,REDACTED PERSONAL DATA,525,SPECIAL GUARDIANSHIP,PAYMENTS TO CARERS,REDACTED,REDACTED
05.02.2020,CHILDREN'S SERVICES,REDACTED PERSONAL DATA,395,SPECIAL GUARDIANSHIP,PAYMENTS TO CARERS,REDACTED,REDACTED
05.02.2020,CHILDREN'S SERVICES,REDACTED PERSONAL DATA,341.15,SPECIAL GUARDIANSHIP,PAYMENTS TO CARERS,REDACTED,REDACTED
05.02.2020,CHILDREN'S SERVICES,BRITISH TELECOMMUNICATIONS PLC,"2,455.58",THOMAS CALTON CENTRE,TELEPHONES (LAND LINES),5902401784,11149671
05.02.2020,COMMISSIONING & CENTRAL,SIAN DAVIES,"1,000.00",STRATEGIC DIRECTOR OF C&AS,LEGAL FEES & COURT COSTS,2103058970,1000042111
05.02.2020,COMMUNITIES PROJECTS,RED R DESIGN,425,COMMUNITY COUNCILS TEAM,MARKETING & PUBLICITY SERVICES,5902401875,1000035984
05.02.2020,COMMUNITIES PROJECTS,S7 CHAUFFEURS LTD,"2,470.50",MAYORAL SUPPORT,HIRED VEHICLES,5902401804,1000075707
05.02.2020,COMMUNITIES PROJECTS,S7 CHAUFFEURS LTD,"2,778.00",MAYORAL SUPPORT,HIRED VEHICLES,5902401834,1000075707
05.02.2020,COMMUNITIES PROJECTS,S7 CHAUFFEURS LTD,"3,338.00",MAYORAL SUPPORT,HIRED VEHICLES,5902401867,1000075707
05.02.2020,COMMUNITIES PROJECTS,S7 CHAUFFEURS LTD,"4,180.50",MAYORAL SUPPORT,HIRED VEHICLES,5902401872,1000075707
05.02.2020,COMMUNITIES PROJECTS,S7 CHAUFFEURS LTD,"4,391.50",MAYORAL SUPPORT,HIRED VEHICLES,5902401809,1000075707
05.02.2020,COMMUNITIES PROJECTS,S7 CHAUFFEURS LTD,"4,582.50",MAYORAL SUPPORT,HIRED VEHICLES,5902401860,1000075707
05.02.2020,COMMUNITIES PROJECTS,CROWN HOUSING LTD,"2,883.00",NO RECOURSE TO PUBLIC FUNDS,ACCOMMODATION CHARGES,5902401913,1000075070
05.02.2020,COMMUNITIES PROJECTS,SUPREME CARE SERVICES LTD,274.85,NO RECOURSE TO PUBLIC FUNDS,HOMECARE - C&V,2103058488,1000059416
05.02.2020,COMMUNITIES PROJECTS,BROOK,"36,437.50",YOUNG PEOPLES SERVICE,OTHER CONTRACTORS,5902401900,1000076901
05.02.2020,CORP.MANAGEMENT & CHIEF EXEC.,POTTERS FIELDS PARK MANAGEMENT TRUST,"15,813.97",POTTERS FIELD PROJECT COSTS,SERVICE CHARGES,2103057909,1000053530
05.02.2020,CUSTOMER EXPERIENCE,HUNTERS CONTRACTS LTD,"1,963.00",HEAD OF CUSTOMER EXPERIENCE,FURNITURE PURCHASE & REPAIR,5902401620,1000065904
05.02.2020,CUSTOMER EXPERIENCE HGF,CANADA WATER CULTURE SPACE,280,BLUE BADGES,HIRE OF ROOMS/HALLS,5902401905,1000075539
05.02.2020,CUSTOMER EXPERIENCE HGF,FRAMA (UK) LTD,"2,000.00",CORONER'S,POSTAGES,5902401736,1000046489
05.02.2020,CUSTOMER EXPERIENCE HGF,SZM PROPERTIES LTD,"2,600.00",HOMELESS PROJECTS,GRANTS,5902401819,1000083840
05.02.2020,CUSTOMER EXPERIENCE HGF,131 ST JOHNS HILL (SPV) LTD,"3,984.78",HOMELESS PROJECTS,GRANTS,5902401662,1000083855
05.02.2020,CUSTOMER EXPERIENCE HGF,OMNIA HOUSING LTD,"1,732.08",HOMELESS PROJECTS,GRANTS,5902401806,1000083861
05.02.2020,CUSTOMER EXPERIENCE HGF,QING CHEN CHANG,"1,500.00",HOMELESS PROJECTS,GRANTS,5902401818,1000083860
05.02.2020,CUSTOMER EXPERIENCE HGF,R S P  LTD  WARRANT SERVICE,668.25,HOUSING OPTIONS,PUBLIC TRANSPORT,5902401681,1000006523
05.02.2020,CUSTOMER EXPERIENCE HGF,EASYMOVE EA LIMITED,"4,000.00",PSL PLACEMENTS,EXTERNAL AGENCIES AND BODIES,5902401823,1000066859
05.02.2020,CUSTOMER EXPERIENCE HGF,EASYMOVE EA LIMITED,"4,803.03",PSL PLACEMENTS,EXTERNAL AGENCIES AND BODIES,5902401824,1000066859
05.02.2020,CUSTOMER EXPERIENCE HGF,HOMES2LET UK LTD,"30,991.54",PSL PLACEMENTS,EXTERNAL AGENCIES AND BODIES,5902401797,1000079868
05.02.2020,CUSTOMER EXPERIENCE HGF,HOMES2LET UK LTD,"39,000.00",PSL PLACEMENTS,EXTERNAL AGENCIES AND BODIES,5902401785,1000079868
05.02.2020,CUSTOMER EXPERIENCE HGF,LODGISTICS ESTATES,"3,936.95",PSL PLACEMENTS,EXTERNAL AGENCIES AND BODIES,5902401698,1000080324
05.02.2020,CUSTOMER EXPERIENCE HGF,SMARTSPACE PROPERTY SOLUTIONS LTD,"1,925.56",PSL PLACEMENTS,EXTERNAL AGENCIES AND BODIES,5902401669,1000082769
05.02.2020,CUSTOMER EXPERIENCE HGF,SMARTSPACE PROPERTY SOLUTIONS LTD,"6,000.00",PSL PLACEMENTS,EXTERNAL AGENCIES AND BODIES,5902401660,1000082769
05.02.2020,ENVIRONMENT AND LEISURE,BRANDON 1 TRA,455.71,CAPITAL PS (LEISURE),CAPITAL GRANTS,5902401815,1000051013
05.02.2020,ENVIRONMENT AND LEISURE,PERRONET HOUSE T&RA,527.87,CAPITAL PS (LEISURE),CAPITAL GRANTS,5902401916,1000069828
05.02.2020,ENVIRONMENT AND LEISURE,FIRSTPORT BESPOKE PROPERTY SERVICES,500,CAPITAL PS (LEISURE),CAPITAL GRANTS,5902401688,1000082910
05.02.2020,ENVIRONMENT AND LEISURE,CYCLEHOOP LTD,"2,800.00",CAPITAL PS (LEISURE),CONST'N MAIN CONTRACT - NON CERTIFICATED,5902401683,1000057894
05.02.2020,ENVIRONMENT AND LEISURE,THOMAS FORD AND PARTNERS,"1,250.00",CAPITAL PS (LEISURE),CONSTRUCTION FEES  - EXTERNAL,5902401793,1000037686
05.02.2020,ENVIRONMENT AND LEISURE,RSA GEOTECHNICS LTD,"2,292.00",CAPITAL PS (LEISURE),CONSTRUCTION FEES  - EXTERNAL,5902401791,1000049259
05.02.2020,ENVIRONMENT AND LEISURE,RSA GEOTECHNICS LTD,"3,109.00",CAPITAL PS (LEISURE),CONSTRUCTION FEES  - EXTERNAL,5902401790,1000049259
05.02.2020,ENVIRONMENT AND LEISURE,RH WROUGHT IRON,"1,000.00",CAPITAL PS (LEISURE),CONSTRUCTION MAIN CONTRACT -CERTIFICATED,2103057883,3000000680
05.02.2020,ENVIRONMENT DIRECTORATE,ARVAL UK LTD,502.76,CAR LEASING CTRL A/C,PARKING CHARGES,5902401512,1000079802
05.02.2020,ENVIRONMENT DIRECTORATE,VOLKSWAGEN FINANCIAL SERVICES (UK),288.75,CAR LEASING CTRL A/C,VEHICLE LEASING CHARGES,5902401613,1000079245
05.02.2020,ENVIRONMENT DIRECTORATE,ARVAL UK LTD,"-1,458.17",CAR LEASING CTRL A/C,VEHICLE LEASING CHARGES,5902401522,1000079802
05.02.2020,ENVIRONMENT DIRECTORATE,AUTOMOTIVE LEASING,294.15,COMMERCIAL VEH CTRL A/C,HIRED VEHICLES,5902401654,11014756
05.02.2020,ENVIRONMENT DIRECTORATE,AUTOMOTIVE LEASING,588.3,COMMERCIAL VEH CTRL A/C,HIRED VEHICLES,5902401639,11014756
05.02.2020,ENVIRONMENT DIRECTORATE,AUTOMOTIVE LEASING,588.3,COMMERCIAL VEH CTRL A/C,HIRED VEHICLES,5902401651,11014756
05.02.2020,ENVIRONMENT DIRECTORATE,AUTOMOTIVE LEASING,829.68,COMMERCIAL VEH CTRL A/C,HIRED VEHICLES,5902401628,11014756
05.02.2020,ENVIRONMENT DIRECTORATE,AUTOMOTIVE LEASING,"2,892.37",COMMERCIAL VEH CTRL A/C,HIRED VEHICLES,5902401622,11014756
05.02.2020,ENVIRONMENT DIRECTORATE,AUTOMOTIVE LEASING,"7,367.01",COMMERCIAL VEH CTRL A/C,HIRED VEHICLES,5902401656,11014756
05.02.2020,ENVIRONMENT DIRECTORATE,BARRETTINE ENVIRONMENTAL HEALTH,"1,899.22",PEST CONTROL,MATERIALS,5902401898,1000050556
05.02.2020,ENVIRONMENT DIRECTORATE,MARWOOD ELECTRICAL COMPANY LTD,"17,266.86",PUBLIC LIGHTING,MATERIALS,5902401921,1001874
05.02.2020,ENVIRONMENT DIRECTORATE,TRAVIS PERKINS TRADING COMPANY LTD,341.37,R & M OVERHEADS,MATERIALS,5902401853,1514319
05.02.2020,ENVIRONMENT DIRECTORATE,TRAVIS PERKINS TRADING COMPANY LTD,468,R & M OVERHEADS,MATERIALS,5902401865,1514319
05.02.2020,ENVIRONMENT DIRECTORATE,TRAVIS PERKINS TRADING COMPANY LTD,"1,688.00",R & M OVERHEADS,MATERIALS,5902401858,1514319
05.02.2020,ENVIRONMENT DIRECTORATE,JARED NORMAN,405,SASBU,LEGAL FEES & COURT COSTS,2103058958,1000064080
05.02.2020,ENVIRONMENT DIRECTORATE,JARED NORMAN,450,SASBU,LEGAL FEES & COURT COSTS,2103058956,1000064080
05.02.2020,ENVIRONMENT DIRECTORATE,JARED NORMAN,450,SASBU,LEGAL FEES & COURT COSTS,2103058957,1000064080
05.02.2020,ENVIRONMENT DIRECTORATE,JARED NORMAN,900,SASBU,LEGAL FEES & COURT COSTS,2103058960,1000064080
05.02.2020,ENVIRONMENT DIRECTORATE,JARED NORMAN,900,SASBU,LEGAL FEES & COURT COSTS,2103058961,1000064080
05.02.2020,ENVIRONMENT DIRECTORATE,JARED NORMAN,900,SASBU,LEGAL FEES & COURT COSTS,2103058962,1000064080
05.02.2020,ENVIRONMENT DIRECTORATE,JARED NORMAN,900,SASBU,LEGAL FEES & COURT COSTS,2103058963,1000064080
05.02.2020,ENVIRONMENT DIRECTORATE,JARED NORMAN,900,STREET TRADING A/C,LEGAL FEES & COURT COSTS,2103058955,1000064080
05.02.2020,ENVIRONMENT DIRECTORATE,WAGTAIL UK LIMITED,549.4,TRADING STANDARDS,SERVICE CHARGES,5902400201,1000083816
05.02.2020,ENVIRONMENT DIRECTORATE,HOWDENS JOINERY CO,-331.76,WALWORTH DD,MATERIALS,5902401740,1000027491
05.02.2020,EXCHEQUER SERVICES,MRO PEOPLE LTD,"1,000.00",ADMINISTRATIVE SUPPORT,TRAINING,5902401827,1000083017
05.02.2020,HOUSING GENERAL FUND,AMITY ESTATES LTD,"2,100.00",CAPITAL PS (HOUSING GF),CONSTRUCTION SITE COSTS,5902401692,1000050384
05.02.2020,HOUSING HRA,REC LTD,500,CAPITAL PS (HRA),CONSTRUCTION FEES  - EXTERNAL,5902399744,1000032541
05.02.2020,HOUSING HRA,PARIS SMITH AND RANDALL SOLICITORS,"113,283.98",CAPITAL PS (HRA),LAND & BUILDINGS ACQUISITION,2103057906,1000008059
05.02.2020,HOUSING HRA,WALDRAMS LTD,"5,200.00",CAPITAL PS (REGEN),CONSTRUCTION FEES  - EXTERNAL,5902401609,1000083705
05.02.2020,HOUSING HRA,CONRAN & PARTNERS LTD,"14,027.50",CAPITAL PS (REGEN),CONSTRUCTION FEES - ARCHITECT,5902401690,1000083025
05.02.2020,HOUSING HRA,MLM CONSULTING ENGINEERS LTD,"1,000.00",CAPITAL PS (REGEN),CONSTRUCTION FEES - LEGAL,5902401673,1000059806
05.02.2020,LAW & DEMOCRACY,ELECTORAL REFORM SERVICES LTD,"2,224.45",ELECTORAL REGISTRATION,LEGAL FEES & COURT COSTS,2103058988,1052156
05.02.2020,LEISURE DIRECTORATE,SPORTS AND LEISURE MANAGEMENT LTD,"164,637.00",FACILITIES MANAGEMENT,OTHER CONTRACTORS,5902401855,1000077862
05.02.2020,LEISURE DIRECTORATE,COIN STREET CENTRE TRUST,"3,780.25",GRANTS COMMISSIONING,GRANTS,5902401914,1000046703
05.02.2020,LEISURE DIRECTORATE,PIRTEK HOSES & ASSEMBLIES,361.88,SDM BUDGET,EQUIPMENT PURCHASE & REPAIR,5902401842,1468925
05.02.2020,LEISURE DIRECTORATE,C S G (USHERS) LTD,"1,050.00",TREES PRINCIPAL ROADS,OTHER CONTRACTORS,5902401655,1000073203
05.02.2020,LEISURE DIRECTORATE,C S G (USHERS) LTD,"3,325.00",TREES PRINCIPAL ROADS,OTHER CONTRACTORS,5902401917,1000073203
05.02.2020,LEISURE DIRECTORATE,C S G (USHERS) LTD,"4,897.56",TREES PRINCIPAL ROADS,OTHER CONTRACTORS,5902401920,1000073203
05.02.2020,LEISURE DIRECTORATE,C S G (USHERS) LTD,"18,488.50",TREES PRINCIPAL ROADS,OTHER CONTRACTORS,5902401919,1000073203
05.02.2020,MODERNISATION HGF,CASTLE WATER LTD,823.59,BOURNEMOUTH GROVE,WATER,5902401812,1000078867
05.02.2020,PUBLIC HEALTH,THE COLLEGE OF CONTEMPORARY HEALTH,"4,375.00",HEALTHY WEIGHT,EXTERNAL AGENCIES AND BODIES,5902401773,1000080685
05.02.2020,REGENERATION,FIELD FISHER WATERHOUSE,448.5,22 SHAND STREET,PROFESSIONAL FEES,5902401652,1000047449
05.02.2020,REGENERATION,KINGSTON VOLUNTARY ACTION,833.33,MASTER PLAN-H/WAY & TRANS INTERCHANGE,PROFESSIONAL FEES,5902401393,1000083826
05.02.2020,REGENERATION,PECKHAM RYE LIDO CIC,"10,000.00",PROFESSIONAL SERVICES (GENERAL),GRANTS,5902401887,1000083397
05.02.2020,REGENERATION,DENTONS UK AND MIDDLE EAST LLP,"1,453.50",PROFESSIONAL SERVICES (GENERAL),LEGAL FEES & COURT COSTS,2103058953,1000083222
05.02.2020,RESIDENT SERVICES,EDF ENERGY PLC,267.65,OPERATIONS/OFFICES ACCOMMODATION,ELECTRICITY,5902401906,1008746
05.02.2020,RESIDENT SERVICES,EDF ENERGY PLC,292.58,OPERATIONS/OFFICES ACCOMMODATION,ELECTRICITY,5902401904,1008746
05.02.2020,RESIDENT SERVICES,EDF ENERGY PLC,"1,927.72",OPERATIONS/OFFICES ACCOMMODATION,ELECTRICITY,5902401902,1008746
05.02.2020,RESIDENT SERVICES,KENT COUNTY COUNCIL - LASER,581.29,OPERATIONS/OFFICES ACCOMMODATION,ELECTRICITY,5902401864,1000012926
05.02.2020,RESIDENT SERVICES,TFL TELESALES / OYSTER FULFILMENT,"4,110.00",OPERATIONS/OFFICES ACCOMMODATION,PUBLIC TRANSPORT,5902401657,1000059727
05.02.2020,RESIDENT SERVICES,LISA CLARKE,450,OPERATIONS/OFFICES ACCOMMODATION,LEGAL FEES & COURT COSTS,2103058964,1000030215
05.02.2020,RESIDENT SERVICES,JARED NORMAN,450,WALWORTH EAST,LEGAL FEES & COURT COSTS,2103058959,1000064080
05.02.2020,SOUTHWARK BUILDING SERVICES,PILKINGTON UK LTD,998.4,STORES/LOGISTICS,CREDITORS -GR/IR CLEARING ACCOUNT,5902401661,11224519
05.02.2020,SOUTHWARK BUILDING SERVICES,LONDON TOOLS LIMITED,"2,100.00",STORES/LOGISTICS,CREDITORS -GR/IR CLEARING ACCOUNT,5902401695,1000003017
05.02.2020,SOUTHWARK BUILDING SERVICES,REGENT ELECTRICAL SEVENOAKS LTD,294,STORES/LOGISTICS,CREDITORS -GR/IR CLEARING ACCOUNT,5902401663,1000083319
05.02.2020,SOUTHWARK BUILDING SERVICES,REGENT ELECTRICAL SEVENOAKS LTD,920,STORES/LOGISTICS,CREDITORS -GR/IR CLEARING ACCOUNT,5902401665,1000083319
05.02.2020,SOUTHWARK BUILDING SERVICES,REGENT ELECTRICAL SEVENOAKS LTD,"1,820.00",STORES/LOGISTICS,CREDITORS -GR/IR CLEARING ACCOUNT,5902401665,1000083319
06.02.2020,ADULT SOCIAL CARE,THE RIVERSIDE GROUP LTD,"1,011.92",APPOINTEESHIPS,OTHER PAYMENTS FOR CLIENTS,5902401401,1000069625
06.02.2020,ADULT SOCIAL CARE,REDACTED PERSONAL DATA,600,APPOINTEESHIPS,OTHER PAYMENTS FOR CLIENTS,REDACTED,REDACTED
06.02.2020,ADULT SOCIAL CARE,CREATING CARE CHOICES LTD,"18,600.00",DISABILITIES LAC,EXTERNAL AGENCIES AND BODIES,2103059069,1000076738
06.02.2020,ADULT SOCIAL CARE,HELP ME GROW FOSTERING SERVICES LTD,"5,757.01",DISABILITIES LAC,EXTERNAL AGENCIES AND BODIES,2103059535,1000079302
06.02.2020,ADULT SOCIAL CARE,ALL4U FOSTERING LTD,"6,443.04",DISABILITIES LAC,EXTERNAL AGENCIES AND BODIES,2103059576,1000080663
06.02.2020,ADULT SOCIAL CARE,AMELIA'S HOUSE LIMITED,"13,950.00",DISABILITIES LAC,EXTERNAL AGENCIES AND BODIES,2103059593,1000083007
06.02.2020,ADULT SOCIAL CARE,AMELIA'S HOUSE LIMITED,"13,950.00",DISABILITIES LAC,EXTERNAL AGENCIES AND BODIES,2103059594,1000083007
06.02.2020,ADULT SOCIAL CARE,THE DRIVE CARE HOMES LTD,"14,126.52",DISABILITIES LAC,RESIDENTIAL CARE,2103059076,1000003889
06.02.2020,ADULT SOCIAL CARE,FOOTSTEPS CARE LTD,"19,623.70",DISABILITIES LAC,RESIDENTIAL CARE,2103059087,1000045464
06.02.2020,ADULT SOCIAL CARE,THE VINE RESIDENTIAL SERVICES LTD,"26,566.07",DISABILITIES LAC,RESIDENTIAL CARE,2103059074,1000082868
06.02.2020,ADULT SOCIAL CARE,THE BEECHES UK LTD,"10,376.14",DISABILITIES LAC,RESIDENTIAL CARE,2103059079,1000083173
06.02.2020,ADULT SOCIAL CARE,THE NEW SHOOTS,300,LD LTS 18-64,DAYCARE,2103059592,1000073970
06.02.2020,ADULT SOCIAL CARE,LONDON CARE LTD,926.5,LD LTS 18-64,HOMECARE - C&V,2103059350,1000003398
06.02.2020,ADULT SOCIAL CARE,LONDON CARE LTD,"1,100.75",LD LTS 18-64,HOMECARE - C&V,2103059394,1000003398
06.02.2020,ADULT SOCIAL CARE,LONDON CARE LTD,"6,256.00",LD LTS 65+,HOMECARE - C&V,2103059266,1000003398
06.02.2020,ADULT SOCIAL CARE,LONDON CARE LTD,392.42,MEM LTS 18-64,HOMECARE - C&V,2103059200,1000003398
06.02.2020,ADULT SOCIAL CARE,LONDON CARE LTD,731,MEM LTS 18-64,HOMECARE - C&V,2103059126,1000003398
06.02.2020,ADULT SOCIAL CARE,LONDON CARE LTD,344.25,MEM LTS 65+,HOMECARE - C&V,2103059243,1000003398
06.02.2020,ADULT SOCIAL CARE,LONDON CARE LTD,441.15,MEM LTS 65+,HOMECARE - C&V,2103059346,1000003398
06.02.2020,ADULT SOCIAL CARE,LONDON CARE LTD,769.25,MEM LTS 65+,HOMECARE - C&V,2103059373,1000003398
06.02.2020,ADULT SOCIAL CARE,LONDON CARE LTD,964.75,MEM LTS 65+,HOMECARE - C&V,2103059348,1000003398
06.02.2020,ADULT SOCIAL CARE,LONDON CARE LTD,977.5,MEM LTS 65+,HOMECARE - C&V,2103059196,1000003398
06.02.2020,ADULT SOCIAL CARE,LONDON CARE LTD,977.5,MEM LTS 65+,HOMECARE - C&V,2103059273,1000003398
06.02.2020,ADULT SOCIAL CARE,LONDON CARE LTD,"1,177.25",MEM LTS 65+,HOMECARE - C&V,2103059125,1000003398
06.02.2020,ADULT SOCIAL CARE,LONDON CARE LTD,"2,745.50",MEM LTS 65+,HOMECARE - C&V,2103059151,1000003398
06.02.2020,ADULT SOCIAL CARE,LONDON CARE LTD,263.5,MH LTS 18-64,HOMECARE - C&V,2103059309,1000003398
06.02.2020,ADULT SOCIAL CARE,LONDON CARE LTD,272,MH LTS 18-64,HOMECARE - C&V,2103059410,1000003398
06.02.2020,ADULT SOCIAL CARE,LONDON CARE LTD,314.5,MH LTS 18-64,HOMECARE - C&V,2103059407,1000003398
06.02.2020,ADULT SOCIAL CARE,LONDON CARE LTD,399.5,MH LTS 18-64,HOMECARE - C&V,2103059465,1000003398
06.02.2020,ADULT SOCIAL CARE,LONDON CARE LTD,416.5,MH LTS 18-64,HOMECARE - C&V,2103059221,1000003398
06.02.2020,ADULT SOCIAL CARE,LONDON CARE LTD,514.25,MH LTS 18-64,HOMECARE - C&V,2103059302,1000003398
06.02.2020,ADULT SOCIAL CARE,LONDON CARE LTD,624.75,MH LTS 18-64,HOMECARE - C&V,2103059377,1000003398
06.02.2020,ADULT SOCIAL CARE,LONDON CARE LTD,663,MH LTS 18-64,HOMECARE - C&V,2103059446,1000003398
06.02.2020,ADULT SOCIAL CARE,LONDON CARE LTD,748.28,MH LTS 18-64,HOMECARE - C&V,2103059113,1000003398
06.02.2020,ADULT SOCIAL CARE,LONDON CARE LTD,"1,632.00",MH LTS 18-64,HOMECARE - C&V,2103059282,1000003398
06.02.2020,ADULT SOCIAL CARE,SWK DISABLEMENT ASSN,"1,440.54",MH LTS 18-64,SUPPORTED LIVING,2103059510,1000011698
06.02.2020,ADULT SOCIAL CARE,SWK DISABLEMENT ASSN,"1,653.45",MH LTS 18-64,SUPPORTED LIVING,2103059509,1000011698
06.02.2020,ADULT SOCIAL CARE,LONDON CARE LTD,272,MH LTS 65+,HOMECARE - C&V,2103059116,1000003398
06.02.2020,ADULT SOCIAL CARE,LONDON CARE LTD,454.75,MH LTS 65+,HOMECARE - C&V,2103059303,1000003398
06.02.2020,ADULT SOCIAL CARE,LONDON CARE LTD,480.25,MH LTS 65+,HOMECARE - C&V,2103059216,1000003398
06.02.2020,ADULT SOCIAL CARE,LONDON CARE LTD,"2,531.62",MH LTS 65+,HOMECARE - C&V,2103059378,1000003398
06.02.2020,ADULT SOCIAL CARE,LONDON CARE LTD,255,PHY LTS 18-64,HOMECARE - C&V,2103059137,1000003398
06.02.2020,ADULT SOCIAL CARE,LONDON CARE LTD,272,PHY LTS 18-64,HOMECARE - C&V,2103059198,1000003398
06.02.2020,ADULT SOCIAL CARE,LONDON CARE LTD,323,PHY LTS 18-64,HOMECARE - C&V,2103059380,1000003398
06.02.2020,ADULT SOCIAL CARE,LONDON CARE LTD,331.5,PHY LTS 18-64,HOMECARE - C&V,2103059207,1000003398
06.02.2020,ADULT SOCIAL CARE,LONDON CARE LTD,335.75,PHY LTS 18-64,HOMECARE - C&V,2103059341,1000003398
06.02.2020,ADULT SOCIAL CARE,LONDON CARE LTD,348.5,PHY LTS 18-64,HOMECARE - C&V,2103059305,1000003398
06.02.2020,ADULT SOCIAL CARE,LONDON CARE LTD,348.5,PHY LTS 18-64,HOMECARE - C&V,2103059468,1000003398
06.02.2020,ADULT SOCIAL CARE,LONDON CARE LTD,352.75,PHY LTS 18-64,HOMECARE - C&V,2103059191,1000003398
06.02.2020,ADULT SOCIAL CARE,LONDON CARE LTD,357,PHY LTS 18-64,HOMECARE - C&V,2103059118,1000003398
06.02.2020,ADULT SOCIAL CARE,LONDON CARE LTD,357,PHY LTS 18-64,HOMECARE - C&V,2103059351,1000003398
06.02.2020,ADULT SOCIAL CARE,LONDON CARE LTD,361.25,PHY LTS 18-64,HOMECARE - C&V,2103059463,1000003398
06.02.2020,ADULT SOCIAL CARE,LONDON CARE LTD,369.75,PHY LTS 18-64,HOMECARE - C&V,2103059251,1000003398
06.02.2020,ADULT SOCIAL CARE,LONDON CARE LTD,372.87,PHY LTS 18-64,HOMECARE - C&V,2103059124,1000003398
06.02.2020,ADULT SOCIAL CARE,LONDON CARE LTD,403.75,PHY LTS 18-64,HOMECARE - C&V,2103059239,1000003398
06.02.2020,ADULT SOCIAL CARE,LONDON CARE LTD,403.75,PHY LTS 18-64,HOMECARE - C&V,2103059447,1000003398
06.02.2020,ADULT SOCIAL CARE,LONDON CARE LTD,425,PHY LTS 18-64,HOMECARE - C&V,2103059271,1000003398
06.02.2020,ADULT SOCIAL CARE,LONDON CARE LTD,435.2,PHY LTS 18-64,HOMECARE - C&V,2103059467,1000003398
06.02.2020,ADULT SOCIAL CARE,LONDON CARE LTD,442,PHY LTS 18-64,HOMECARE - C&V,2103059327,1000003398
06.02.2020,ADULT SOCIAL CARE,LONDON CARE LTD,483.65,PHY LTS 18-64,HOMECARE - C&V,2103059293,1000003398
06.02.2020,ADULT SOCIAL CARE,LONDON CARE LTD,484.5,PHY LTS 18-64,HOMECARE - C&V,2103059280,1000003398
06.02.2020,ADULT SOCIAL CARE,LONDON CARE LTD,484.5,PHY LTS 18-64,HOMECARE - C&V,2103059372,1000003398
06.02.2020,ADULT SOCIAL CARE,LONDON CARE LTD,497.25,PHY LTS 18-64,HOMECARE - C&V,2103059312,1000003398
06.02.2020,ADULT SOCIAL CARE,LONDON CARE LTD,535.5,PHY LTS 18-64,HOMECARE - C&V,2103059206,1000003398
06.02.2020,ADULT SOCIAL CARE,LONDON CARE LTD,535.5,PHY LTS 18-64,HOMECARE - C&V,2103059223,1000003398
06.02.2020,ADULT SOCIAL CARE,LONDON CARE LTD,548.25,PHY LTS 18-64,HOMECARE - C&V,2103059202,1000003398
06.02.2020,ADULT SOCIAL CARE,LONDON CARE LTD,552.5,PHY LTS 18-64,HOMECARE - C&V,2103059256,1000003398
06.02.2020,ADULT SOCIAL CARE,LONDON CARE LTD,612,PHY LTS 18-64,HOMECARE - C&V,2103059186,1000003398
06.02.2020,ADULT SOCIAL CARE,LONDON CARE LTD,629,PHY LTS 18-64,HOMECARE - C&V,2103059253,1000003398
06.02.2020,ADULT SOCIAL CARE,LONDON CARE LTD,633.25,PHY LTS 18-64,HOMECARE - C&V,2103059469,1000003398
06.02.2020,ADULT SOCIAL CARE,LONDON CARE LTD,641.75,PHY LTS 18-64,HOMECARE - C&V,2103059165,1000003398
06.02.2020,ADULT SOCIAL CARE,LONDON CARE LTD,641.75,PHY LTS 18-64,HOMECARE - C&V,2103059184,1000003398
06.02.2020,ADULT SOCIAL CARE,LONDON CARE LTD,663,PHY LTS 18-64,HOMECARE - C&V,2103059127,1000003398
06.02.2020,ADULT SOCIAL CARE,LONDON CARE LTD,680,PHY LTS 18-64,HOMECARE - C&V,2103059164,1000003398
06.02.2020,ADULT SOCIAL CARE,LONDON CARE LTD,709.75,PHY LTS 18-64,HOMECARE - C&V,2103059195,1000003398
06.02.2020,ADULT SOCIAL CARE,LONDON CARE LTD,709.75,PHY LTS 18-64,HOMECARE - C&V,2103059310,1000003398
06.02.2020,ADULT SOCIAL CARE,LONDON CARE LTD,718.25,PHY LTS 18-64,HOMECARE - C&V,2103059262,1000003398
06.02.2020,ADULT SOCIAL CARE,LONDON CARE LTD,726.75,PHY LTS 18-64,HOMECARE - C&V,2103059268,1000003398
06.02.2020,ADULT SOCIAL CARE,LONDON CARE LTD,739.5,PHY LTS 18-64,HOMECARE - C&V,2103059104,1000003398
06.02.2020,ADULT SOCIAL CARE,LONDON CARE LTD,782,PHY LTS 18-64,HOMECARE - C&V,2103059445,1000003398
06.02.2020,ADULT SOCIAL CARE,LONDON CARE LTD,845.75,PHY LTS 18-64,HOMECARE - C&V,2103059464,1000003398
06.02.2020,ADULT SOCIAL CARE,LONDON CARE LTD,854.25,PHY LTS 18-64,HOMECARE - C&V,2103059189,1000003398
06.02.2020,ADULT SOCIAL CARE,LONDON CARE LTD,939.25,PHY LTS 18-64,HOMECARE - C&V,2103059248,1000003398
06.02.2020,ADULT SOCIAL CARE,LONDON CARE LTD,990.25,PHY LTS 18-64,HOMECARE - C&V,2103059313,1000003398
06.02.2020,ADULT SOCIAL CARE,LONDON CARE LTD,"1,015.75",PHY LTS 18-64,HOMECARE - C&V,2103059246,1000003398
06.02.2020,ADULT SOCIAL CARE,LONDON CARE LTD,"1,083.75",PHY LTS 18-64,HOMECARE - C&V,2103059254,1000003398
06.02.2020,ADULT SOCIAL CARE,LONDON CARE LTD,"1,096.50",PHY LTS 18-64,HOMECARE - C&V,2103059322,1000003398
06.02.2020,ADULT SOCIAL CARE,LONDON CARE LTD,"1,113.50",PHY LTS 18-64,HOMECARE - C&V,2103059355,1000003398
06.02.2020,ADULT SOCIAL CARE,LONDON CARE LTD,"1,117.75",PHY LTS 18-64,HOMECARE - C&V,2103059257,1000003398
06.02.2020,ADULT SOCIAL CARE,LONDON CARE LTD,"1,358.02",PHY LTS 18-64,HOMECARE - C&V,2103059397,1000003398
06.02.2020,ADULT SOCIAL CARE,LONDON CARE LTD,"1,432.25",PHY LTS 18-64,HOMECARE - C&V,2103059179,1000003398
06.02.2020,ADULT SOCIAL CARE,LONDON CARE LTD,"1,882.75",PHY LTS 18-64,HOMECARE - C&V,2103059472,1000003398
06.02.2020,ADULT SOCIAL CARE,LONDON CARE LTD,"2,074.00",PHY LTS 18-64,HOMECARE - C&V,2103059459,1000003398
06.02.2020,ADULT SOCIAL CARE,LONDON CARE LTD,"2,115.65",PHY LTS 18-64,HOMECARE - C&V,2103059436,1000003398
06.02.2020,ADULT SOCIAL CARE,LONDON CARE LTD,"3,128.00",PHY LTS 18-64,HOMECARE - C&V,2103059156,1000003398
06.02.2020,ADULT SOCIAL CARE,LONDON CARE LTD,"3,213.00",PHY LTS 18-64,HOMECARE - C&V,2103059382,1000003398
06.02.2020,ADULT SOCIAL CARE,SUPREME CARE SERVICES LTD,"1,611.39",PHY LTS 18-64,HOMECARE - C&V,2103059589,1000059416
06.02.2020,ADULT SOCIAL CARE,LONDON CARE LTD,361.25,PHY LTS 18-64,HOMECARE - SPOT,2103059263,1000003398
06.02.2020,ADULT SOCIAL CARE,LONDON CARE LTD,688.5,PHY LTS 18-64,HOMECARE - SPOT,2103059393,1000003398
06.02.2020,ADULT SOCIAL CARE,MEDACS HOMECARE,621.03,PHY LTS 65+,HOMECARE - C&V,2103059511,11287415
06.02.2020,ADULT SOCIAL CARE,LONDON CARE LTD,267.75,PHY LTS 65+,HOMECARE - C&V,2103059215,1000003398
06.02.2020,ADULT SOCIAL CARE,LONDON CARE LTD,267.75,PHY LTS 65+,HOMECARE - C&V,2103059297,1000003398
06.02.2020,ADULT SOCIAL CARE,LONDON CARE LTD,272,PHY LTS 65+,HOMECARE - C&V,2103059290,1000003398
06.02.2020,ADULT SOCIAL CARE,LONDON CARE LTD,293.25,PHY LTS 65+,HOMECARE - C&V,2103059148,1000003398
06.02.2020,ADULT SOCIAL CARE,LONDON CARE LTD,297.5,PHY LTS 65+,HOMECARE - C&V,2103059356,1000003398
06.02.2020,ADULT SOCIAL CARE,LONDON CARE LTD,297.5,PHY LTS 65+,HOMECARE - C&V,2103059433,1000003398
06.02.2020,ADULT SOCIAL CARE,LONDON CARE LTD,301.75,PHY LTS 65+,HOMECARE - C&V,2103059110,1000003398
06.02.2020,ADULT SOCIAL CARE,LONDON CARE LTD,301.75,PHY LTS 65+,HOMECARE - C&V,2103059163,1000003398
06.02.2020,ADULT SOCIAL CARE,LONDON CARE LTD,310.25,PHY LTS 65+,HOMECARE - C&V,2103059443,1000003398
06.02.2020,ADULT SOCIAL CARE,LONDON CARE LTD,314.5,PHY LTS 65+,HOMECARE - C&V,2103059235,1000003398
06.02.2020,ADULT SOCIAL CARE,LONDON CARE LTD,331.5,PHY LTS 65+,HOMECARE - C&V,2103059129,1000003398
06.02.2020,ADULT SOCIAL CARE,LONDON CARE LTD,331.5,PHY LTS 65+,HOMECARE - C&V,2103059231,1000003398
06.02.2020,ADULT SOCIAL CARE,LONDON CARE LTD,331.5,PHY LTS 65+,HOMECARE - C&V,2103059236,1000003398
06.02.2020,ADULT SOCIAL CARE,LONDON CARE LTD,331.5,PHY LTS 65+,HOMECARE - C&V,2103059404,1000003398
06.02.2020,ADULT SOCIAL CARE,LONDON CARE LTD,335.75,PHY LTS 65+,HOMECARE - C&V,2103059158,1000003398
06.02.2020,ADULT SOCIAL CARE,LONDON CARE LTD,335.75,PHY LTS 65+,HOMECARE - C&V,2103059242,1000003398
06.02.2020,ADULT SOCIAL CARE,LONDON CARE LTD,335.75,PHY LTS 65+,HOMECARE - C&V,2103059390,1000003398
06.02.2020,ADULT SOCIAL CARE,LONDON CARE LTD,344.25,PHY LTS 65+,HOMECARE - C&V,2103059275,1000003398
06.02.2020,ADULT SOCIAL CARE,LONDON CARE LTD,344.25,PHY LTS 65+,HOMECARE - C&V,2103059337,1000003398
06.02.2020,ADULT SOCIAL CARE,LONDON CARE LTD,344.25,PHY LTS 65+,HOMECARE - C&V,2103059406,1000003398
06.02.2020,ADULT SOCIAL CARE,LONDON CARE LTD,348.5,PHY LTS 65+,HOMECARE - C&V,2103059222,1000003398
06.02.2020,ADULT SOCIAL CARE,LONDON CARE LTD,357,PHY LTS 65+,HOMECARE - C&V,2103059109,1000003398
06.02.2020,ADULT SOCIAL CARE,LONDON CARE LTD,357,PHY LTS 65+,HOMECARE - C&V,2103059190,1000003398
06.02.2020,ADULT SOCIAL CARE,LONDON CARE LTD,357,PHY LTS 65+,HOMECARE - C&V,2103059328,1000003398
06.02.2020,ADULT SOCIAL CARE,LONDON CARE LTD,361.25,PHY LTS 65+,HOMECARE - C&V,2103059150,1000003398
06.02.2020,ADULT SOCIAL CARE,LONDON CARE LTD,361.25,PHY LTS 65+,HOMECARE - C&V,2103059211,1000003398
06.02.2020,ADULT SOCIAL CARE,LONDON CARE LTD,361.25,PHY LTS 65+,HOMECARE - C&V,2103059250,1000003398
06.02.2020,ADULT SOCIAL CARE,LONDON CARE LTD,361.25,PHY LTS 65+,HOMECARE - C&V,2103059460,1000003398
06.02.2020,ADULT SOCIAL CARE,LONDON CARE LTD,369.75,PHY LTS 65+,HOMECARE - C&V,2103059329,1000003398
06.02.2020,ADULT SOCIAL CARE,LONDON CARE LTD,378.25,PHY LTS 65+,HOMECARE - C&V,2103059386,1000003398
06.02.2020,ADULT SOCIAL CARE,LONDON CARE LTD,382.5,PHY LTS 65+,HOMECARE - C&V,2103059299,1000003398
06.02.2020,ADULT SOCIAL CARE,LONDON CARE LTD,386.75,PHY LTS 65+,HOMECARE - C&V,2103059278,1000003398
06.02.2020,ADULT SOCIAL CARE,LONDON CARE LTD,399.5,PHY LTS 65+,HOMECARE - C&V,2103059149,1000003398
06.02.2020,ADULT SOCIAL CARE,LONDON CARE LTD,399.5,PHY LTS 65+,HOMECARE - C&V,2103059214,1000003398
06.02.2020,ADULT SOCIAL CARE,LONDON CARE LTD,408,PHY LTS 65+,HOMECARE - C&V,2103059375,1000003398
06.02.2020,ADULT SOCIAL CARE,LONDON CARE LTD,412.25,PHY LTS 65+,HOMECARE - C&V,2103059358,1000003398
06.02.2020,ADULT SOCIAL CARE,LONDON CARE LTD,437.75,PHY LTS 65+,HOMECARE - C&V,2103059276,1000003398
06.02.2020,ADULT SOCIAL CARE,LONDON CARE LTD,446.25,PHY LTS 65+,HOMECARE - C&V,2103059269,1000003398
06.02.2020,ADULT SOCIAL CARE,LONDON CARE LTD,459,PHY LTS 65+,HOMECARE - C&V,2103059285,1000003398
06.02.2020,ADULT SOCIAL CARE,LONDON CARE LTD,463.25,PHY LTS 65+,HOMECARE - C&V,2103059374,1000003398
06.02.2020,ADULT SOCIAL CARE,LONDON CARE LTD,467.5,PHY LTS 65+,HOMECARE - C&V,2103059444,1000003398
06.02.2020,ADULT SOCIAL CARE,LONDON CARE LTD,476,PHY LTS 65+,HOMECARE - C&V,2103059311,1000003398
06.02.2020,ADULT SOCIAL CARE,LONDON CARE LTD,480.25,PHY LTS 65+,HOMECARE - C&V,2103059201,1000003398
06.02.2020,ADULT SOCIAL CARE,LONDON CARE LTD,484.5,PHY LTS 65+,HOMECARE - C&V,2103059168,1000003398
06.02.2020,ADULT SOCIAL CARE,LONDON CARE LTD,484.5,PHY LTS 65+,HOMECARE - C&V,2103059339,1000003398
06.02.2020,ADULT SOCIAL CARE,LONDON CARE LTD,493,PHY LTS 65+,HOMECARE - C&V,2103059107,1000003398
06.02.2020,ADULT SOCIAL CARE,LONDON CARE LTD,493,PHY LTS 65+,HOMECARE - C&V,2103059174,1000003398
06.02.2020,ADULT SOCIAL CARE,LONDON CARE LTD,493,PHY LTS 65+,HOMECARE - C&V,2103059182,1000003398
06.02.2020,ADULT SOCIAL CARE,LONDON CARE LTD,501.5,PHY LTS 65+,HOMECARE - C&V,2103059473,1000003398
06.02.2020,ADULT SOCIAL CARE,LONDON CARE LTD,510,PHY LTS 65+,HOMECARE - C&V,2103059456,1000003398
06.02.2020,ADULT SOCIAL CARE,LONDON CARE LTD,514.25,PHY LTS 65+,HOMECARE - C&V,2103059167,1000003398
06.02.2020,ADULT SOCIAL CARE,LONDON CARE LTD,518.5,PHY LTS 65+,HOMECARE - C&V,2103059414,1000003398
06.02.2020,ADULT SOCIAL CARE,LONDON CARE LTD,540.88,PHY LTS 65+,HOMECARE - C&V,2103059152,1000003398
06.02.2020,ADULT SOCIAL CARE,LONDON CARE LTD,544,PHY LTS 65+,HOMECARE - C&V,2103059343,1000003398
06.02.2020,ADULT SOCIAL CARE,LONDON CARE LTD,548.25,PHY LTS 65+,HOMECARE - C&V,2103059144,1000003398
06.02.2020,ADULT SOCIAL CARE,LONDON CARE LTD,552.5,PHY LTS 65+,HOMECARE - C&V,2103059289,1000003398
06.02.2020,ADULT SOCIAL CARE,LONDON CARE LTD,556.75,PHY LTS 65+,HOMECARE - C&V,2103059381,1000003398
06.02.2020,ADULT SOCIAL CARE,LONDON CARE LTD,561,PHY LTS 65+,HOMECARE - C&V,2103059435,1000003398
06.02.2020,ADULT SOCIAL CARE,LONDON CARE LTD,562.7,PHY LTS 65+,HOMECARE - C&V,2103059103,1000003398
06.02.2020,ADULT SOCIAL CARE,LONDON CARE LTD,565.25,PHY LTS 65+,HOMECARE - C&V,2103059287,1000003398
06.02.2020,ADULT SOCIAL CARE,LONDON CARE LTD,565.25,PHY LTS 65+,HOMECARE - C&V,2103059408,1000003398
06.02.2020,ADULT SOCIAL CARE,LONDON CARE LTD,578,PHY LTS 65+,HOMECARE - C&V,2103059204,1000003398
06.02.2020,ADULT SOCIAL CARE,LONDON CARE LTD,578.28,PHY LTS 65+,HOMECARE - C&V,2103059430,1000003398
06.02.2020,ADULT SOCIAL CARE,LONDON CARE LTD,582.25,PHY LTS 65+,HOMECARE - C&V,2103059366,1000003398
06.02.2020,ADULT SOCIAL CARE,LONDON CARE LTD,582.25,PHY LTS 65+,HOMECARE - C&V,2103059413,1000003398
06.02.2020,ADULT SOCIAL CARE,LONDON CARE LTD,582.25,PHY LTS 65+,HOMECARE - C&V,2103059419,1000003398
06.02.2020,ADULT SOCIAL CARE,LONDON CARE LTD,590.75,PHY LTS 65+,HOMECARE - C&V,2103059338,1000003398
06.02.2020,ADULT SOCIAL CARE,LONDON CARE LTD,595,PHY LTS 65+,HOMECARE - C&V,2103059255,1000003398
06.02.2020,ADULT SOCIAL CARE,LONDON CARE LTD,603.5,PHY LTS 65+,HOMECARE - C&V,2103059213,1000003398
06.02.2020,ADULT SOCIAL CARE,LONDON CARE LTD,612,PHY LTS 65+,HOMECARE - C&V,2103059194,1000003398
06.02.2020,ADULT SOCIAL CARE,LONDON CARE LTD,612,PHY LTS 65+,HOMECARE - C&V,2103059272,1000003398
06.02.2020,ADULT SOCIAL CARE,LONDON CARE LTD,612,PHY LTS 65+,HOMECARE - C&V,2103059277,1000003398
06.02.2020,ADULT SOCIAL CARE,LONDON CARE LTD,616.25,PHY LTS 65+,HOMECARE - C&V,2103059336,1000003398
06.02.2020,ADULT SOCIAL CARE,LONDON CARE LTD,616.25,PHY LTS 65+,HOMECARE - C&V,2103059458,1000003398
06.02.2020,ADULT SOCIAL CARE,LONDON CARE LTD,620.5,PHY LTS 65+,HOMECARE - C&V,2103059306,1000003398
06.02.2020,ADULT SOCIAL CARE,LONDON CARE LTD,624.75,PHY LTS 65+,HOMECARE - C&V,2103059237,1000003398
06.02.2020,ADULT SOCIAL CARE,LONDON CARE LTD,633.25,PHY LTS 65+,HOMECARE - C&V,2103059166,1000003398
06.02.2020,ADULT SOCIAL CARE,LONDON CARE LTD,633.25,PHY LTS 65+,HOMECARE - C&V,2103059450,1000003398
06.02.2020,ADULT SOCIAL CARE,LONDON CARE LTD,637.5,PHY LTS 65+,HOMECARE - C&V,2103059146,1000003398
06.02.2020,ADULT SOCIAL CARE,LONDON CARE LTD,650.25,PHY LTS 65+,HOMECARE - C&V,2103059429,1000003398
06.02.2020,ADULT SOCIAL CARE,LONDON CARE LTD,659.6,PHY LTS 65+,HOMECARE - C&V,2103059212,1000003398
06.02.2020,ADULT SOCIAL CARE,LONDON CARE LTD,671.5,PHY LTS 65+,HOMECARE - C&V,2103059428,1000003398
06.02.2020,ADULT SOCIAL CARE,LONDON CARE LTD,688.5,PHY LTS 65+,HOMECARE - C&V,2103059193,1000003398
06.02.2020,ADULT SOCIAL CARE,LONDON CARE LTD,697,PHY LTS 65+,HOMECARE - C&V,2103059379,1000003398
06.02.2020,ADULT SOCIAL CARE,LONDON CARE LTD,701.25,PHY LTS 65+,HOMECARE - C&V,2103059159,1000003398
06.02.2020,ADULT SOCIAL CARE,LONDON CARE LTD,705.5,PHY LTS 65+,HOMECARE - C&V,2103059260,1000003398
06.02.2020,ADULT SOCIAL CARE,LONDON CARE LTD,714,PHY LTS 65+,HOMECARE - C&V,2103059169,1000003398
06.02.2020,ADULT SOCIAL CARE,LONDON CARE LTD,714,PHY LTS 65+,HOMECARE - C&V,2103059225,1000003398
06.02.2020,ADULT SOCIAL CARE,LONDON CARE LTD,717.97,PHY LTS 65+,HOMECARE - C&V,2103059352,1000003398
06.02.2020,ADULT SOCIAL CARE,LONDON CARE LTD,722.5,PHY LTS 65+,HOMECARE - C&V,2103059138,1000003398
06.02.2020,ADULT SOCIAL CARE,LONDON CARE LTD,729.58,PHY LTS 65+,HOMECARE - C&V,2103059115,1000003398
06.02.2020,ADULT SOCIAL CARE,LONDON CARE LTD,731,PHY LTS 65+,HOMECARE - C&V,2103059224,1000003398
06.02.2020,ADULT SOCIAL CARE,LONDON CARE LTD,735.25,PHY LTS 65+,HOMECARE - C&V,2103059301,1000003398
06.02.2020,ADULT SOCIAL CARE,LONDON CARE LTD,746.3,PHY LTS 65+,HOMECARE - C&V,2103059119,1000003398
06.02.2020,ADULT SOCIAL CARE,LONDON CARE LTD,756.5,PHY LTS 65+,HOMECARE - C&V,2103059331,1000003398
06.02.2020,ADULT SOCIAL CARE,LONDON CARE LTD,756.5,PHY LTS 65+,HOMECARE - C&V,2103059387,1000003398
06.02.2020,ADULT SOCIAL CARE,LONDON CARE LTD,757.35,PHY LTS 65+,HOMECARE - C&V,2103059353,1000003398
06.02.2020,ADULT SOCIAL CARE,LONDON CARE LTD,760.75,PHY LTS 65+,HOMECARE - C&V,2103059477,1000003398
06.02.2020,ADULT SOCIAL CARE,LONDON CARE LTD,773.5,PHY LTS 65+,HOMECARE - C&V,2103059325,1000003398
06.02.2020,ADULT SOCIAL CARE,LONDON CARE LTD,777.75,PHY LTS 65+,HOMECARE - C&V,2103059142,1000003398
06.02.2020,ADULT SOCIAL CARE,LONDON CARE LTD,780.58,PHY LTS 65+,HOMECARE - C&V,2103059295,1000003398
06.02.2020,ADULT SOCIAL CARE,LONDON CARE LTD,782,PHY LTS 65+,HOMECARE - C&V,2103059334,1000003398
06.02.2020,ADULT SOCIAL CARE,LONDON CARE LTD,782,PHY LTS 65+,HOMECARE - C&V,2103059395,1000003398
06.02.2020,ADULT SOCIAL CARE,LONDON CARE LTD,782,PHY LTS 65+,HOMECARE - C&V,2103059466,1000003398
06.02.2020,ADULT SOCIAL CARE,LONDON CARE LTD,790.5,PHY LTS 65+,HOMECARE - C&V,2103059319,1000003398
06.02.2020,ADULT SOCIAL CARE,LONDON CARE LTD,807.5,PHY LTS 65+,HOMECARE - C&V,2103059230,1000003398
06.02.2020,ADULT SOCIAL CARE,LONDON CARE LTD,816,PHY LTS 65+,HOMECARE - C&V,2103059317,1000003398
06.02.2020,ADULT SOCIAL CARE,LONDON CARE LTD,823.93,PHY LTS 65+,HOMECARE - C&V,2103059134,1000003398
06.02.2020,ADULT SOCIAL CARE,LONDON CARE LTD,825.92,PHY LTS 65+,HOMECARE - C&V,2103059155,1000003398
06.02.2020,ADULT SOCIAL CARE,LONDON CARE LTD,828.75,PHY LTS 65+,HOMECARE - C&V,2103059296,1000003398
06.02.2020,ADULT SOCIAL CARE,LONDON CARE LTD,830.17,PHY LTS 65+,HOMECARE - C&V,2103059123,1000003398
06.02.2020,ADULT SOCIAL CARE,LONDON CARE LTD,845.75,PHY LTS 65+,HOMECARE - C&V,2103059454,1000003398
06.02.2020,ADULT SOCIAL CARE,LONDON CARE LTD,850,PHY LTS 65+,HOMECARE - C&V,2103059136,1000003398
06.02.2020,ADULT SOCIAL CARE,LONDON CARE LTD,856.8,PHY LTS 65+,HOMECARE - C&V,2103059234,1000003398
06.02.2020,ADULT SOCIAL CARE,LONDON CARE LTD,858.5,PHY LTS 65+,HOMECARE - C&V,2103059369,1000003398
06.02.2020,ADULT SOCIAL CARE,LONDON CARE LTD,867,PHY LTS 65+,HOMECARE - C&V,2103059205,1000003398
06.02.2020,ADULT SOCIAL CARE,LONDON CARE LTD,875.5,PHY LTS 65+,HOMECARE - C&V,2103059258,1000003398
06.02.2020,ADULT SOCIAL CARE,LONDON CARE LTD,875.5,PHY LTS 65+,HOMECARE - C&V,2103059415,1000003398
06.02.2020,ADULT SOCIAL CARE,LONDON CARE LTD,884,PHY LTS 65+,HOMECARE - C&V,2103059425,1000003398
06.02.2020,ADULT SOCIAL CARE,LONDON CARE LTD,885.13,PHY LTS 65+,HOMECARE - C&V,2103059154,1000003398
06.02.2020,ADULT SOCIAL CARE,LONDON CARE LTD,896.75,PHY LTS 65+,HOMECARE - C&V,2103059261,1000003398
06.02.2020,ADULT SOCIAL CARE,LONDON CARE LTD,896.75,PHY LTS 65+,HOMECARE - C&V,2103059371,1000003398
06.02.2020,ADULT SOCIAL CARE,LONDON CARE LTD,901,PHY LTS 65+,HOMECARE - C&V,2103059286,1000003398
06.02.2020,ADULT SOCIAL CARE,LONDON CARE LTD,905.25,PHY LTS 65+,HOMECARE - C&V,2103059431,1000003398
06.02.2020,ADULT SOCIAL CARE,LONDON CARE LTD,909.5,PHY LTS 65+,HOMECARE - C&V,2103059112,1000003398
06.02.2020,ADULT SOCIAL CARE,LONDON CARE LTD,909.5,PHY LTS 65+,HOMECARE - C&V,2103059462,1000003398
06.02.2020,ADULT SOCIAL CARE,LONDON CARE LTD,913.75,PHY LTS 65+,HOMECARE - C&V,2103059399,1000003398
06.02.2020,ADULT SOCIAL CARE,LONDON CARE LTD,935,PHY LTS 65+,HOMECARE - C&V,2103059333,1000003398
06.02.2020,ADULT SOCIAL CARE,LONDON CARE LTD,935,PHY LTS 65+,HOMECARE - C&V,2103059340,1000003398
06.02.2020,ADULT SOCIAL CARE,LONDON CARE LTD,943.5,PHY LTS 65+,HOMECARE - C&V,2103059392,1000003398
06.02.2020,ADULT SOCIAL CARE,LONDON CARE LTD,952,PHY LTS 65+,HOMECARE - C&V,2103059470,1000003398
06.02.2020,ADULT SOCIAL CARE,LONDON CARE LTD,956.25,PHY LTS 65+,HOMECARE - C&V,2103059241,1000003398
06.02.2020,ADULT SOCIAL CARE,LONDON CARE LTD,960.5,PHY LTS 65+,HOMECARE - C&V,2103059274,1000003398
06.02.2020,ADULT SOCIAL CARE,LONDON CARE LTD,960.5,PHY LTS 65+,HOMECARE - C&V,2103059442,1000003398
06.02.2020,ADULT SOCIAL CARE,LONDON CARE LTD,973.25,PHY LTS 65+,HOMECARE - C&V,2103059391,1000003398
06.02.2020,ADULT SOCIAL CARE,LONDON CARE LTD,977.5,PHY LTS 65+,HOMECARE - C&V,2103059114,1000003398
06.02.2020,ADULT SOCIAL CARE,LONDON CARE LTD,981.75,PHY LTS 65+,HOMECARE - C&V,2103059264,1000003398
06.02.2020,ADULT SOCIAL CARE,LONDON CARE LTD,981.75,PHY LTS 65+,HOMECARE - C&V,2103059323,1000003398
06.02.2020,ADULT SOCIAL CARE,LONDON CARE LTD,986,PHY LTS 65+,HOMECARE - C&V,2103059423,1000003398
06.02.2020,ADULT SOCIAL CARE,LONDON CARE LTD,998.75,PHY LTS 65+,HOMECARE - C&V,2103059402,1000003398
06.02.2020,ADULT SOCIAL CARE,LONDON CARE LTD,"1,011.50",PHY LTS 65+,HOMECARE - C&V,2103059437,1000003398
06.02.2020,ADULT SOCIAL CARE,LONDON CARE LTD,"1,020.00",PHY LTS 65+,HOMECARE - C&V,2103059368,1000003398
06.02.2020,ADULT SOCIAL CARE,LONDON CARE LTD,"1,037.00",PHY LTS 65+,HOMECARE - C&V,2103059209,1000003398
06.02.2020,ADULT SOCIAL CARE,LONDON CARE LTD,"1,041.53",PHY LTS 65+,HOMECARE - C&V,2103059228,1000003398
06.02.2020,ADULT SOCIAL CARE,LONDON CARE LTD,"1,047.20",PHY LTS 65+,HOMECARE - C&V,2103059108,1000003398
06.02.2020,ADULT SOCIAL CARE,LONDON CARE LTD,"1,071.00",PHY LTS 65+,HOMECARE - C&V,2103059294,1000003398
06.02.2020,ADULT SOCIAL CARE,LONDON CARE LTD,"1,075.25",PHY LTS 65+,HOMECARE - C&V,2103059140,1000003398
06.02.2020,ADULT SOCIAL CARE,LONDON CARE LTD,"1,079.50",PHY LTS 65+,HOMECARE - C&V,2103059370,1000003398
06.02.2020,ADULT SOCIAL CARE,LONDON CARE LTD,"1,109.25",PHY LTS 65+,HOMECARE - C&V,2103059384,1000003398
06.02.2020,ADULT SOCIAL CARE,LONDON CARE LTD,"1,110.67",PHY LTS 65+,HOMECARE - C&V,2103059238,1000003398
06.02.2020,ADULT SOCIAL CARE,LONDON CARE LTD,"1,133.05",PHY LTS 65+,HOMECARE - C&V,2103059349,1000003398
06.02.2020,ADULT SOCIAL CARE,LONDON CARE LTD,"1,147.50",PHY LTS 65+,HOMECARE - C&V,2103059122,1000003398
06.02.2020,ADULT SOCIAL CARE,LONDON CARE LTD,"1,147.50",PHY LTS 65+,HOMECARE - C&V,2103059240,1000003398
06.02.2020,ADULT SOCIAL CARE,LONDON CARE LTD,"1,165.35",PHY LTS 65+,HOMECARE - C&V,2103059401,1000003398
06.02.2020,ADULT SOCIAL CARE,LONDON CARE LTD,"1,177.25",PHY LTS 65+,HOMECARE - C&V,2103059141,1000003398
06.02.2020,ADULT SOCIAL CARE,LONDON CARE LTD,"1,178.67",PHY LTS 65+,HOMECARE - C&V,2103059479,1000003398
06.02.2020,ADULT SOCIAL CARE,LONDON CARE LTD,"1,207.00",PHY LTS 65+,HOMECARE - C&V,2103059188,1000003398
06.02.2020,ADULT SOCIAL CARE,LONDON CARE LTD,"1,224.00",PHY LTS 65+,HOMECARE - C&V,2103059219,1000003398
06.02.2020,ADULT SOCIAL CARE,LONDON CARE LTD,"1,283.50",PHY LTS 65+,HOMECARE - C&V,2103059383,1000003398
06.02.2020,ADULT SOCIAL CARE,LONDON CARE LTD,"1,314.10",PHY LTS 65+,HOMECARE - C&V,2103059342,1000003398
06.02.2020,ADULT SOCIAL CARE,LONDON CARE LTD,"1,364.25",PHY LTS 65+,HOMECARE - C&V,2103059411,1000003398
06.02.2020,ADULT SOCIAL CARE,LONDON CARE LTD,"1,398.25",PHY LTS 65+,HOMECARE - C&V,2103059176,1000003398
06.02.2020,ADULT SOCIAL CARE,LONDON CARE LTD,"1,423.75",PHY LTS 65+,HOMECARE - C&V,2103059139,1000003398
06.02.2020,ADULT SOCIAL CARE,LONDON CARE LTD,"1,504.50",PHY LTS 65+,HOMECARE - C&V,2103059283,1000003398
06.02.2020,ADULT SOCIAL CARE,LONDON CARE LTD,"1,551.25",PHY LTS 65+,HOMECARE - C&V,2103059421,1000003398
06.02.2020,ADULT SOCIAL CARE,LONDON CARE LTD,"1,623.50",PHY LTS 65+,HOMECARE - C&V,2103059173,1000003398
06.02.2020,ADULT SOCIAL CARE,LONDON CARE LTD,"1,632.57",PHY LTS 65+,HOMECARE - C&V,2103059226,1000003398
06.02.2020,ADULT SOCIAL CARE,LONDON CARE LTD,"1,670.25",PHY LTS 65+,HOMECARE - C&V,2103059300,1000003398
06.02.2020,ADULT SOCIAL CARE,LONDON CARE LTD,"1,763.75",PHY LTS 65+,HOMECARE - C&V,2103059376,1000003398
06.02.2020,ADULT SOCIAL CARE,LONDON CARE LTD,"1,806.25",PHY LTS 65+,HOMECARE - C&V,2103059105,1000003398
06.02.2020,ADULT SOCIAL CARE,LONDON CARE LTD,"1,836.00",PHY LTS 65+,HOMECARE - C&V,2103059175,1000003398
06.02.2020,ADULT SOCIAL CARE,LONDON CARE LTD,"1,908.25",PHY LTS 65+,HOMECARE - C&V,2103059453,1000003398
06.02.2020,ADULT SOCIAL CARE,LONDON CARE LTD,"1,921.00",PHY LTS 65+,HOMECARE - C&V,2103059101,1000003398
06.02.2020,ADULT SOCIAL CARE,LONDON CARE LTD,"1,938.00",PHY LTS 65+,HOMECARE - C&V,2103059461,1000003398
06.02.2020,ADULT SOCIAL CARE,LONDON CARE LTD,"2,074.00",PHY LTS 65+,HOMECARE - C&V,2103059357,1000003398
06.02.2020,ADULT SOCIAL CARE,LONDON CARE LTD,"2,091.00",PHY LTS 65+,HOMECARE - C&V,2103059281,1000003398
06.02.2020,ADULT SOCIAL CARE,LONDON CARE LTD,"2,150.50",PHY LTS 65+,HOMECARE - C&V,2103059420,1000003398
06.02.2020,ADULT SOCIAL CARE,LONDON CARE LTD,"2,176.00",PHY LTS 65+,HOMECARE - C&V,2103059217,1000003398
06.02.2020,ADULT SOCIAL CARE,LONDON CARE LTD,"2,193.00",PHY LTS 65+,HOMECARE - C&V,2103059135,1000003398
06.02.2020,ADULT SOCIAL CARE,LONDON CARE LTD,"2,286.50",PHY LTS 65+,HOMECARE - C&V,2103059157,1000003398
06.02.2020,ADULT SOCIAL CARE,LONDON CARE LTD,"2,299.25",PHY LTS 65+,HOMECARE - C&V,2103059320,1000003398
06.02.2020,ADULT SOCIAL CARE,LONDON CARE LTD,"2,443.75",PHY LTS 65+,HOMECARE - C&V,2103059324,1000003398
06.02.2020,ADULT SOCIAL CARE,LONDON CARE LTD,"2,465.00",PHY LTS 65+,HOMECARE - C&V,2103059252,1000003398
06.02.2020,ADULT SOCIAL CARE,LONDON CARE LTD,"2,516.00",PHY LTS 65+,HOMECARE - C&V,2103059121,1000003398
06.02.2020,ADULT SOCIAL CARE,LONDON CARE LTD,"2,549.43",PHY LTS 65+,HOMECARE - C&V,2103059143,1000003398
06.02.2020,ADULT SOCIAL CARE,LONDON CARE LTD,"2,579.75",PHY LTS 65+,HOMECARE - C&V,2103059130,1000003398
06.02.2020,ADULT SOCIAL CARE,LONDON CARE LTD,"2,579.75",PHY LTS 65+,HOMECARE - C&V,2103059132,1000003398
06.02.2020,ADULT SOCIAL CARE,LONDON CARE LTD,"2,607.23",PHY LTS 65+,HOMECARE - C&V,2103059172,1000003398
06.02.2020,ADULT SOCIAL CARE,LONDON CARE LTD,"2,643.50",PHY LTS 65+,HOMECARE - C&V,2103059315,1000003398
06.02.2020,ADULT SOCIAL CARE,LONDON CARE LTD,"2,690.25",PHY LTS 65+,HOMECARE - C&V,2103059432,1000003398
06.02.2020,ADULT SOCIAL CARE,LONDON CARE LTD,"2,800.75",PHY LTS 65+,HOMECARE - C&V,2103059412,1000003398
06.02.2020,ADULT SOCIAL CARE,LONDON CARE LTD,"2,826.25",PHY LTS 65+,HOMECARE - C&V,2103059279,1000003398
06.02.2020,ADULT SOCIAL CARE,LONDON CARE LTD,"2,851.75",PHY LTS 65+,HOMECARE - C&V,2103059259,1000003398
06.02.2020,ADULT SOCIAL CARE,LONDON CARE LTD,"2,899.07",PHY LTS 65+,HOMECARE - C&V,2103059396,1000003398
06.02.2020,ADULT SOCIAL CARE,LONDON CARE LTD,"3,115.25",PHY LTS 65+,HOMECARE - C&V,2103059451,1000003398
06.02.2020,ADULT SOCIAL CARE,LONDON CARE LTD,"3,145.00",PHY LTS 65+,HOMECARE - C&V,2103059478,1000003398
06.02.2020,ADULT SOCIAL CARE,LONDON CARE LTD,"3,438.25",PHY LTS 65+,HOMECARE - C&V,2103059147,1000003398
06.02.2020,ADULT SOCIAL CARE,SUPREME CARE SERVICES LTD,251.62,PHY LTS 65+,HOMECARE - C&V,2103059590,1000059416
06.02.2020,ADULT SOCIAL CARE,SUPREME CARE SERVICES LTD,"2,312.54",PHY LTS 65+,HOMECARE - C&V,2103059591,1000059416
06.02.2020,ADULT SOCIAL CARE,LONDON CARE LTD,293.25,PHY LTS 65+,HOMECARE - SPOT,2103059111,1000003398
06.02.2020,ADULT SOCIAL CARE,LONDON CARE LTD,514.25,PHY LTS 65+,HOMECARE - SPOT,2103059203,1000003398
06.02.2020,ADULT SOCIAL CARE,LONDON CARE LTD,748,SEN LTS 65+,HOMECARE - C&V,2103059229,1000003398
06.02.2020,ADULT SOCIAL CARE,LONDON CARE LTD,331.5,SOCIAL ISOLATION,HOMECARE - C&V,2103059218,1000003398
06.02.2020,ADULT SOCIAL CARE,LONDON CARE LTD,442,SOCIAL ISOLATION,HOMECARE - C&V,2103059314,1000003398
06.02.2020,ADULT SOCIAL CARE,LONDON CARE LTD,544,SOCIAL ISOLATION,HOMECARE - C&V,2103059131,1000003398
06.02.2020,ADULT SOCIAL CARE,LONDON CARE LTD,620.5,SOCIAL ISOLATION,HOMECARE - C&V,2103059270,1000003398
06.02.2020,ADULT SOCIAL CARE,LONDON CARE LTD,"1,020.00",SOCIAL ISOLATION,HOMECARE - C&V,2103059247,1000003398
06.02.2020,ADULT SOCIAL CARE,LONDON CARE LTD,"1,032.75",SOCIAL ISOLATION,HOMECARE - C&V,2103059405,1000003398
06.02.2020,ADULT SOCIAL CARE,LONDON CARE LTD,"1,279.25",SOCIAL ISOLATION,HOMECARE - C&V,2103059316,1000003398
06.02.2020,ADULT SOCIAL CARE,LONDON CARE LTD,"1,370.77",SOCIAL ISOLATION,HOMECARE - C&V,2103059362,1000003398
06.02.2020,ADULT SOCIAL CARE,INTERSERVE HEALTHCARE,889.12,SPECIALIST CARE,SECTION 17 PAYMENTS TO AGENCIES/CARERS,2103059089,1000049612
06.02.2020,ADULT SOCIAL CARE,RESOURCES FOR AUTISM,722,SPECIALIST CARE,SECTION 17 PAYMENTS TO AGENCIES/CARERS,2103059090,1000062540
06.02.2020,ASSET MANAGEMENT,ASHFORDS LLP,574.01,DISREPAIR,PAYMENTS FOR LEGAL SERVICES,2103059615,1000055865
06.02.2020,CENTRAL FUNCTIONS,PURCELL ARCHITECTURE LTD,"3,250.00",COMMERCIAL PROPERTIES,PROFESSIONAL FEES,5902402147,1000082955
06.02.2020,CENTRAL FUNCTIONS,PURCELL ARCHITECTURE LTD,"4,910.00",COMMERCIAL PROPERTIES,PROFESSIONAL FEES,5902402149,1000082955
06.02.2020,CENTRAL FUNCTIONS,BCS (ELECTRICAL & BUILDING SERVICES LTD),"13,031.03",ENVIRONMENTAL ESTATE WORKS,MATERIALS,5902402045,1000062321
06.02.2020,CHIEF EXECUTIVE,CONWAY AECOM LTD,"21,628.01",CAPITAL PS (REGEN),CONSTR'N SUB CONTRACT - NON CERTIFICATED,2103059039,3000001595
06.02.2020,CHIEF EXECUTIVE,HAYATSU ARCHITECTS LTD,"14,500.00",CAPITAL PS (REGEN),CONSTRUCTION FEES,5902401399,1000082843
06.02.2020,CHIEF EXECUTIVE,OPENREACH BT,731.52,CAPITAL PS (REGEN),CONSTRUCTION FEES  - EXTERNAL,5902402200,1000057270
06.02.2020,CHIEF EXECUTIVE,ORU SPACE LTD,"75,000.00",CAPITAL PS (REGEN),CONSTRUCTION FEES  - EXTERNAL,5902401153,1000083105
06.02.2020,CHIEF EXECUTIVE'S OFFICE,SOUTH LONDON  MAUDSLEY NHS FOUNDATION TRUST,"17,544.22",CHIEF EXECUTIVE'S OFFICE,EXTERNAL AGENCIES AND BODIES,5902401923,1000018045
06.02.2020,CHILDREN AND ADULT,PRIDE DEVELOPMENTS,"160,249.45",CAPITAL PS (SOC SERV),CONSTRUCTION MAIN CONTRACT,2103059610,3000002126
06.02.2020,CHILDREN'S SERVICES,T4 TRUST T/A WAC ARTS COLLEGE,"5,000.00",ALTERNATIVE PROVISION,EXTERNAL AGENCIES AND BODIES,5902402181,1000083275
06.02.2020,CHILDREN'S SERVICES,ZEBEDEES LUNCH BOX LTD,325.71,AYLESBURY EARLY YEARS CENTRE,BOOKS & PUBLICATIONS,5902402017,1000083646
06.02.2020,CHILDREN'S SERVICES,FOSTERCARE UK LTD,"1,200.00",FRIENDS & FAMILY FOSTERING,CLIENT TRANSPORT,5902402030,1000073002
06.02.2020,CHILDREN'S SERVICES,ETHELBERT SPECIALIST HOMES,"3,678.11",FRIENDS & FAMILY FOSTERING,EXTERNAL AGENCIES AND BODIES,2103059533,1796129
06.02.2020,CHILDREN'S SERVICES,ETHELBERT SPECIALIST HOMES,"3,678.11",FRIENDS & FAMILY FOSTERING,EXTERNAL AGENCIES AND BODIES,2103059560,1796129
06.02.2020,CHILDREN'S SERVICES,ETHELBERT SPECIALIST HOMES,"3,678.11",FRIENDS & FAMILY FOSTERING,EXTERNAL AGENCIES AND BODIES,2103059561,1796129
06.02.2020,CHILDREN'S SERVICES,HEATH FARM FAMILY SOLUTION (FOSTERING),"5,176.38",FRIENDS & FAMILY FOSTERING,EXTERNAL AGENCIES AND BODIES,2103059546,11271268
06.02.2020,CHILDREN'S SERVICES,HEATH FARM FAMILY SOLUTION (FOSTERING),"5,322.08",FRIENDS & FAMILY FOSTERING,EXTERNAL AGENCIES AND BODIES,2103059585,11271268
06.02.2020,CHILDREN'S SERVICES,CORE ASSETS FOSTERING LTD,"3,211.60",FRIENDS & FAMILY FOSTERING,EXTERNAL AGENCIES AND BODIES,2103059531,11288002
06.02.2020,CHILDREN'S SERVICES,FIVE RIVERS CHILD CARE LTD,"3,631.43",FRIENDS & FAMILY FOSTERING,EXTERNAL AGENCIES AND BODIES,2103059524,1000018792
06.02.2020,CHILDREN'S SERVICES,KENT HOMEFINDING & FOSTERING LTD,"3,041.10",FRIENDS & FAMILY FOSTERING,EXTERNAL AGENCIES AND BODIES,2103059529,1000033978
06.02.2020,CHILDREN'S SERVICES,KENT HOMEFINDING & FOSTERING LTD,"3,529.35",FRIENDS & FAMILY FOSTERING,EXTERNAL AGENCIES AND BODIES,2103059540,1000033978
06.02.2020,CHILDREN'S SERVICES,KENT HOMEFINDING & FOSTERING LTD,"3,565.00",FRIENDS & FAMILY FOSTERING,EXTERNAL AGENCIES AND BODIES,2103059580,1000033978
06.02.2020,CHILDREN'S SERVICES,KENT HOMEFINDING & FOSTERING LTD,"5,166.81",FRIENDS & FAMILY FOSTERING,EXTERNAL AGENCIES AND BODIES,2103059539,1000033978
06.02.2020,CHILDREN'S SERVICES,FUTURES FOR CHILDREN LIMITED,"3,649.94",FRIENDS & FAMILY FOSTERING,EXTERNAL AGENCIES AND BODIES,2103059545,1000041984
06.02.2020,CHILDREN'S SERVICES,FUTURES FOR CHILDREN LIMITED,"6,713.98",FRIENDS & FAMILY FOSTERING,EXTERNAL AGENCIES AND BODIES,2103059563,1000041984
06.02.2020,CHILDREN'S SERVICES,CHILDREN OF COLOUR,"3,558.80",FRIENDS & FAMILY FOSTERING,EXTERNAL AGENCIES AND BODIES,2103059522,1000044955
06.02.2020,CHILDREN'S SERVICES,CHILDREN OF COLOUR,"3,558.80",FRIENDS & FAMILY FOSTERING,EXTERNAL AGENCIES AND BODIES,2103059568,1000044955
06.02.2020,CHILDREN'S SERVICES,CHILDREN OF COLOUR,"3,558.80",FRIENDS & FAMILY FOSTERING,EXTERNAL AGENCIES AND BODIES,2103059578,1000044955
06.02.2020,CHILDREN'S SERVICES,NEXT STEP FOSTERING SERVICES LTD,"3,986.60",FRIENDS & FAMILY FOSTERING,EXTERNAL AGENCIES AND BODIES,2103059575,1000044973
06.02.2020,CHILDREN'S SERVICES,ST CHRISTOPHER FELLOWSHIP,"3,697.99",FRIENDS & FAMILY FOSTERING,EXTERNAL AGENCIES AND BODIES,2103059557,1000045269
06.02.2020,CHILDREN'S SERVICES,ST CHRISTOPHER FELLOWSHIP,"4,884.67",FRIENDS & FAMILY FOSTERING,EXTERNAL AGENCIES AND BODIES,2103059543,1000045269
06.02.2020,CHILDREN'S SERVICES,CAPSTONE FOSTER CARE (SOUTH EAST) LTD,"3,764.33",FRIENDS & FAMILY FOSTERING,EXTERNAL AGENCIES AND BODIES,2103059526,1000050353
06.02.2020,CHILDREN'S SERVICES,CAPSTONE FOSTER CARE (SOUTH EAST) LTD,"6,598.66",FRIENDS & FAMILY FOSTERING,EXTERNAL AGENCIES AND BODIES,2103059586,1000050353
06.02.2020,CHILDREN'S SERVICES,COMPASS FOSTERING LONDON LTD,"3,077.99",FRIENDS & FAMILY FOSTERING,EXTERNAL AGENCIES AND BODIES,2103059554,1000057908
06.02.2020,CHILDREN'S SERVICES,CHILDREN FIRST FOSTERING AGENCY LTD,"3,981.33",FRIENDS & FAMILY FOSTERING,EXTERNAL AGENCIES AND BODIES,2103059551,1000060081
06.02.2020,CHILDREN'S SERVICES,RYANCARE FOSTERING LTD,"3,541.75",FRIENDS & FAMILY FOSTERING,EXTERNAL AGENCIES AND BODIES,2103059549,1000062376
06.02.2020,CHILDREN'S SERVICES,BARNARDOS SERVICES LTD,"3,559.11",FRIENDS & FAMILY FOSTERING,EXTERNAL AGENCIES AND BODIES,2103059569,1000063730
06.02.2020,CHILDREN'S SERVICES,FOLLOWING WHISPERS FAMILY SERVICE LTD,"6,525.50",FRIENDS & FAMILY FOSTERING,EXTERNAL AGENCIES AND BODIES,2103059596,1000065611
06.02.2020,CHILDREN'S SERVICES,FOLLOWING WHISPERS FAMILY SERVICE LTD,"6,864.33",FRIENDS & FAMILY FOSTERING,EXTERNAL AGENCIES AND BODIES,2103059597,1000065611
06.02.2020,CHILDREN'S SERVICES,ANCHOR FOSTERCARE,"3,856.71",FRIENDS & FAMILY FOSTERING,EXTERNAL AGENCIES AND BODIES,2103059519,1000065675
06.02.2020,CHILDREN'S SERVICES,ANCHOR FOSTERCARE,"4,286.99",FRIENDS & FAMILY FOSTERING,EXTERNAL AGENCIES AND BODIES,2103059573,1000065675
06.02.2020,CHILDREN'S SERVICES,ANCHOR FOSTERCARE,"5,646.34",FRIENDS & FAMILY FOSTERING,EXTERNAL AGENCIES AND BODIES,2103059556,1000065675
06.02.2020,CHILDREN'S SERVICES,FOSTERCARE UK LTD,"6,598.66",FRIENDS & FAMILY FOSTERING,EXTERNAL AGENCIES AND BODIES,2103059562,1000073002
06.02.2020,CHILDREN'S SERVICES,COMPASS FOSTERING SOUTH LTD,"3,675.67",FRIENDS & FAMILY FOSTERING,EXTERNAL AGENCIES AND BODIES,2103059523,1000073772
06.02.2020,CHILDREN'S SERVICES,ASCENT FOSTERING AGENCY LTD,"4,632.33",FRIENDS & FAMILY FOSTERING,EXTERNAL AGENCIES AND BODIES,2103059567,1000074714
06.02.2020,CHILDREN'S SERVICES,ASCENT FOSTERING AGENCY LTD,"5,867.99",FRIENDS & FAMILY FOSTERING,EXTERNAL AGENCIES AND BODIES,2103059520,1000074714
06.02.2020,CHILDREN'S SERVICES,HORIZON FOSTERING SERVICES LTD,"2,937.56",FRIENDS & FAMILY FOSTERING,EXTERNAL AGENCIES AND BODIES,2103059598,1000075679
06.02.2020,CHILDREN'S SERVICES,HORIZON FOSTERING SERVICES LTD,"2,937.56",FRIENDS & FAMILY FOSTERING,EXTERNAL AGENCIES AND BODIES,2103059600,1000075679
06.02.2020,CHILDREN'S SERVICES,HORIZON FOSTERING SERVICES LTD,"3,092.25",FRIENDS & FAMILY FOSTERING,EXTERNAL AGENCIES AND BODIES,2103059595,1000075679
06.02.2020,CHILDREN'S SERVICES,MOSAIC FOSTER CARE LTD,"6,642.68",FRIENDS & FAMILY FOSTERING,EXTERNAL AGENCIES AND BODIES,2103059570,1000076259
06.02.2020,CHILDREN'S SERVICES,MOSAIC FOSTER CARE LTD,"6,975.00",FRIENDS & FAMILY FOSTERING,EXTERNAL AGENCIES AND BODIES,2103059528,1000076259
06.02.2020,CHILDREN'S SERVICES,FOSTERING LONDON LTD,"4,650.00",FRIENDS & FAMILY FOSTERING,EXTERNAL AGENCIES AND BODIES,2103059572,1000077541
06.02.2020,CHILDREN'S SERVICES,FOSTERING LONDON LTD,"4,787.50",FRIENDS & FAMILY FOSTERING,EXTERNAL AGENCIES AND BODIES,2103059541,1000077541
06.02.2020,CHILDREN'S SERVICES,FOSTERING LONDON LTD,"5,092.99",FRIENDS & FAMILY FOSTERING,EXTERNAL AGENCIES AND BODIES,2103059581,1000077541
06.02.2020,CHILDREN'S SERVICES,ORANGE GROVE FOSTERCARE LTD,"3,751.75",FRIENDS & FAMILY FOSTERING,EXTERNAL AGENCIES AND BODIES,2103059582,1000078716
06.02.2020,CHILDREN'S SERVICES,PARENT AND CHILD FOSTERING ASSESSMENTS,"3,321.42",FRIENDS & FAMILY FOSTERING,EXTERNAL AGENCIES AND BODIES,2103059555,1000078962
06.02.2020,CHILDREN'S SERVICES,PARENT AND CHILD FOSTERING ASSESSMENTS,"8,134.00",FRIENDS & FAMILY FOSTERING,EXTERNAL AGENCIES AND BODIES,2103059553,1000078962
06.02.2020,CHILDREN'S SERVICES,SELECT FOSTERCARE SERVICES LTD,"3,653.35",FRIENDS & FAMILY FOSTERING,EXTERNAL AGENCIES AND BODIES,2103059525,1000079277
06.02.2020,CHILDREN'S SERVICES,SELECT FOSTERCARE SERVICES LTD,"3,653.35",FRIENDS & FAMILY FOSTERING,EXTERNAL AGENCIES AND BODIES,2103059579,1000079277
06.02.2020,CHILDREN'S SERVICES,SELECT FOSTERCARE SERVICES LTD,"3,653.66",FRIENDS & FAMILY FOSTERING,EXTERNAL AGENCIES AND BODIES,2103059538,1000079277
06.02.2020,CHILDREN'S SERVICES,SELECT FOSTERCARE SERVICES LTD,"3,653.66",FRIENDS & FAMILY FOSTERING,EXTERNAL AGENCIES AND BODIES,2103059571,1000079277
06.02.2020,CHILDREN'S SERVICES,HELP ME GROW FOSTERING SERVICES LTD,"2,869.51",FRIENDS & FAMILY FOSTERING,EXTERNAL AGENCIES AND BODIES,2103059536,1000079302
06.02.2020,CHILDREN'S SERVICES,HELP ME GROW FOSTERING SERVICES LTD,"2,869.51",FRIENDS & FAMILY FOSTERING,EXTERNAL AGENCIES AND BODIES,2103059547,1000079302
06.02.2020,CHILDREN'S SERVICES,HELP ME GROW FOSTERING SERVICES LTD,"3,188.35",FRIENDS & FAMILY FOSTERING,EXTERNAL AGENCIES AND BODIES,2103059537,1000079302
06.02.2020,CHILDREN'S SERVICES,HELP ME GROW FOSTERING SERVICES LTD,"3,188.35",FRIENDS & FAMILY FOSTERING,EXTERNAL AGENCIES AND BODIES,2103059558,1000079302
06.02.2020,CHILDREN'S SERVICES,HELP ME GROW FOSTERING SERVICES LTD,"3,188.35",FRIENDS & FAMILY FOSTERING,EXTERNAL AGENCIES AND BODIES,2103059564,1000079302
06.02.2020,CHILDREN'S SERVICES,HELP ME GROW FOSTERING SERVICES LTD,"3,188.35",FRIENDS & FAMILY FOSTERING,EXTERNAL AGENCIES AND BODIES,2103059587,1000079302
06.02.2020,CHILDREN'S SERVICES,HELP ME GROW FOSTERING SERVICES LTD,"4,650.00",FRIENDS & FAMILY FOSTERING,EXTERNAL AGENCIES AND BODIES,2103059559,1000079302
06.02.2020,CHILDREN'S SERVICES,HELP ME GROW FOSTERING SERVICES LTD,"5,951.69",FRIENDS & FAMILY FOSTERING,EXTERNAL AGENCIES AND BODIES,2103059527,1000079302
06.02.2020,CHILDREN'S SERVICES,SHINING STARS FOSTERING AGENCY LTD,"3,321.34",FRIENDS & FAMILY FOSTERING,EXTERNAL AGENCIES AND BODIES,2103059599,1000079431
06.02.2020,CHILDREN'S SERVICES,CONNECT FOSTERING SERVICES LTD,"3,343.57",FRIENDS & FAMILY FOSTERING,EXTERNAL AGENCIES AND BODIES,2103059552,1000079969
06.02.2020,CHILDREN'S SERVICES,LIGHTHOUSE FOSTERING LTD,"5,766.89",FRIENDS & FAMILY FOSTERING,EXTERNAL AGENCIES AND BODIES,2103059577,1000080372
06.02.2020,CHILDREN'S SERVICES,FOSTERING FOR YOU LTD,"3,271.21",FRIENDS & FAMILY FOSTERING,EXTERNAL AGENCIES AND BODIES,2103059521,1000080380
06.02.2020,CHILDREN'S SERVICES,FOSTERING FOR YOU LTD,"3,271.21",FRIENDS & FAMILY FOSTERING,EXTERNAL AGENCIES AND BODIES,2103059550,1000080380
06.02.2020,CHILDREN'S SERVICES,FOSTERING FOR YOU LTD,"3,443.39",FRIENDS & FAMILY FOSTERING,EXTERNAL AGENCIES AND BODIES,2103059532,1000080380
06.02.2020,CHILDREN'S SERVICES,FOSTERING FOR YOU LTD,"3,443.39",FRIENDS & FAMILY FOSTERING,EXTERNAL AGENCIES AND BODIES,2103059542,1000080380
06.02.2020,CHILDREN'S SERVICES,FOSTERING FOR YOU LTD,"3,443.39",FRIENDS & FAMILY FOSTERING,EXTERNAL AGENCIES AND BODIES,2103059566,1000080380
06.02.2020,CHILDREN'S SERVICES,FOSTERING FOR YOU LTD,"3,443.39",FRIENDS & FAMILY FOSTERING,EXTERNAL AGENCIES AND BODIES,2103059574,1000080380
06.02.2020,CHILDREN'S SERVICES,FOSTERING FOR YOU LTD,"3,443.39",FRIENDS & FAMILY FOSTERING,EXTERNAL AGENCIES AND BODIES,2103059584,1000080380
06.02.2020,CHILDREN'S SERVICES,COMPASS FOSTERING SOUTH EAST LTD,"4,270.25",FRIENDS & FAMILY FOSTERING,EXTERNAL AGENCIES AND BODIES,2103059583,1000081155
06.02.2020,CHILDREN'S SERVICES,COMPASS FOSTERING SOUTH EAST LTD,"5,535.67",FRIENDS & FAMILY FOSTERING,EXTERNAL AGENCIES AND BODIES,2103059544,1000081155
06.02.2020,CHILDREN'S SERVICES,DIVERSITY FOSTER CARE LTD,"4,108.69",FRIENDS & FAMILY FOSTERING,EXTERNAL AGENCIES AND BODIES,2103059530,1000081399
06.02.2020,CHILDREN'S SERVICES,DIVERSITY FOSTER CARE LTD,"4,108.69",FRIENDS & FAMILY FOSTERING,EXTERNAL AGENCIES AND BODIES,2103059565,1000081399
06.02.2020,CHILDREN'S SERVICES,FUSION FOSTERING LTD,"3,579.22",FRIENDS & FAMILY FOSTERING,EXTERNAL AGENCIES AND BODIES,2103059534,1000081674
06.02.2020,CHILDREN'S SERVICES,AIM HIGH FOSTERING SERVICES LTD,"5,314.02",FRIENDS & FAMILY FOSTERING,EXTERNAL AGENCIES AND BODIES,2103059548,1000082607
06.02.2020,CHILDREN'S SERVICES,HOLLY BRYAN ASSOCIATES LTD,"3,800.00",MANAGEMENT INFORMATION UNIT,PROFESSIONAL FEES,5902402204,1000077962
06.02.2020,CHILDREN'S SERVICES,HOLLY BRYAN ASSOCIATES LTD,"4,200.00",MANAGEMENT INFORMATION UNIT,PROFESSIONAL FEES,5902402205,1000077962
06.02.2020,CHILDREN'S SERVICES,INTERSERVE (FACILITIES MANAGEMENT),"1,017.62",MGMT & PARENTING PROG TEAM,PREMISES CLEANING,5902402095,1000070792
06.02.2020,CHILDREN'S SERVICES,HARRIS ACADEMY BERMONDSEY,600,PUPIL PREMIUM CURRENT YEAR,SCHOOLS CAPITATION,2103059042,1000052842
06.02.2020,CHILDREN'S SERVICES,HARRIS ACADEMY CRYSTAL PALACE,"6,500.00",PUPIL PREMIUM CURRENT YEAR,SCHOOLS CAPITATION,2103059041,1000073877
06.02.2020,CHILDREN'S SERVICES,BEACON ACADEMY,500,PUPIL PREMIUM CURRENT YEAR,SCHOOLS CAPITATION,2103059043,1000081094
06.02.2020,CHILDREN'S SERVICES,THE CHARTER SCHOOL EDUCATIONAL TRUST,"6,220.00",PUPIL PREMIUM CURRENT YEAR,SCHOOLS CAPITATION,2103059040,1000064975
06.02.2020,CHILDREN'S SERVICES,SACRED HEART CATHOLIC SCHOOL,"1,050.00",PUPIL PREMIUM CURRENT YEAR,SCHOOLS CAPITATION,2103059044,1000071091
06.02.2020,CHILDREN'S SERVICES,BROXBOURNE CE PRIMARY SCHOOL,"1,500.00",PUPIL PREMIUM CURRENT YEAR,SCHOOLS CAPITATION,2103059045,1000082966
06.02.2020,CHILDREN'S SERVICES,YOUNG FOUNDATIONS LTD,"21,452.00",RESIDENTIAL,EXTERNAL AGENCIES AND BODIES,2103059082,1000083666
06.02.2020,CHILDREN'S SERVICES,KEYS CHILDCARE LTD,885.72,RESIDENTIAL,OTHER PAYMENTS FOR CLIENTS,2103059081,1000081582
06.02.2020,CHILDREN'S SERVICES,PLUS ONE LTD,"19,906.43",RESIDENTIAL,RESIDENTIAL CARE,2103059085,1000013874
06.02.2020,CHILDREN'S SERVICES,CASTLE HOMES LIMITED,"16,889.51",RESIDENTIAL,RESIDENTIAL CARE,2103059067,1000019388
06.02.2020,CHILDREN'S SERVICES,CASTLE HOMES LIMITED,"19,928.57",RESIDENTIAL,RESIDENTIAL CARE,2103059068,1000019388
06.02.2020,CHILDREN'S SERVICES,HILLCREST CARE SERVICES LTD,"15,455.71",RESIDENTIAL,RESIDENTIAL CARE,2103059075,1000071137
06.02.2020,CHILDREN'S SERVICES,CAMBIAN CHILDCARE LTD,"20,592.99",RESIDENTIAL,RESIDENTIAL CARE,2103059077,1000075351
06.02.2020,CHILDREN'S SERVICES,THE AMICUS COMMUNITY (ARUNDEL) LTD,"20,570.67",RESIDENTIAL,RESIDENTIAL CARE,2103059070,1000079012
06.02.2020,CHILDREN'S SERVICES,TULIP CARE TWO LTD,"14,000.00",RESIDENTIAL,RESIDENTIAL CARE,2103059088,1000079091
06.02.2020,CHILDREN'S SERVICES,ACORN HOMES (UK) LTD,"16,607.01",RESIDENTIAL,RESIDENTIAL CARE,2103059083,1000080423
06.02.2020,CHILDREN'S SERVICES,EXCEPTIONAL CARE LTD,"18,600.00",RESIDENTIAL,RESIDENTIAL CARE,2103059086,1000080896
06.02.2020,CHILDREN'S SERVICES,KEYS CHILDCARE LTD,"16,607.14",RESIDENTIAL,RESIDENTIAL CARE,2103059080,1000081582
06.02.2020,CHILDREN'S SERVICES,KEYS SPECIALIST RESIDENTIAL CHILDREN'S SERVICES,"21,921.43",RESIDENTIAL,RESIDENTIAL CARE,2103059071,1000081606
06.02.2020,CHILDREN'S SERVICES,OUTBOUND CARE LTD,"28,785.71",RESIDENTIAL,RESIDENTIAL CARE,2103059084,1000083072
06.02.2020,CHILDREN'S SERVICES,UNIQUE CARE HOMES SUPPORT LTD,"22,520.00",RESIDENTIAL,RESIDENTIAL CARE,2103059078,1000083349
06.02.2020,CHILDREN'S SERVICES,UNIQUE CARE HOMES SUPPORT LTD,"31,340.00",RESIDENTIAL,RESIDENTIAL CARE,2103059073,1000083349
06.02.2020,CHILDREN'S SERVICES,PARKVIEW CARE (BROADSTAIRS) LTD,"29,605.00",RESIDENTIAL,RESIDENTIAL CARE,2103059072,1000083678
06.02.2020,CHILDREN'S SERVICES,ZENITH CARS LTD,322,S & FAM SUPP - PRAC GRP B SET 17-19,OTHER PAYMENTS FOR CLIENTS,5902402206,1000070570
06.02.2020,CHILDREN'S SERVICES,ZENITH CARS LTD,450,S & FAM SUPP - PRAC GRP D SET 23-25,HIRED VEHICLES,5902402206,1000070570
06.02.2020,CHILDREN'S SERVICES,ZENITH CARS LTD,"1,828.00",S & FAM SUPP - PRAC GRP F SET 29-31,OTHER PAYMENTS FOR CLIENTS,5902402206,1000070570
06.02.2020,CHILDREN'S SERVICES,PLUS ONE LTD,387.45,SEMI INDEPENDENT CARE LEAVERS,EXTERNAL AGENCIES AND BODIES,2103059485,1000013874
06.02.2020,CHILDREN'S SERVICES,CITYGLEN LTD,"1,395.00",SEMI INDEPENDENT CARE LEAVERS,EXTERNAL AGENCIES AND BODIES,2103059484,1000026239
06.02.2020,CHILDREN'S SERVICES,YOUNG FUTURES,"-2,302.06",SEMI INDEPENDENT CARE LEAVERS,EXTERNAL AGENCIES AND BODIES,2103059481,1000059563
06.02.2020,CHILDREN'S SERVICES,YOUNG FUTURES,-903.34,SEMI INDEPENDENT CARE LEAVERS,EXTERNAL AGENCIES AND BODIES,2103059486,1000059563
06.02.2020,CHILDREN'S SERVICES,YOUNG FUTURES,-903.34,SEMI INDEPENDENT CARE LEAVERS,EXTERNAL AGENCIES AND BODIES,2103059492,1000059563
06.02.2020,CHILDREN'S SERVICES,YOUNG FUTURES,"2,214.33",SEMI INDEPENDENT CARE LEAVERS,EXTERNAL AGENCIES AND BODIES,2103059482,1000059563
06.02.2020,CHILDREN'S SERVICES,YOUNG FUTURES,"2,214.33",SEMI INDEPENDENT CARE LEAVERS,EXTERNAL AGENCIES AND BODIES,2103059494,1000059563
06.02.2020,CHILDREN'S SERVICES,YOUNG FUTURES,"2,790.00",SEMI INDEPENDENT CARE LEAVERS,EXTERNAL AGENCIES AND BODIES,2103059493,1000059563
06.02.2020,CHILDREN'S SERVICES,YOUNG FUTURES,"3,365.67",SEMI INDEPENDENT CARE LEAVERS,EXTERNAL AGENCIES AND BODIES,2103059498,1000059563
06.02.2020,CHILDREN'S SERVICES,YOUNG FUTURES,"3,941.34",SEMI INDEPENDENT CARE LEAVERS,EXTERNAL AGENCIES AND BODIES,2103059487,1000059563
06.02.2020,CHILDREN'S SERVICES,YOUNG FUTURES,"3,941.34",SEMI INDEPENDENT CARE LEAVERS,EXTERNAL AGENCIES AND BODIES,2103059489,1000059563
06.02.2020,CHILDREN'S SERVICES,HOLIBROOK HOUSE LTD,"6,310.71",SEMI INDEPENDENT CARE LEAVERS,EXTERNAL AGENCIES AND BODIES,2103059091,1000067873
06.02.2020,CHILDREN'S SERVICES,FAMILY FOSTERING LTD,"1,771.34",SEMI INDEPENDENT CARE LEAVERS,EXTERNAL AGENCIES AND BODIES,2103059092,1000075179
06.02.2020,CHILDREN'S SERVICES,FINEFAIR LTD,"1,687.33",SEMI INDEPENDENT CARE LEAVERS,EXTERNAL AGENCIES AND BODIES,2103059093,1000075570
06.02.2020,CHILDREN'S SERVICES,SP HOMES LTD,919.77,SEMI INDEPENDENT CARE LEAVERS,EXTERNAL AGENCIES AND BODIES,2103059496,1000080326
06.02.2020,CHILDREN'S SERVICES,IDEAL CARE SOLUTIONS LTD,"1,948.57",SEMI INDEPENDENT CARE LEAVERS,EXTERNAL AGENCIES AND BODIES,2103059098,1000080804
06.02.2020,CHILDREN'S SERVICES,ADULLAM SUPPORT LTD,"3,147.66",SEMI INDEPENDENT CARE LEAVERS,EXTERNAL AGENCIES AND BODIES,2103059097,1000081148
06.02.2020,CHILDREN'S SERVICES,SYDNEY CARE LTD,"3,742.14",SEMI INDEPENDENT CARE LEAVERS,EXTERNAL AGENCIES AND BODIES,2103059094,1000081598
06.02.2020,CHILDREN'S SERVICES,REDACTED PERSONAL DATA,"1,628.65",SEMI INDEPENDENT CARE LEAVERS,EXTERNAL AGENCIES AND BODIES,REDACTED,REDACTED
06.02.2020,CHILDREN'S SERVICES,THE MEDUSA PROJECT LTD,"8,192.68",SEMI INDEPENDENT LAC,EXTERNAL AGENCIES AND BODIES,2103059505,1000014392
06.02.2020,CHILDREN'S SERVICES,THE MEDUSA PROJECT LTD,"8,192.68",SEMI INDEPENDENT LAC,EXTERNAL AGENCIES AND BODIES,2103059506,1000014392
06.02.2020,CHILDREN'S SERVICES,YOUNG FUTURES,"2,790.00",SEMI INDEPENDENT LAC,EXTERNAL AGENCIES AND BODIES,2103059497,1000059563
06.02.2020,CHILDREN'S SERVICES,YOUNG FUTURES,"8,192.68",SEMI INDEPENDENT LAC,EXTERNAL AGENCIES AND BODIES,2103059507,1000059563
06.02.2020,CHILDREN'S SERVICES,ASSOCIATED CARE SERVICES LTD,"1,860.00",SEMI INDEPENDENT LAC,EXTERNAL AGENCIES AND BODIES,2103059503,1000070299
06.02.2020,CHILDREN'S SERVICES,ASSOCIATED CARE SERVICES LTD,"17,914.26",SEMI INDEPENDENT LAC,EXTERNAL AGENCIES AND BODIES,2103059501,1000070299
06.02.2020,CHILDREN'S SERVICES,CREATING LIFESTYLES LTD,"23,800.00",SEMI INDEPENDENT LAC,EXTERNAL AGENCIES AND BODIES,2103059504,1000075830
06.02.2020,CHILDREN'S SERVICES,ADULLAM SUPPORT LTD,"1,361.78",SEMI INDEPENDENT LAC,EXTERNAL AGENCIES AND BODIES,2103059096,1000081148
06.02.2020,CHILDREN'S SERVICES,SYDNEY CARE LTD,"3,985.71",SEMI INDEPENDENT LAC,EXTERNAL AGENCIES AND BODIES,2103059518,1000081598
06.02.2020,CHILDREN'S SERVICES,SYDNEY CARE LTD,"6,642.85",SEMI INDEPENDENT LAC,EXTERNAL AGENCIES AND BODIES,2103059517,1000081598
06.02.2020,CHILDREN'S SERVICES,TRANSFORMING LIVES COMPANY LTD,"4,371.00",SEMI INDEPENDENT LAC,EXTERNAL AGENCIES AND BODIES,2103059515,1000083352
06.02.2020,CHILDREN'S SERVICES,ASSOCIATED CARE SERVICES LTD,265.71,SEMI INDEPENDENT LAC,OTHER PAYMENTS FOR CLIENTS,2103059508,1000070299
06.02.2020,CHILDREN'S SERVICES,SYDNEY CARE LTD,256.41,SEMI INDEPENDENT LAC,OTHER PAYMENTS FOR CLIENTS,2103059514,1000081598
06.02.2020,CHILDREN'S SERVICES,SYDNEY CARE LTD,256.41,SEMI INDEPENDENT LAC,OTHER PAYMENTS FOR CLIENTS,2103059516,1000081598
06.02.2020,CHILDREN'S SERVICES,TRANSFORMING LIVES COMPANY LTD,265.7,SEMI INDEPENDENT LAC,OTHER PAYMENTS FOR CLIENTS,2103059513,1000083352
06.02.2020,CHILDREN'S SERVICES,ARK SCHOOLS T/A GLOBE ACADEMY,"1,012.00",SEND INCLUSION FUNDING,"SCHOOLS CAPITATION, OTHER GRANTS",2103058995,1000060008
06.02.2020,CHILDREN'S SERVICES,LITTLEPIPS PRESCHOOL,"1,012.00",SEND INCLUSION FUNDING,"SCHOOLS CAPITATION, OTHER GRANTS",2103058998,1000079580
06.02.2020,CHILDREN'S SERVICES,NELL GWYNN NURSERY SCHOOL,"2,024.00",SEND INCLUSION FUNDING,"SCHOOLS CAPITATION, OTHER GRANTS",2103059021,5001000049
06.02.2020,CHILDREN'S SERVICES,KINTORE WAY CHILDRENS CENTRE,396,SEND INCLUSION FUNDING,"SCHOOLS CAPITATION, OTHER GRANTS",2103059006,5001000047
06.02.2020,CHILDREN'S SERVICES,KINTORE WAY CHILDRENS CENTRE,396,SEND INCLUSION FUNDING,"SCHOOLS CAPITATION, OTHER GRANTS",2103059008,5001000047
06.02.2020,CHILDREN'S SERVICES,KINTORE WAY CHILDRENS CENTRE,396,SEND INCLUSION FUNDING,"SCHOOLS CAPITATION, OTHER GRANTS",2103059009,5001000047
06.02.2020,CHILDREN'S SERVICES,KINTORE WAY CHILDRENS CENTRE,396,SEND INCLUSION FUNDING,"SCHOOLS CAPITATION, OTHER GRANTS",2103059010,5001000047
06.02.2020,CHILDREN'S SERVICES,KINTORE WAY CHILDRENS CENTRE,396,SEND INCLUSION FUNDING,"SCHOOLS CAPITATION, OTHER GRANTS",2103059011,5001000047
06.02.2020,CHILDREN'S SERVICES,KINTORE WAY CHILDRENS CENTRE,396,SEND INCLUSION FUNDING,"SCHOOLS CAPITATION, OTHER GRANTS",2103059012,5001000047
06.02.2020,CHILDREN'S SERVICES,KINTORE WAY CHILDRENS CENTRE,396,SEND INCLUSION FUNDING,"SCHOOLS CAPITATION, OTHER GRANTS",2103059015,5001000047
06.02.2020,CHILDREN'S SERVICES,KINTORE WAY CHILDRENS CENTRE,396,SEND INCLUSION FUNDING,"SCHOOLS CAPITATION, OTHER GRANTS",2103059016,5001000047
06.02.2020,CHILDREN'S SERVICES,KINTORE WAY CHILDRENS CENTRE,396,SEND INCLUSION FUNDING,"SCHOOLS CAPITATION, OTHER GRANTS",2103059017,5001000047
06.02.2020,CHILDREN'S SERVICES,KINTORE WAY CHILDRENS CENTRE,"1,012.00",SEND INCLUSION FUNDING,"SCHOOLS CAPITATION, OTHER GRANTS",2103059000,5001000047
06.02.2020,CHILDREN'S SERVICES,KINTORE WAY CHILDRENS CENTRE,"1,012.00",SEND INCLUSION FUNDING,"SCHOOLS CAPITATION, OTHER GRANTS",2103059001,5001000047
06.02.2020,CHILDREN'S SERVICES,KINTORE WAY CHILDRENS CENTRE,"1,012.00",SEND INCLUSION FUNDING,"SCHOOLS CAPITATION, OTHER GRANTS",2103059002,5001000047
06.02.2020,CHILDREN'S SERVICES,KINTORE WAY CHILDRENS CENTRE,"1,012.00",SEND INCLUSION FUNDING,"SCHOOLS CAPITATION, OTHER GRANTS",2103059003,5001000047
06.02.2020,CHILDREN'S SERVICES,KINTORE WAY CHILDRENS CENTRE,"1,012.00",SEND INCLUSION FUNDING,"SCHOOLS CAPITATION, OTHER GRANTS",2103059004,5001000047
06.02.2020,CHILDREN'S SERVICES,KINTORE WAY CHILDRENS CENTRE,"1,012.00",SEND INCLUSION FUNDING,"SCHOOLS CAPITATION, OTHER GRANTS",2103059005,5001000047
06.02.2020,CHILDREN'S SERVICES,KINTORE WAY CHILDRENS CENTRE,"1,012.00",SEND INCLUSION FUNDING,"SCHOOLS CAPITATION, OTHER GRANTS",2103059007,5001000047
06.02.2020,CHILDREN'S SERVICES,KINTORE WAY CHILDRENS CENTRE,"1,012.00",SEND INCLUSION FUNDING,"SCHOOLS CAPITATION, OTHER GRANTS",2103059013,5001000047
06.02.2020,CHILDREN'S SERVICES,KINTORE WAY CHILDRENS CENTRE,"1,012.00",SEND INCLUSION FUNDING,"SCHOOLS CAPITATION, OTHER GRANTS",2103059014,5001000047
06.02.2020,CHILDREN'S SERVICES,PILGRIM'S WAY PRIMARY SCHOOL,"1,012.00",SEND INCLUSION FUNDING,"SCHOOLS CAPITATION, OTHER GRANTS",2103059019,5001000054
06.02.2020,CHILDREN'S SERVICES,SOUTHWARK PARK PRIMARY SCHOOL,"1,012.00",SEND INCLUSION FUNDING,"SCHOOLS CAPITATION, OTHER GRANTS",2103058999,5001000062
06.02.2020,CHILDREN'S SERVICES,ST JAMES CE SCHOOL,"1,012.00",SEND INCLUSION FUNDING,"SCHOOLS CAPITATION, OTHER GRANTS",2103059018,5001000070
06.02.2020,CHILDREN'S SERVICES,ST JOSEPHS CATHOLIC SCHOOL,"1,012.00",SEND INCLUSION FUNDING,"SCHOOLS CAPITATION, OTHER GRANTS",2103059020,5001000076
06.02.2020,CHILDREN'S SERVICES,TOWNSEND PRIMARY SCHOOL,792,SEND INCLUSION FUNDING,"SCHOOLS CAPITATION, OTHER GRANTS",2103058996,5001000096
06.02.2020,CHILDREN'S SERVICES,TOWNSEND PRIMARY SCHOOL,"2,024.00",SEND INCLUSION FUNDING,"SCHOOLS CAPITATION, OTHER GRANTS",2103058997,5001000096
06.02.2020,CHILDREN'S SERVICES,GREATER LONDON FOSTERING,"2,214.02",STAYING PUT,EXTERNAL AGENCIES AND BODIES,2103059095,1000029184
06.02.2020,CHILDREN'S SERVICES,COMPASS FOSTERING LONDON LTD,"2,214.33",STAYING PUT,EXTERNAL AGENCIES AND BODIES,2103059490,1000057908
06.02.2020,CHILDREN'S SERVICES,SOUTH OF THE RIVER INVESTMENTS LTD,"4,857.70",TEMPORARY ACCOMMODATION,EXTERNAL AGENCIES AND BODIES,5902402029,1000073638
06.02.2020,CHILDREN'S SERVICES,CASTLE WATER LTD,294.51,THOMAS CALTON CENTRE,WATER,5902401977,1000078867
06.02.2020,CHILDREN'S SERVICES,YOUNG FUTURES,-903.34,UASC CARE LEAVERS,EXTERNAL AGENCIES AND BODIES,2103059488,1000059563
06.02.2020,CHILDREN'S SERVICES,YOUNG FUTURES,"2,214.33",UASC CARE LEAVERS,EXTERNAL AGENCIES AND BODIES,2103059495,1000059563
06.02.2020,CHILDREN'S SERVICES,YOUNG FUTURES,"3,277.01",UASC CARE LEAVERS,EXTERNAL AGENCIES AND BODIES,2103059499,1000059563
06.02.2020,CHILDREN'S SERVICES,REDACTED PERSONAL DATA,400,UASC CARE LEAVERS,OTHER PAYMENTS FOR CLIENTS,REDACTED,REDACTED
06.02.2020,CHILDREN'S SERVICES,PURPLE PEBBLES(CHILD CARE) SERVICES,450,UASC LAC,EXTERNAL AGENCIES AND BODIES,2103059502,1000070705
06.02.2020,COMMUNITIES PROJECTS,SOUTHSIDE PARTNERSHIP LTD,"1,309.13",NO RECOURSE TO PUBLIC FUNDS,ACCOMMODATION CHARGES,5902402003,1716624
06.02.2020,COMMUNITIES PROJECTS,SOUTHSIDE PARTNERSHIP LTD,"1,309.13",NO RECOURSE TO PUBLIC FUNDS,ACCOMMODATION CHARGES,5902402008,1716624
06.02.2020,COMMUNITIES PROJECTS,SOUTHSIDE PARTNERSHIP LTD,"2,849.52",NO RECOURSE TO PUBLIC FUNDS,ACCOMMODATION CHARGES,5902402010,1716624
06.02.2020,COMMUNITIES PROJECTS,SOUTHSIDE PARTNERSHIP LTD,"3,336.53",NO RECOURSE TO PUBLIC FUNDS,ACCOMMODATION CHARGES,5902401976,1716624
06.02.2020,COMMUNITIES PROJECTS,J & M OASIS LTD,"18,816.00",NO RECOURSE TO PUBLIC FUNDS,ACCOMMODATION CHARGES,5902401993,1000072169
06.02.2020,COMMUNITIES PROJECTS,NATIONWIDE ACCOMMODATION,"5,682.50",NO RECOURSE TO PUBLIC FUNDS,ACCOMMODATION CHARGES,5902402140,1000076112
06.02.2020,COMMUNITIES PROJECTS,PROPERTYPLACEBOOK LTD,"20,220.00",NO RECOURSE TO PUBLIC FUNDS,ACCOMMODATION CHARGES,5902402001,1000077817
06.02.2020,COMMUNITIES PROJECTS,REFUGE,"31,090.25",VIOLENCE AGAINST WOMEN & GIRLS,OTHER CONTRACTORS,5902402104,1000034825
06.02.2020,COMMUNITIES PROJECTS,REFUGE,"31,090.25",VIOLENCE AGAINST WOMEN & GIRLS,OTHER CONTRACTORS,5902402106,1000034825
06.02.2020,COMMUNITIES PROJECTS,REFUGE,"31,090.25",VIOLENCE AGAINST WOMEN & GIRLS,OTHER CONTRACTORS,5902402108,1000034825
06.02.2020,COMMUNITIES PROJECTS,REFUGE,"31,090.25",VIOLENCE AGAINST WOMEN & GIRLS,OTHER CONTRACTORS,5902402109,1000034825
06.02.2020,CUSTOMER EXPERIENCE HGF,SG PATH LTD,415.8,CORONER'S,PROFESSIONAL FEES,5902402053,1000077883
06.02.2020,CUSTOMER EXPERIENCE HGF,SG PATH LTD,415.8,CORONER'S,PROFESSIONAL FEES,5902402054,1000077883
06.02.2020,CUSTOMER EXPERIENCE HGF,IMPERIAL COLLEGE PROJECTS LTD,480,CORONER'S,PROFESSIONAL FEES,5902402060,1000080106
06.02.2020,CUSTOMER EXPERIENCE HGF,IMPERIAL COLLEGE PROJECTS LTD,484,CORONER'S,PROFESSIONAL FEES,5902402058,1000080106
06.02.2020,CUSTOMER EXPERIENCE HGF,IMPERIAL COLLEGE PROJECTS LTD,484,CORONER'S,PROFESSIONAL FEES,5902402061,1000080106
06.02.2020,CUSTOMER EXPERIENCE HGF,IMPERIAL COLLEGE PROJECTS LTD,604,CORONER'S,PROFESSIONAL FEES,5902402056,1000080106
06.02.2020,CUSTOMER EXPERIENCE HGF,IMPERIAL COLLEGE PROJECTS LTD,676,CORONER'S,PROFESSIONAL FEES,5902402057,1000080106
06.02.2020,CUSTOMER EXPERIENCE HGF,REACH-OUT HOUSING LTD,"1,583.66",HOMELESS PROJECTS,GRANTS,5902402047,1000071129
06.02.2020,CUSTOMER EXPERIENCE HGF,FRESHVIEW ESTATES LTD,"1,299.06",HOMELESS PROJECTS,GRANTS,5902400779,1000081189
06.02.2020,CUSTOMER EXPERIENCE HGF,S & G PROPERTIES,"3,890.50",NIGHTLY TA (NSC),EXTERNAL AGENCIES AND BODIES,5902401950,1000005082
06.02.2020,ENVIRONMENT AND LEISURE,HALLWOOD ASSOCIATES LTD,995,CAPITAL PS (LEISURE),CONSTR'N SUB CONTRACT - NON CERTIFICATED,5902401693,1000082131
06.02.2020,ENVIRONMENT DIRECTORATE,PACE ACCIDENT REPAIRS CENTRE LTD,380,COMMERCIAL VEH CTRL A/C,HIRED VEHICLES,5902402032,1000069899
06.02.2020,ENVIRONMENT DIRECTORATE,PACE ACCIDENT REPAIRS CENTRE LTD,380,COMMERCIAL VEH CTRL A/C,HIRED VEHICLES,5902402033,1000069899
06.02.2020,ENVIRONMENT DIRECTORATE,PACE ACCIDENT REPAIRS CENTRE LTD,380,COMMERCIAL VEH CTRL A/C,HIRED VEHICLES,5902402034,1000069899
06.02.2020,ENVIRONMENT DIRECTORATE,IMPERIAL JANITORIAL SUPPLIES LTD,"1,299.85",ESTATE CLEANING-GENERAL,MATERIALS,5902401421,1000038126
06.02.2020,ENVIRONMENT DIRECTORATE,AGENTIS WORKWEAR LTD,402,MANAGEMENT TEAM,"CLOTHING, UNIFORMS & LAUNDRY",5902401023,1000065561
06.02.2020,ENVIRONMENT DIRECTORATE,ANTALIS LTD,292,MANAGEMENT TEAM,STATIONERY,5902401989,1000066919
06.02.2020,ENVIRONMENT DIRECTORATE,EURO TRAINING SERVICES LTD,975,MANAGEMENT TEAM,TRAINING,5902401109,1000072728
06.02.2020,ENVIRONMENT DIRECTORATE,MARWOOD ELECTRICAL COMPANY LTD,440.3,PUBLIC LIGHTING,MATERIALS,5902401922,1001874
06.02.2020,ENVIRONMENT DIRECTORATE,MARWOOD ELECTRICAL COMPANY LTD,504.28,PUBLIC LIGHTING,MATERIALS,5902401922,1001874
06.02.2020,ENVIRONMENT DIRECTORATE,INDO LIGHTING LTD,"9,990.00",PUBLIC LIGHTING,MATERIALS,5902402202,1000063084
06.02.2020,ENVIRONMENT DIRECTORATE,TRAVIS PERKINS TRADING COMPANY LTD,667,R & M OVERHEADS,MATERIALS,5902401930,1514319
06.02.2020,ENVIRONMENT DIRECTORATE,TRAVIS PERKINS TRADING COMPANY LTD,901.2,R & M OVERHEADS,MATERIALS,5902401925,1514319
06.02.2020,ENVIRONMENT DIRECTORATE,BCS (ELECTRICAL & BUILDING) LTD,"19,071.08",SBS - HOLDING ACCOUNT,OTHER CONTRACTORS,2103059607,3000001471
06.02.2020,ENVIRONMENT DIRECTORATE,BCS (ELECTRICAL & BUILDING) LTD,"41,771.11",SBS - HOLDING ACCOUNT,OTHER CONTRACTORS,2103059606,3000001471
06.02.2020,ENVIRONMENT DIRECTORATE,TRAVIS PERKINS TRADING COMPANY LTD,815.2,SBS AIDS AND ADAPTATIONS,MATERIALS,5902402026,1514319
06.02.2020,ENVIRONMENT DIRECTORATE,DUREY CASTINGS LTD,290,SBS COMMUNAL REPAIRS,MATERIALS,5902401685,1000053649
06.02.2020,ENVIRONMENT DIRECTORATE,TRAVIS PERKINS TRADING COMPANY LTD,667,SUPPORTED HOUSING - REPAIRS,MATERIALS,5902401937,1514319
06.02.2020,ENVIRONMENT DIRECTORATE,WSP UK LTD,"3,097.50",TRANSPORT PROJECTS,OTHER CONTRACTORS,5902400853,1000054214
06.02.2020,EXCHEQUER SERVICES,DSI BILLING SERVICES LTD,"1,794.06",ADMINISTRATIVE SUPPORT,POSTAGES,5902401251,1000058640
06.02.2020,EXCHEQUER SERVICES,MRO PEOPLE LTD,850,ADMINISTRATIVE SUPPORT,TRAINING,5902402114,1000083017
06.02.2020,EXCHEQUER SERVICES,BETTER BANKSIDE,"58,537.99",BETTER BANKSIDE,EXTERNAL AGENCIES AND BODIES,5902402121,1000036227
06.02.2020,FINANCE DIRECTOR,BDO LLP,"22,005.00",INTERNAL AUDIT CONTRACTS,PAYMENTS FOR FINANCIAL SERVICES,5902400728,1000057898
06.02.2020,FINANCIAL AND INFORMATION GOVERNANCE,BDO LLP,"2,083.33",RISK ADMIN,PROFESSIONAL FEES,5902400823,1000057898
06.02.2020,HOUSING,LIFTEC LIFTS LTD,"64,836.50",PAYMENTS CONTROL ACCOUNT - LIFTEC,I-WORLD CONTRACTORS HOLDING ACCOUNT,5902400901,1000057278
06.02.2020,HOUSING,PRB ESTATES LTD,"7,027.06",PRBE,I-WORLD CONTRACTORS HOLDING ACCOUNT,2103059612,3000001691
06.02.2020,HOUSING,SMITH & BYFORD LTD,"536,199.73",SMITH AND BYFORD,I-WORLD CONTRACTORS HOLDING ACCOUNT,2103059611,3000000520
06.02.2020,HOUSING GENERAL FUND,AJM ADAPTIONS LTD,450,CAPITAL PS (HOUSING GF),CAPITAL GRANTS,5902401966,1000080297
06.02.2020,HOUSING HRA,HARRADINES REMOVALS,"2,500.00",CAPITAL PS (HRA),CAPITAL GRANTS,5902402086,1006511
06.02.2020,HOUSING HRA,FRANKHAM CONSULTANCY GROUP LTD,593.9,CAPITAL PS (HRA),CONST'N MAIN CONTRACT - NON CERTIFICATED,5902402113,1000043952
06.02.2020,HOUSING HRA,FRANKHAM CONSULTANCY GROUP LTD,706.31,CAPITAL PS (HRA),CONST'N MAIN CONTRACT - NON CERTIFICATED,5902402111,1000043952
06.02.2020,HOUSING HRA,CALFORD SEADEN LLP,"4,599.15",CAPITAL PS (HRA),CONSTRUCTION FEES  - EXTERNAL,5902402091,1061592
06.02.2020,HOUSING HRA,CALFORD SEADEN LLP,"89,333.54",CAPITAL PS (HRA),CONSTRUCTION FEES  - EXTERNAL,5902402005,1061592
06.02.2020,HOUSING HRA,HAWORTH TOMPKINS LTD,"20,250.00",CAPITAL PS (HRA),CONSTRUCTION FEES  - EXTERNAL,5902402004,1000043607
06.02.2020,HOUSING HRA,ENGIE REGENERATION (APOLLO) LTD,"10,891.49",CAPITAL PS (HRA),CONSTRUCTION MAIN CONTRACT -CERTIFICATED,2103059608,4000449
06.02.2020,HOUSING HRA,ENGIE REGENERATION (APOLLO) LTD,"238,380.76",CAPITAL PS (HRA),CONSTRUCTION MAIN CONTRACT -CERTIFICATED,2103057311,4000449
06.02.2020,LAW & DEMOCRACY,RENNIE & MANOR JOINT MANAGEMENT COMMITTEE,410,GENERAL ELECTION,HIRE OF ROOMS/HALLS,5902402063,1000059900
06.02.2020,LEISURE DIRECTORATE,DRAIN SCAN,"3,400.00",CEMETERIES,BUILDING R&M,5902401998,1908746
06.02.2020,LEISURE DIRECTORATE,LEE SNASHFOLD CREMETORIA MANAGEMENT,"1,891.00",CREMATORIUM,PROFESSIONAL FEES,5902402124,1000077845
06.02.2020,LEISURE DIRECTORATE,INSPIRE AT ST PETER'S LTD,"7,740.75",GRANTS COMMISSIONING,GRANTS,5902402105,1000041565
06.02.2020,LEISURE DIRECTORATE,METRO CENTRE LTD,"6,677.75",GRANTS COMMISSIONING,GRANTS,5902402171,1000073797
06.02.2020,LEISURE DIRECTORATE,COVERGOLD LTD,395,LOCAL HISTORY LIBRARY,SUBSCRIPTIONS,5902401680,1000068605
06.02.2020,LEISURE DIRECTORATE,COLLIERS INTERNATIONAL,"2,500.00",SDM BUDGET,PROFESSIONAL FEES,5902402048,1000056014
06.02.2020,MODERNISATION HGF,DIGITAL ID LTD T/A ESSENTRA SECURITY,644.65,160 TOOLEY ST.,BUILDING R&M,5902401616,1000025760
06.02.2020,MODERNISATION HGF,ASURE SOFTWARE UK LTD,"1,797.63",160 TOOLEY ST.,SOFTWARE,5902402189,1000057385
06.02.2020,MODERNISATION HGF,ASURE SOFTWARE UK LTD,"29,000.00",160 TOOLEY ST.,SOFTWARE,5902402189,1000057385
06.02.2020,MODERNISATION HGF,PSYCHOSYNTHESIS AND EDUCATION TRUST,268.5,DIGITAL DELIVERY,HIRE OF ROOMS/HALLS,5902402099,1000081101
06.02.2020,MODERNISATION HGF,PSYCHOSYNTHESIS AND EDUCATION TRUST,348.5,DIGITAL DELIVERY,HIRE OF ROOMS/HALLS,5902402085,1000081101
06.02.2020,MODERNISATION HGF,PSYCHOSYNTHESIS AND EDUCATION TRUST,348.5,DIGITAL DELIVERY,HIRE OF ROOMS/HALLS,5902402103,1000081101
06.02.2020,MODERNISATION HGF,PSI TALENT MEASUREMENT (UK) LTD,498.2,OCCUPATIONAL ASSESSMENT,CONSULTANTS SERVICES,5902400623,1000008858
06.02.2020,MODERNISATION HGF,COMENSURA LTD,"578,710.29",WEEKLY PAYMENTS,AGENCY STAFF,5902402065,1000051261
06.02.2020,REGENERATION,CLYDE & CO,"1,503.00","COURAGE YARD, SHAD THAMES",SOLICITORS FRAMEWORK LEGAL SERVICES,5902402161,1000067838
06.02.2020,REGENERATION,GVA GRIMLEY LTD T/A AVISON YOUNG,"5,500.00",MASTER PLAN-H/WAY & TRANS INTERCHANGE,PROFESSIONAL FEES,5902400809,1000016057
06.02.2020,REGENERATION,THE NEW AYLESBURY TRUST,"70,000.00",NDC MATTERS (APRIL 10 +),GRANTS,5902402198,1000062597
06.02.2020,REGENERATION,OPEN COMMUNITIES LTD,"1,882.50",OKR MASTER PLANNING,PROFESSIONAL FEES,5902402093,1000065800
06.02.2020,REGENERATION,OPEN COMMUNITIES LTD,"3,000.00",OKR MASTER PLANNING,PROFESSIONAL FEES,5902402093,1000065800
06.02.2020,REGENERATION,CENTRAL FUTURES LTD,620,STAKEHOLDER ENGAGEMENT,PROFESSIONAL FEES,5902402156,1000070566
06.02.2020,REGENERATION,CENTRAL FUTURES LTD,"26,000.00",STAKEHOLDER ENGAGEMENT,PROFESSIONAL FEES,5902402156,1000070566
06.02.2020,RESIDENT SERVICES,CASTLE WATER LTD,478.36,NORTHCOTT HOUSE,WATER,5902401985,1000078867
06.02.2020,RESIDENT SERVICES,EDF ENERGY PLC,-378.34,OPERATIONS/OFFICES ACCOMMODATION,ELECTRICITY,5902401968,1008746
06.02.2020,RESIDENT SERVICES,EDF ENERGY PLC,439.81,OPERATIONS/OFFICES ACCOMMODATION,ELECTRICITY,5902401959,1008746
06.02.2020,RESIDENT SERVICES,EDF ENERGY PLC,632.61,OPERATIONS/OFFICES ACCOMMODATION,ELECTRICITY,5902401953,1008746
06.02.2020,RESIDENT SERVICES,HARROW GREEN LTD,308.15,OPERATIONS/OFFICES ACCOMMODATION,REMOVAL EXPENSES,5902402107,1000076673
06.02.2020,RESIDENT SERVICES,HARROW GREEN LTD,446.9,OPERATIONS/OFFICES ACCOMMODATION,REMOVAL EXPENSES,5902402101,1000076673
06.02.2020,RESIDENT SERVICES,HARROW GREEN LTD,565.84,OPERATIONS/OFFICES ACCOMMODATION,REMOVAL EXPENSES,5902402042,1000076673
06.02.2020,RESIDENT SERVICES,HARROW GREEN LTD,580,OPERATIONS/OFFICES ACCOMMODATION,REMOVAL EXPENSES,5902402062,1000076673
06.02.2020,RESIDENT SERVICES,HARROW GREEN LTD,941,OPERATIONS/OFFICES ACCOMMODATION,REMOVAL EXPENSES,5902402097,1000076673
06.02.2020,RESIDENT SERVICES,HARROW GREEN LTD,"1,133.92",OPERATIONS/OFFICES ACCOMMODATION,REMOVAL EXPENSES,5902402074,1000076673
06.02.2020,RESIDENT SERVICES,HARROW GREEN LTD,"1,332.72",OPERATIONS/OFFICES ACCOMMODATION,REMOVAL EXPENSES,5902402059,1000076673
06.02.2020,RESIDENT SERVICES,HARROW GREEN LTD,"1,739.91",OPERATIONS/OFFICES ACCOMMODATION,REMOVAL EXPENSES,5902402044,1000076673
06.02.2020,RESIDENT SERVICES,HARROW GREEN LTD,"6,770.95",OPERATIONS/OFFICES ACCOMMODATION,REMOVAL EXPENSES,5902402066,1000076673
06.02.2020,RESIDENT SERVICES,HARROW GREEN LTD,"11,041.86",OPERATIONS/OFFICES ACCOMMODATION,REMOVAL EXPENSES,5902402069,1000076673
06.02.2020,RESIDENT SERVICES,PINNACLE POWER LTD,"3,099.49",PRIVATE SERVICE CHARGES,SERVICE CHARGES,5902400998,1000081494
06.02.2020,RESIDENT SERVICES,C BREWER & SONS LTD,522.2,TA HOSTELS,MATERIALS,5902402175,1056028
06.02.2020,RESIDENT SERVICES,THAMES WATER UTILITIES LTD,"6,851.13",TA HOSTELS,WATER,5902402186,1630755
06.02.2020,RESIDENT SERVICES,THAMES WATER UTILITIES LTD,"8,010.29",TA HOSTELS,WATER,5902402193,1630755
06.02.2020,SOUTHWARK BUILDING SERVICES,EDWARDES BROS (DULWICH) LTD,641.7,STORES/LOGISTICS,CREDITORS -GR/IR CLEARING ACCOUNT,5902402142,1004945
06.02.2020,SOUTHWARK BUILDING SERVICES,EDWARDES BROS (DULWICH) LTD,"1,437.60",STORES/LOGISTICS,CREDITORS -GR/IR CLEARING ACCOUNT,5902402132,1004945
06.02.2020,SOUTHWARK BUILDING SERVICES,EDWARDES BROS (DULWICH) LTD,"1,443.00",STORES/LOGISTICS,CREDITORS -GR/IR CLEARING ACCOUNT,5902402132,1004945
06.02.2020,SOUTHWARK BUILDING SERVICES,EDWARDES BROS (DULWICH) LTD,"1,443.00",STORES/LOGISTICS,CREDITORS -GR/IR CLEARING ACCOUNT,5902402139,1004945
06.02.2020,SOUTHWARK BUILDING SERVICES,EDWARDES BROS (DULWICH) LTD,"2,676.00",STORES/LOGISTICS,CREDITORS -GR/IR CLEARING ACCOUNT,5902402142,1004945
06.02.2020,SOUTHWARK BUILDING SERVICES,THAMESMEAD BUSINESS SERVICES  LTD,950.4,STORES/LOGISTICS,CREDITORS -GR/IR CLEARING ACCOUNT,5902401981,1011709
06.02.2020,SOUTHWARK BUILDING SERVICES,THAMESMEAD BUSINESS SERVICES  LTD,"1,706.40",STORES/LOGISTICS,CREDITORS -GR/IR CLEARING ACCOUNT,5902401981,1011709
06.02.2020,SOUTHWARK BUILDING SERVICES,REXEL UK LTD T/A NEWEY & EYRE,300,STORES/LOGISTICS,CREDITORS -GR/IR CLEARING ACCOUNT,5902401702,1000019785
06.02.2020,SOUTHWARK BUILDING SERVICES,REXEL UK LTD T/A NEWEY & EYRE,"1,180.00",STORES/LOGISTICS,CREDITORS -GR/IR CLEARING ACCOUNT,5902401702,1000019785
06.02.2020,SOUTHWARK BUILDING SERVICES,REXEL UK LTD T/A NEWEY & EYRE,"1,770.00",STORES/LOGISTICS,CREDITORS -GR/IR CLEARING ACCOUNT,5902401702,1000019785
06.02.2020,SOUTHWARK BUILDING SERVICES,A T & T (GB LTD ),940.8,STORES/LOGISTICS,CREDITORS -GR/IR CLEARING ACCOUNT,5902402195,1000078342
06.02.2020,SOUTHWARK BUILDING SERVICES,A T & T (GB LTD ),"1,335.00",STORES/LOGISTICS,CREDITORS -GR/IR CLEARING ACCOUNT,5902402199,1000078342
06.02.2020,SOUTHWARK BUILDING SERVICES,A T & T (GB LTD ),"1,530.00",STORES/LOGISTICS,CREDITORS -GR/IR CLEARING ACCOUNT,5902402194,1000078342
06.02.2020,SOUTHWARK BUILDING SERVICES,A T & T (GB LTD ),"1,692.00",STORES/LOGISTICS,CREDITORS -GR/IR CLEARING ACCOUNT,5902402197,1000078342
06.02.2020,SOUTHWARK BUILDING SERVICES,A T & T (GB LTD ),"1,847.20",STORES/LOGISTICS,CREDITORS -GR/IR CLEARING ACCOUNT,5902402195,1000078342
06.02.2020,SOUTHWARK BUILDING SERVICES,A T & T (GB LTD ),"2,282.50",STORES/LOGISTICS,CREDITORS -GR/IR CLEARING ACCOUNT,5902402194,1000078342
07.02.2020,ADULT SOCIAL CARE,REDACTED PERSONAL DATA,488,APPOINTEESHIPS,OTHER PAYMENTS FOR CLIENTS,REDACTED,REDACTED
07.02.2020,ADULT SOCIAL CARE,ACCESS MOBILITY TRANSPORT LTD,"2,578.80",LD LTS 18-64,CLIENT TRANSPORT,2103059763,1000074637
07.02.2020,ADULT SOCIAL CARE,THE CAMDEN SOCIETY (SOCIAL CARE),265.71,LD LTS 18-64,DAYCARE,2103059684,1000036369
07.02.2020,ADULT SOCIAL CARE,THE CAMDEN SOCIETY (SOCIAL CARE),400.08,LD LTS 18-64,DAYCARE,2103059658,1000036369
07.02.2020,ADULT SOCIAL CARE,THE CAMDEN SOCIETY (SOCIAL CARE),582,LD LTS 18-64,DAYCARE,2103059639,1000036369
07.02.2020,ADULT SOCIAL CARE,THE CAMDEN SOCIETY (SOCIAL CARE),660,LD LTS 18-64,DAYCARE,2103059625,1000036369
07.02.2020,ADULT SOCIAL CARE,THE CAMDEN SOCIETY (SOCIAL CARE),660,LD LTS 18-64,DAYCARE,2103059650,1000036369
07.02.2020,ADULT SOCIAL CARE,THE CAMDEN SOCIETY (SOCIAL CARE),660,LD LTS 18-64,DAYCARE,2103059651,1000036369
07.02.2020,ADULT SOCIAL CARE,THE CAMDEN SOCIETY (SOCIAL CARE),660,LD LTS 18-64,DAYCARE,2103059671,1000036369
07.02.2020,ADULT SOCIAL CARE,THE CAMDEN SOCIETY (SOCIAL CARE),660,LD LTS 18-64,DAYCARE,2103059679,1000036369
07.02.2020,ADULT SOCIAL CARE,THE CAMDEN SOCIETY (SOCIAL CARE),660,LD LTS 18-64,DAYCARE,2103059689,1000036369
07.02.2020,ADULT SOCIAL CARE,THE CAMDEN SOCIETY (SOCIAL CARE),705.6,LD LTS 18-64,DAYCARE,2103059688,1000036369
07.02.2020,ADULT SOCIAL CARE,THE CAMDEN SOCIETY (SOCIAL CARE),720,LD LTS 18-64,DAYCARE,2103059637,1000036369
07.02.2020,ADULT SOCIAL CARE,THE CAMDEN SOCIETY (SOCIAL CARE),720,LD LTS 18-64,DAYCARE,2103059655,1000036369
07.02.2020,ADULT SOCIAL CARE,THE CAMDEN SOCIETY (SOCIAL CARE),720,LD LTS 18-64,DAYCARE,2103059672,1000036369
07.02.2020,ADULT SOCIAL CARE,THE CAMDEN SOCIETY (SOCIAL CARE),720,LD LTS 18-64,DAYCARE,2103059771,1000036369
07.02.2020,ADULT SOCIAL CARE,THE CAMDEN SOCIETY (SOCIAL CARE),753.6,LD LTS 18-64,DAYCARE,2103059657,1000036369
07.02.2020,ADULT SOCIAL CARE,THE CAMDEN SOCIETY (SOCIAL CARE),825,LD LTS 18-64,DAYCARE,2103059631,1000036369
07.02.2020,ADULT SOCIAL CARE,THE CAMDEN SOCIETY (SOCIAL CARE),825,LD LTS 18-64,DAYCARE,2103059653,1000036369
07.02.2020,ADULT SOCIAL CARE,THE CAMDEN SOCIETY (SOCIAL CARE),825,LD LTS 18-64,DAYCARE,2103059654,1000036369
07.02.2020,ADULT SOCIAL CARE,THE CAMDEN SOCIETY (SOCIAL CARE),880,LD LTS 18-64,DAYCARE,2103059624,1000036369
07.02.2020,ADULT SOCIAL CARE,THE CAMDEN SOCIETY (SOCIAL CARE),935,LD LTS 18-64,DAYCARE,2103059664,1000036369
07.02.2020,ADULT SOCIAL CARE,THE CAMDEN SOCIETY (SOCIAL CARE),"1,056.00",LD LTS 18-64,DAYCARE,2103059667,1000036369
07.02.2020,ADULT SOCIAL CARE,THE CAMDEN SOCIETY (SOCIAL CARE),"1,200.00",LD LTS 18-64,DAYCARE,2103059623,1000036369
07.02.2020,ADULT SOCIAL CARE,THE CAMDEN SOCIETY (SOCIAL CARE),"1,320.00",LD LTS 18-64,DAYCARE,2103059662,1000036369
07.02.2020,ADULT SOCIAL CARE,THE CAMDEN SOCIETY (SOCIAL CARE),"1,408.00",LD LTS 18-64,DAYCARE,2103059641,1000036369
07.02.2020,ADULT SOCIAL CARE,THE CAMDEN SOCIETY (SOCIAL CARE),"1,408.00",LD LTS 18-64,DAYCARE,2103059663,1000036369
07.02.2020,ADULT SOCIAL CARE,THE CAMDEN SOCIETY (SOCIAL CARE),"1,536.00",LD LTS 18-64,DAYCARE,2103059638,1000036369
07.02.2020,ADULT SOCIAL CARE,THE CAMDEN SOCIETY (SOCIAL CARE),"1,760.00",LD LTS 18-64,DAYCARE,2103059629,1000036369
07.02.2020,ADULT SOCIAL CARE,THE CAMDEN SOCIETY (SOCIAL CARE),"1,760.00",LD LTS 18-64,DAYCARE,2103059682,1000036369
07.02.2020,ADULT SOCIAL CARE,THE CAMDEN SOCIETY (SOCIAL CARE),"2,113.07",LD LTS 18-64,DAYCARE,2103059686,1000036369
07.02.2020,ADULT SOCIAL CARE,THE CAMDEN SOCIETY (SOCIAL CARE),"2,154.52",LD LTS 18-64,DAYCARE,2103059648,1000036369
07.02.2020,ADULT SOCIAL CARE,THE CAMDEN SOCIETY (SOCIAL CARE),"2,154.52",LD LTS 18-64,DAYCARE,2103059656,1000036369
07.02.2020,ADULT SOCIAL CARE,THE CAMDEN SOCIETY (SOCIAL CARE),"2,154.52",LD LTS 18-64,DAYCARE,2103059659,1000036369
07.02.2020,ADULT SOCIAL CARE,THE CAMDEN SOCIETY (SOCIAL CARE),"2,154.52",LD LTS 18-64,DAYCARE,2103059678,1000036369
07.02.2020,ADULT SOCIAL CARE,THE CAMDEN SOCIETY (SOCIAL CARE),"3,114.00",LD LTS 18-64,DAYCARE,2103059673,1000036369
07.02.2020,ADULT SOCIAL CARE,THE CAMDEN SOCIETY (SOCIAL CARE),"3,114.00",LD LTS 18-64,DAYCARE,2103059674,1000036369
07.02.2020,ADULT SOCIAL CARE,THE CAMDEN SOCIETY (SOCIAL CARE),"3,160.00",LD LTS 18-64,DAYCARE,2103059627,1000036369
07.02.2020,ADULT SOCIAL CARE,THE CAMDEN SOCIETY (SOCIAL CARE),"3,160.00",LD LTS 18-64,DAYCARE,2103059633,1000036369
07.02.2020,ADULT SOCIAL CARE,THE CAMDEN SOCIETY (SOCIAL CARE),"3,160.00",LD LTS 18-64,DAYCARE,2103059635,1000036369
07.02.2020,ADULT SOCIAL CARE,THE CAMDEN SOCIETY (SOCIAL CARE),"3,160.00",LD LTS 18-64,DAYCARE,2103059642,1000036369
07.02.2020,ADULT SOCIAL CARE,THE CAMDEN SOCIETY (SOCIAL CARE),"3,160.00",LD LTS 18-64,DAYCARE,2103059646,1000036369
07.02.2020,ADULT SOCIAL CARE,THE CAMDEN SOCIETY (SOCIAL CARE),"3,160.00",LD LTS 18-64,DAYCARE,2103059660,1000036369
07.02.2020,ADULT SOCIAL CARE,THE CAMDEN SOCIETY (SOCIAL CARE),"3,160.00",LD LTS 18-64,DAYCARE,2103059668,1000036369
07.02.2020,ADULT SOCIAL CARE,THE CAMDEN SOCIETY (SOCIAL CARE),"3,160.00",LD LTS 18-64,DAYCARE,2103059670,1000036369
07.02.2020,ADULT SOCIAL CARE,THE CAMDEN SOCIETY (SOCIAL CARE),"3,160.00",LD LTS 18-64,DAYCARE,2103059680,1000036369
07.02.2020,ADULT SOCIAL CARE,THE CAMDEN SOCIETY (SOCIAL CARE),"3,160.00",LD LTS 18-64,DAYCARE,2103059681,1000036369
07.02.2020,ADULT SOCIAL CARE,THE CAMDEN SOCIETY (SOCIAL CARE),"3,160.00",LD LTS 18-64,DAYCARE,2103059685,1000036369
07.02.2020,ADULT SOCIAL CARE,THE CAMDEN SOCIETY (SOCIAL CARE),"3,160.00",LD LTS 18-64,DAYCARE,2103059690,1000036369
07.02.2020,ADULT SOCIAL CARE,THE CAMDEN SOCIETY (SOCIAL CARE),"3,160.00",LD LTS 18-64,DAYCARE,2103059692,1000036369
07.02.2020,ADULT SOCIAL CARE,THE CAMDEN SOCIETY (SOCIAL CARE),"3,160.00",LD LTS 18-64,DAYCARE,2103059693,1000036369
07.02.2020,ADULT SOCIAL CARE,THE CAMDEN SOCIETY (SOCIAL CARE),"3,609.00",LD LTS 18-64,DAYCARE,2103059661,1000036369
07.02.2020,ADULT SOCIAL CARE,THE CAMDEN SOCIETY (SOCIAL CARE),"3,950.00",LD LTS 18-64,DAYCARE,2103059634,1000036369
07.02.2020,ADULT SOCIAL CARE,THE CAMDEN SOCIETY (SOCIAL CARE),"3,950.00",LD LTS 18-64,DAYCARE,2103059645,1000036369
07.02.2020,ADULT SOCIAL CARE,THE CAMDEN SOCIETY (SOCIAL CARE),"3,950.00",LD LTS 18-64,DAYCARE,2103059652,1000036369
07.02.2020,ADULT SOCIAL CARE,THE CAMDEN SOCIETY (SOCIAL CARE),"3,950.00",LD LTS 18-64,DAYCARE,2103059691,1000036369
07.02.2020,ADULT SOCIAL CARE,SEAP,455,LD LTS 18-64,EXTERNAL AGENCIES AND BODIES,2103059764,1000055727
07.02.2020,ADULT SOCIAL CARE,CONTACT PROFESSIONALS,465,LD LTS 18-64,SUPPORTED LIVING,2103059765,1000057263
07.02.2020,ADULT SOCIAL CARE,DARETHEALTHCARE UK LTD,496.44,LD LTS 18-64,SUPPORTED LIVING,2103059762,1000059149
07.02.2020,ADULT SOCIAL CARE,CONTACT PROFESSIONALS,266,SPECIALIST CARE,SECTION 17 PAYMENTS TO AGENCIES/CARERS,2103059719,1000057263
07.02.2020,ADULT SOCIAL CARE,CONTACT PROFESSIONALS,266,SPECIALIST CARE,SECTION 17 PAYMENTS TO AGENCIES/CARERS,2103059740,1000057263
07.02.2020,ADULT SOCIAL CARE,REDACTED PERSONAL DATA,"1,197.00",SUB LTS 18-64,DAYCARE,REDACTED,REDACTED
07.02.2020,ASSET MANAGEMENT,BELL PHILLIPS ARCHITECTS LTD,"8,600.00",DESIGN & DELIVERY,PROFESSIONAL FEES,5902401340,1000069307
07.02.2020,CENTRAL FUNCTIONS,BRESLIN CONSTRUCTION LTD,"3,450.00",COMMERCIAL PROPERTIES,BUILDING R&M,2103059958,3000001948
07.02.2020,CENTRAL FUNCTIONS,JJW CONTRACTORS LTD,303.02,COMMERCIAL PROPERTIES,BUILDING R&M,2103059960,3000002060
07.02.2020,CENTRAL FUNCTIONS,EDF ENERGY PLC,402.1,LEDBURY ESTATE,ELECTRICITY,5902402401,1008746
07.02.2020,CENTRAL FUNCTIONS,HERITAGE SURVEYS LTD,932,TECHNICAL SUPPORT,PROFESSIONAL FEES,5902402404,1000080199
07.02.2020,CHIEF EXECUTIVE,BRESLIN CONSTRUCTION LTD,"15,920.00",CAPITAL PS (REGEN),CONSTRUCTION FEES  - EXTERNAL,2103057523,3000001948
07.02.2020,CHIEF EXECUTIVE'S OFFICE,THAMES REACH,"26,976.55",CHIEF EXECUTIVE'S OFFICE,EXTERNAL AGENCIES AND BODIES,5902401305,1723415
07.02.2020,CHILDREN AND ADULT,FAITHFUL & GOULD,376.8,CAPITAL PS (EDUCATION),CONSTRUCTION FEES,5902402355,1000061390
07.02.2020,CHILDREN AND ADULT,FAITHFUL & GOULD,"7,780.00",CAPITAL PS (EDUCATION),CONSTRUCTION FEES,5902402358,1000061390
07.02.2020,CHILDREN AND ADULT,REDACTED PERSONAL DATA,330,CAPITAL PS (EDUCATION),FIT-OUT,REDACTED,REDACTED
07.02.2020,CHILDREN AND ADULT,ROTHERHITHE PRIMARY SCHOOL,"3,822.00",CAPITAL PS (EDUCATION),CONSTRUCTION FEES  - EXTERNAL,5902402307,5001000058
07.02.2020,CHILDREN AND ADULT,POWER ON CONNECTIONS LTD,344.6,CAPITAL PS (SOC SERV),UTILITIES INSTALLATION,5902402430,1000083135
07.02.2020,CHILDREN AND ADULT,POWER ON CONNECTIONS LTD,"22,899.40",CAPITAL PS (SOC SERV),UTILITIES INSTALLATION,5902402431,1000083135
07.02.2020,CHILDREN'S SERVICES,ISABELLE GRAVENSTEIN T/A REVIVAL,"1,160.00",CENTRAL SUPPORT,MEDICAL / HEALTH & SAFETY SERVICES,5902402208,1000027424
07.02.2020,CHILDREN'S SERVICES,WALWORTH GARDEN FARM,"1,000.00",COMMUNITY LEARNING,GRANTS,5902402035,1000042204
07.02.2020,CHILDREN'S SERVICES,OPTIMUM FOCUS COMPANY LTD,"1,825.13",FAMILY GROUP CONFERENCES,CAB FARES,5902402412,1000081322
07.02.2020,CHILDREN'S SERVICES,NATIONAL GOVERNORS ASSOCIATION,299,GOVERNOR SUPPORT,BOOKS & PUBLICATIONS,5902402361,1000040468
07.02.2020,CHILDREN'S SERVICES,MIME CONSULTING LTD,"7,333.33",MANAGEMENT AND SUPPORT,PROFESSIONAL FEES,5902402031,1000057079
07.02.2020,CHILDREN'S SERVICES,GREENSWARD ACADEMY,600,PUPIL PREMIUM CURRENT YEAR,SCHOOLS CAPITATION,5902402166,1000083863
07.02.2020,CHILDREN'S SERVICES,SOUTHFIELDS ACADEMY,529,PUPIL PREMIUM CURRENT YEAR,SCHOOLS CAPITATION,5902402145,1000083864
07.02.2020,CHILDREN'S SERVICES,CHERRY ORCHARD PRIMARY SCHOOL,"1,500.00",PUPIL PREMIUM CURRENT YEAR,SCHOOLS CAPITATION,5902402131,1000073857
07.02.2020,CHILDREN'S SERVICES,NATIONAL OFFENDER MANAGEMENT,612,REMAND - YDA STC & SCH,RESIDENTIAL CARE,5902402214,1000075478
07.02.2020,CHILDREN'S SERVICES,NATIONAL OFFENDER MANAGEMENT,"7,440.00",REMAND - YDA STC & SCH,RESIDENTIAL CARE,5902402216,1000075478
07.02.2020,CHILDREN'S SERVICES,NATIONAL OFFENDER MANAGEMENT,"16,524.00",REMAND - YDA STC & SCH,RESIDENTIAL CARE,5902402213,1000075478
07.02.2020,CHILDREN'S SERVICES,NATIONAL OFFENDER MANAGEMENT,"18,972.00",REMAND - YDA STC & SCH,RESIDENTIAL CARE,5902402210,1000075478
07.02.2020,CHILDREN'S SERVICES,NATIONAL OFFENDER MANAGEMENT,"18,972.00",REMAND - YDA STC & SCH,RESIDENTIAL CARE,5902402211,1000075478
07.02.2020,CHILDREN'S SERVICES,NATIONAL OFFENDER MANAGEMENT,480,REMAND - YDA YOI,RESIDENTIAL CARE,5902402219,1000075478
07.02.2020,CHILDREN'S SERVICES,NATIONAL OFFENDER MANAGEMENT,"5,040.00",REMAND - YDA YOI,RESIDENTIAL CARE,5902402218,1000075478
07.02.2020,CHILDREN'S SERVICES,REMARK LIVING,"2,016.00",SCH TRANS - CONTRACT COST,AGENCY STAFF,5902402279,1000081741
07.02.2020,CHILDREN'S SERVICES,BACONS COLLEGE,"2,122.45",SEN - ACADEMY AND FREE SCHOOLS,STATEMENTED FEES,2103059804,1693125
07.02.2020,CHILDREN'S SERVICES,BACONS COLLEGE,"2,673.47",SEN - ACADEMY AND FREE SCHOOLS,STATEMENTED FEES,2103059829,1693125
07.02.2020,CHILDREN'S SERVICES,BACONS COLLEGE,"2,673.47",SEN - ACADEMY AND FREE SCHOOLS,STATEMENTED FEES,2103059848,1693125
07.02.2020,CHILDREN'S SERVICES,BACONS COLLEGE,"5,346.94",SEN - ACADEMY AND FREE SCHOOLS,STATEMENTED FEES,2103059834,1693125
07.02.2020,CHILDREN'S SERVICES,BACONS COLLEGE,"5,346.94",SEN - ACADEMY AND FREE SCHOOLS,STATEMENTED FEES,2103059835,1693125
07.02.2020,CHILDREN'S SERVICES,BACONS COLLEGE,"8,498.29",SEN - ACADEMY AND FREE SCHOOLS,STATEMENTED FEES,2103059799,1693125
07.02.2020,CHILDREN'S SERVICES,BACONS COLLEGE,"8,498.29",SEN - ACADEMY AND FREE SCHOOLS,STATEMENTED FEES,2103059828,1693125
07.02.2020,CHILDREN'S SERVICES,BACONS COLLEGE,"8,498.29",SEN - ACADEMY AND FREE SCHOOLS,STATEMENTED FEES,2103059830,1693125
07.02.2020,CHILDREN'S SERVICES,BACONS COLLEGE,"8,498.29",SEN - ACADEMY AND FREE SCHOOLS,STATEMENTED FEES,2103059831,1693125
07.02.2020,CHILDREN'S SERVICES,BACONS COLLEGE,"8,498.29",SEN - ACADEMY AND FREE SCHOOLS,STATEMENTED FEES,2103059847,1693125
07.02.2020,CHILDREN'S SERVICES,BACONS COLLEGE,"10,109.06",SEN - ACADEMY AND FREE SCHOOLS,STATEMENTED FEES,2103059827,1693125
07.02.2020,CHILDREN'S SERVICES,BACONS COLLEGE,"10,109.06",SEN - ACADEMY AND FREE SCHOOLS,STATEMENTED FEES,2103059832,1693125
07.02.2020,CHILDREN'S SERVICES,BACONS COLLEGE,"10,109.06",SEN - ACADEMY AND FREE SCHOOLS,STATEMENTED FEES,2103059833,1693125
07.02.2020,CHILDREN'S SERVICES,SACRED HEART CATHOLIC SCHOOL,"1,102.04",SEN - ACADEMY AND FREE SCHOOLS,STATEMENTED FEES,2103059824,1000071091
07.02.2020,CHILDREN'S SERVICES,SACRED HEART CATHOLIC SCHOOL,"2,659.77",SEN - ACADEMY AND FREE SCHOOLS,STATEMENTED FEES,2103059819,1000071091
07.02.2020,CHILDREN'S SERVICES,SACRED HEART CATHOLIC SCHOOL,"2,673.47",SEN - ACADEMY AND FREE SCHOOLS,STATEMENTED FEES,2103059810,1000071091
07.02.2020,CHILDREN'S SERVICES,SACRED HEART CATHOLIC SCHOOL,"2,673.47",SEN - ACADEMY AND FREE SCHOOLS,STATEMENTED FEES,2103059813,1000071091
07.02.2020,CHILDREN'S SERVICES,SACRED HEART CATHOLIC SCHOOL,"2,673.47",SEN - ACADEMY AND FREE SCHOOLS,STATEMENTED FEES,2103059823,1000071091
07.02.2020,CHILDREN'S SERVICES,SACRED HEART CATHOLIC SCHOOL,"5,326.53",SEN - ACADEMY AND FREE SCHOOLS,STATEMENTED FEES,2103059837,1000071091
07.02.2020,CHILDREN'S SERVICES,SACRED HEART CATHOLIC SCHOOL,"5,346.94",SEN - ACADEMY AND FREE SCHOOLS,STATEMENTED FEES,2103059809,1000071091
07.02.2020,CHILDREN'S SERVICES,SACRED HEART CATHOLIC SCHOOL,"5,346.94",SEN - ACADEMY AND FREE SCHOOLS,STATEMENTED FEES,2103059814,1000071091
07.02.2020,CHILDREN'S SERVICES,SACRED HEART CATHOLIC SCHOOL,"5,510.20",SEN - ACADEMY AND FREE SCHOOLS,STATEMENTED FEES,2103059826,1000071091
07.02.2020,CHILDREN'S SERVICES,SACRED HEART CATHOLIC SCHOOL,"8,498.29",SEN - ACADEMY AND FREE SCHOOLS,STATEMENTED FEES,2103059800,1000071091
07.02.2020,CHILDREN'S SERVICES,SACRED HEART CATHOLIC SCHOOL,"8,498.29",SEN - ACADEMY AND FREE SCHOOLS,STATEMENTED FEES,2103059811,1000071091
07.02.2020,CHILDREN'S SERVICES,SACRED HEART CATHOLIC SCHOOL,"8,498.29",SEN - ACADEMY AND FREE SCHOOLS,STATEMENTED FEES,2103059815,1000071091
07.02.2020,CHILDREN'S SERVICES,SACRED HEART CATHOLIC SCHOOL,"8,498.29",SEN - ACADEMY AND FREE SCHOOLS,STATEMENTED FEES,2103059816,1000071091
07.02.2020,CHILDREN'S SERVICES,SACRED HEART CATHOLIC SCHOOL,"8,498.29",SEN - ACADEMY AND FREE SCHOOLS,STATEMENTED FEES,2103059817,1000071091
07.02.2020,CHILDREN'S SERVICES,SACRED HEART CATHOLIC SCHOOL,"8,498.29",SEN - ACADEMY AND FREE SCHOOLS,STATEMENTED FEES,2103059818,1000071091
07.02.2020,CHILDREN'S SERVICES,SACRED HEART CATHOLIC SCHOOL,"8,498.29",SEN - ACADEMY AND FREE SCHOOLS,STATEMENTED FEES,2103059820,1000071091
07.02.2020,CHILDREN'S SERVICES,SACRED HEART CATHOLIC SCHOOL,"8,498.29",SEN - ACADEMY AND FREE SCHOOLS,STATEMENTED FEES,2103059821,1000071091
07.02.2020,CHILDREN'S SERVICES,SACRED HEART CATHOLIC SCHOOL,"8,498.29",SEN - ACADEMY AND FREE SCHOOLS,STATEMENTED FEES,2103059822,1000071091
07.02.2020,CHILDREN'S SERVICES,SACRED HEART CATHOLIC SCHOOL,"8,498.29",SEN - ACADEMY AND FREE SCHOOLS,STATEMENTED FEES,2103059825,1000071091
07.02.2020,CHILDREN'S SERVICES,JOHN DONNE PRIMARY SCHOOL,"2,673.47",SEN - ACADEMY AND FREE SCHOOLS,STATEMENTED FEES,2103059845,1000073253
07.02.2020,CHILDREN'S SERVICES,JOHN DONNE PRIMARY SCHOOL,"5,346.94",SEN - ACADEMY AND FREE SCHOOLS,STATEMENTED FEES,2103059839,1000073253
07.02.2020,CHILDREN'S SERVICES,JOHN DONNE PRIMARY SCHOOL,"5,346.94",SEN - ACADEMY AND FREE SCHOOLS,STATEMENTED FEES,2103059841,1000073253
07.02.2020,CHILDREN'S SERVICES,JOHN DONNE PRIMARY SCHOOL,"5,346.94",SEN - ACADEMY AND FREE SCHOOLS,STATEMENTED FEES,2103059844,1000073253
07.02.2020,CHILDREN'S SERVICES,JOHN DONNE PRIMARY SCHOOL,"5,346.94",SEN - ACADEMY AND FREE SCHOOLS,STATEMENTED FEES,2103059846,1000073253
07.02.2020,CHILDREN'S SERVICES,JOHN DONNE PRIMARY SCHOOL,"8,020.41",SEN - ACADEMY AND FREE SCHOOLS,STATEMENTED FEES,2103059838,1000073253
07.02.2020,CHILDREN'S SERVICES,JOHN DONNE PRIMARY SCHOOL,"8,020.41",SEN - ACADEMY AND FREE SCHOOLS,STATEMENTED FEES,2103059840,1000073253
07.02.2020,CHILDREN'S SERVICES,JOHN DONNE PRIMARY SCHOOL,"8,020.41",SEN - ACADEMY AND FREE SCHOOLS,STATEMENTED FEES,2103059843,1000073253
07.02.2020,CHILDREN'S SERVICES,JOHN DONNE PRIMARY SCHOOL,"8,498.29",SEN - ACADEMY AND FREE SCHOOLS,STATEMENTED FEES,2103059842,1000073253
07.02.2020,CHILDREN'S SERVICES,SPA EDUCATION TRUST,"19,382.65",SEN - ACADEMY SPECIAL,STATEMENTED FEES,2103059851,1000081600
07.02.2020,CHILDREN'S SERVICES,THE COMPLETE WORKS INDEPENDENT SCHOOL,"-3,956.52",SEN - AEP,"SCHOOLS CAPITATION, OTHER GRANTS",2103059930,1000033256
07.02.2020,CHILDREN'S SERVICES,THE COMPLETE WORKS INDEPENDENT SCHOOL,"2,335.00",SEN - AEP,STATEMENTED FEES,2103059871,1000033256
07.02.2020,CHILDREN'S SERVICES,THE COMPLETE WORKS INDEPENDENT SCHOOL,"5,853.42",SEN - AEP,STATEMENTED FEES,2103059812,1000033256
07.02.2020,CHILDREN'S SERVICES,THE COMPLETE WORKS INDEPENDENT SCHOOL,"7,175.00",SEN - AEP,STATEMENTED FEES,2103059807,1000033256
07.02.2020,CHILDREN'S SERVICES,THE COMPLETE WORKS INDEPENDENT SCHOOL,"7,175.00",SEN - AEP,STATEMENTED FEES,2103059870,1000033256
07.02.2020,CHILDREN'S SERVICES,WEY ECADEMY LTD,"1,033.33",SEN - AEP,STATEMENTED FEES,2103059869,1000080290
07.02.2020,CHILDREN'S SERVICES,WEY ECADEMY LTD,"1,500.00",SEN - AEP,STATEMENTED FEES,2103059808,1000080290
07.02.2020,CHILDREN'S SERVICES,WEY ECADEMY LTD,"1,500.00",SEN - AEP,STATEMENTED FEES,2103059868,1000080290
07.02.2020,CHILDREN'S SERVICES,WEY ECADEMY LTD,"2,066.67",SEN - AEP,STATEMENTED FEES,2103059805,1000080290
07.02.2020,CHILDREN'S SERVICES,WEY ECADEMY LTD,"3,000.00",SEN - AEP,STATEMENTED FEES,2103059803,1000080290
07.02.2020,CHILDREN'S SERVICES,WEY ECADEMY LTD,"3,000.00",SEN - AEP,STATEMENTED FEES,2103059887,1000080290
07.02.2020,CHILDREN'S SERVICES,ADVANCEMENTS ABA LTD,300,SEN - AEP,STATEMENTED FEES,2103059891,1000081719
07.02.2020,CHILDREN'S SERVICES,ADVANCEMENTS ABA LTD,400,SEN - AEP,STATEMENTED FEES,2103059890,1000081719
07.02.2020,CHILDREN'S SERVICES,ADVANCEMENTS ABA LTD,500,SEN - AEP,STATEMENTED FEES,2103059889,1000081719
07.02.2020,CHILDREN'S SERVICES,ADVANCEMENTS ABA LTD,"1,100.00",SEN - AEP,STATEMENTED FEES,2103059888,1000081719
07.02.2020,CHILDREN'S SERVICES,KENT HOUSE SCHOOL PRIORY,"2,975.00",SEN - INDEPENDENT,STATEMENTED FEES,2103059861,1000082555
07.02.2020,CHILDREN'S SERVICES,KENT HOUSE SCHOOL PRIORY,"3,675.00",SEN - INDEPENDENT,STATEMENTED FEES,2103059862,1000082555
07.02.2020,CHILDREN'S SERVICES,BLOSSOM LOWER SCHOOL,"11,500.00",SEN - INDEPENDENT,STATEMENTED FEES,2103059849,1000040002
07.02.2020,CHILDREN'S SERVICES,PULSE HEALTHCARE LTD,600.6,SEN - OTHER,STATEMENTED FEES,2103059866,1000035063
07.02.2020,CHILDREN'S SERVICES,PULSE HEALTHCARE LTD,"1,001.00",SEN - OTHER,STATEMENTED FEES,2103059865,1000035063
07.02.2020,CHILDREN'S SERVICES,FLEET TUTORS,494,SEN - OTHER,STATEMENTED FEES,2103059859,1000044820
07.02.2020,CHILDREN'S SERVICES,FLEET TUTORS,573,SEN - OTHER,STATEMENTED FEES,2103059875,1000044820
07.02.2020,CHILDREN'S SERVICES,FLEET TUTORS,588,SEN - OTHER,STATEMENTED FEES,2103059876,1000044820
07.02.2020,CHILDREN'S SERVICES,FLEET TUTORS,599,SEN - OTHER,STATEMENTED FEES,2103059873,1000044820
07.02.2020,CHILDREN'S SERVICES,FLEET TUTORS,"1,338.00",SEN - OTHER,STATEMENTED FEES,2103059855,1000044820
07.02.2020,CHILDREN'S SERVICES,FLEET TUTORS,"1,482.00",SEN - OTHER,STATEMENTED FEES,2103059850,1000044820
07.02.2020,CHILDREN'S SERVICES,FLEET TUTORS,"1,482.00",SEN - OTHER,STATEMENTED FEES,2103059852,1000044820
07.02.2020,CHILDREN'S SERVICES,FLEET TUTORS,"1,482.00",SEN - OTHER,STATEMENTED FEES,2103059854,1000044820
07.02.2020,CHILDREN'S SERVICES,FLEET TUTORS,"1,829.00",SEN - OTHER,STATEMENTED FEES,2103059863,1000044820
07.02.2020,CHILDREN'S SERVICES,FLEET TUTORS,"1,858.00",SEN - OTHER,STATEMENTED FEES,2103059860,1000044820
07.02.2020,CHILDREN'S SERVICES,FLEET TUTORS,"2,088.00",SEN - OTHER,STATEMENTED FEES,2103059857,1000044820
07.02.2020,CHILDREN'S SERVICES,FLEET TUTORS,"2,242.00",SEN - OTHER,STATEMENTED FEES,2103059858,1000044820
07.02.2020,CHILDREN'S SERVICES,FLEET TUTORS,"2,577.00",SEN - OTHER,STATEMENTED FEES,2103059856,1000044820
07.02.2020,CHILDREN'S SERVICES,FLEET TUTORS,"2,718.00",SEN - OTHER,STATEMENTED FEES,2103059872,1000044820
07.02.2020,CHILDREN'S SERVICES,FLEET TUTORS,"2,976.00",SEN - OTHER,STATEMENTED FEES,2103059874,1000044820
07.02.2020,CHILDREN'S SERVICES,FLEET TUTORS,"3,162.00",SEN - OTHER,STATEMENTED FEES,2103059853,1000044820
07.02.2020,CHILDREN'S SERVICES,BARNARDOS SERVICES LTD,"28,034.00",SEN - OTHER,STATEMENTED FEES,2103059836,1000063730
07.02.2020,CHILDREN'S SERVICES,PECULIAR CARE HOMES LTD,"3,590.00",SEN - OTHER,STATEMENTED FEES,2103059877,1000076991
07.02.2020,CHILDREN'S SERVICES,MP HABILITATION SERVICES LTD,998,SEN - OTHER,STATEMENTED FEES,2103059864,1000082223
07.02.2020,CHILDREN'S SERVICES,PARAYHOUSE SCHOOL,"6,216.00",SEN- NON MAINTAINED SCHOOLS,STATEMENTED FEES,2103059806,1000011369
07.02.2020,CHILDREN'S SERVICES,PARAYHOUSE SCHOOL,"6,216.00",SEN- NON MAINTAINED SCHOOLS,STATEMENTED FEES,2103059878,1000011369
07.02.2020,CHILDREN'S SERVICES,PARAYHOUSE SCHOOL,"6,216.00",SEN- NON MAINTAINED SCHOOLS,STATEMENTED FEES,2103059879,1000011369
07.02.2020,CHILDREN'S SERVICES,PARAYHOUSE SCHOOL,"6,216.00",SEN- NON MAINTAINED SCHOOLS,STATEMENTED FEES,2103059880,1000011369
07.02.2020,CHILDREN'S SERVICES,PARAYHOUSE SCHOOL,"6,216.00",SEN- NON MAINTAINED SCHOOLS,STATEMENTED FEES,2103059881,1000011369
07.02.2020,CHILDREN'S SERVICES,PARAYHOUSE SCHOOL,"6,216.00",SEN- NON MAINTAINED SCHOOLS,STATEMENTED FEES,2103059882,1000011369
07.02.2020,CHILDREN'S SERVICES,PARAYHOUSE SCHOOL,"6,216.00",SEN- NON MAINTAINED SCHOOLS,STATEMENTED FEES,2103059883,1000011369
07.02.2020,CHILDREN'S SERVICES,PARAYHOUSE SCHOOL,"6,216.00",SEN- NON MAINTAINED SCHOOLS,STATEMENTED FEES,2103059884,1000011369
07.02.2020,CHILDREN'S SERVICES,PARAYHOUSE SCHOOL,"6,216.00",SEN- NON MAINTAINED SCHOOLS,STATEMENTED FEES,2103059885,1000011369
07.02.2020,CHILDREN'S SERVICES,PARAYHOUSE SCHOOL,"6,216.00",SEN- NON MAINTAINED SCHOOLS,STATEMENTED FEES,2103059886,1000011369
07.02.2020,CHILDREN'S SERVICES,SOCIETE GENERALE EQUIPMENT FINANCE LTD,295.02,THOMAS CALTON CENTRE,TELEPHONES (LAND LINES),5902402271,1000058395
07.02.2020,CHILDREN'S SERVICES,TUKE SCHOOL,"5,333.34",TUKE SCHOOL,STATEMENTED FEES,2103059801,5001000097
07.02.2020,CHILDREN'S SERVICES,TUKE SCHOOL,"5,567.00",TUKE SCHOOL,STATEMENTED FEES,2103059802,5001000097
07.02.2020,CHILDREN'S SERVICES,CONNEXIONS CUISINE,256.3,YOS SUPPORT,REFRESHMENTS FOR MEETINGS,5902402209,11317153
07.02.2020,COMMISSIONING & CENTRAL,RIVERSIDE,"62,259.24",SUPPORTING PEOPLE,EXTERNAL AGENCIES AND BODIES,5902402365,11134939
07.02.2020,COMMUNITIES PROJECTS,CHANGE GROW LIVE SERVICES LTD,"150,342.35",ADULT SM SERVICE,MEDICAL / HEALTH & SAFETY SERVICES,5902402267,1000082721
07.02.2020,COMMUNITIES PROJECTS,HUNTERS CONTRACTS LTD,418,HEAD OF COMM ENGAGE,FURNITURE PURCHASE & REPAIR,5902402291,1000065904
07.02.2020,COMMUNITIES PROJECTS,HUNTERS CONTRACTS LTD,"4,170.00",HEAD OF COMM ENGAGE,FURNITURE PURCHASE & REPAIR,5902402291,1000065904
07.02.2020,COMMUNITIES PROJECTS,HUNTERS CONTRACTS LTD,"4,200.00",HEAD OF COMM ENGAGE,FURNITURE PURCHASE & REPAIR,5902402291,1000065904
07.02.2020,COMMUNITIES PROJECTS,TURNING POINT,"1,349.56",NO RECOURSE TO PUBLIC FUNDS,ACCOMMODATION CHARGES,5902402285,11321523
07.02.2020,COMMUNITIES PROJECTS,HOMELY HOUSING LETS LTD,"25,789.06",NO RECOURSE TO PUBLIC FUNDS,ACCOMMODATION CHARGES,5902402221,1000050013
07.02.2020,COMMUNITIES PROJECTS,VENTURE HOUSING (LONDON) LTD,"4,045.50",NO RECOURSE TO PUBLIC FUNDS,ACCOMMODATION CHARGES,5902402320,1000056686
07.02.2020,COMMUNITIES PROJECTS,LIVING ACCOMODATION LTD,"6,406.00",NO RECOURSE TO PUBLIC FUNDS,ACCOMMODATION CHARGES,5902402227,1000063985
07.02.2020,COMMUNITIES PROJECTS,K3 PROPERTY MANAGEMENT LTD,"4,433.00",NO RECOURSE TO PUBLIC FUNDS,ACCOMMODATION CHARGES,5902402120,1000068219
07.02.2020,COMMUNITIES PROJECTS,RS REAL ESTATE LTD,"10,719.00",NO RECOURSE TO PUBLIC FUNDS,ACCOMMODATION CHARGES,5902402317,1000072485
07.02.2020,COMMUNITIES PROJECTS,NORBURY PROPERTY SERVICES (LONDON) LTD,"4,712.00",NO RECOURSE TO PUBLIC FUNDS,ACCOMMODATION CHARGES,5902402363,1000075566
07.02.2020,COMMUNITIES PROJECTS,GOLDSTONE ESTATES LTD,"1,953.00",NO RECOURSE TO PUBLIC FUNDS,ACCOMMODATION CHARGES,5902402311,1000076548
07.02.2020,COMMUNITIES PROJECTS,SITTARA LTD,"3,720.00",NO RECOURSE TO PUBLIC FUNDS,ACCOMMODATION CHARGES,5902402225,1000080857
07.02.2020,COMMUNITIES PROJECTS,ZFA ACCOMMODATION LTD,"8,777.50",NO RECOURSE TO PUBLIC FUNDS,ACCOMMODATION CHARGES,5902402322,1000082620
07.02.2020,COMMUNITIES PROJECTS,DARETHEALTHCARE UK LTD,"1,396.72",NO RECOURSE TO PUBLIC FUNDS,HOMECARE - C&V,2103059761,1000059149
07.02.2020,COMMUNITIES PROJECTS,ALLPAY LTD,281.11,NO RECOURSE TO PUBLIC FUNDS,PROFESSIONAL FEES,5902402382,1000043001
07.02.2020,COMMUNITIES PROJECTS,MORRISON SPOWART SOLICITORS,"8,700.08",NO RECOURSE TO PUBLIC FUNDS,LEGAL FEES & COURT COSTS,5902402457,1000053327
07.02.2020,CUSTOMER EXPERIENCE HGF,VP-AV LTD,857.39,CORONER'S,COMMS & COMPUTING CONTRACT CHARGES,5902402386,1000003888
07.02.2020,CUSTOMER EXPERIENCE HGF,DIGNITY FUNERALS LTD,"18,135.00",CORONER'S,OTHER CONTRACTORS,5902402314,1000041373
07.02.2020,CUSTOMER EXPERIENCE HGF,IMPERIAL COLLEGE PROJECTS LTD,280,CORONER'S,PROFESSIONAL FEES,5902402381,1000080106
07.02.2020,CUSTOMER EXPERIENCE HGF,IMPERIAL COLLEGE PROJECTS LTD,336,CORONER'S,PROFESSIONAL FEES,5902402392,1000080106
07.02.2020,CUSTOMER EXPERIENCE HGF,IMPERIAL COLLEGE PROJECTS LTD,344,CORONER'S,PROFESSIONAL FEES,5902402379,1000080106
07.02.2020,CUSTOMER EXPERIENCE HGF,IMPERIAL COLLEGE PROJECTS LTD,408,CORONER'S,PROFESSIONAL FEES,5902402394,1000080106
07.02.2020,CUSTOMER EXPERIENCE HGF,IMPERIAL COLLEGE PROJECTS LTD,428,CORONER'S,PROFESSIONAL FEES,5902402364,1000080106
07.02.2020,CUSTOMER EXPERIENCE HGF,IMPERIAL COLLEGE PROJECTS LTD,432,CORONER'S,PROFESSIONAL FEES,5902402393,1000080106
07.02.2020,CUSTOMER EXPERIENCE HGF,IMPERIAL COLLEGE PROJECTS LTD,548,CORONER'S,PROFESSIONAL FEES,5902402375,1000080106
07.02.2020,CUSTOMER EXPERIENCE HGF,IMPERIAL COLLEGE PROJECTS LTD,576,CORONER'S,PROFESSIONAL FEES,5902402374,1000080106
07.02.2020,CUSTOMER EXPERIENCE HGF,CARIDON LANDLORD SOLUTIONS LTD,"1,299.06",HOMELESS PROJECTS,GRANTS,5902402432,1000080555
07.02.2020,CUSTOMER EXPERIENCE HGF,CHOICELET LTD,"1,300.00",HOMELESS PROJECTS,GRANTS,5902401378,1000081073
07.02.2020,CUSTOMER EXPERIENCE HGF,CHOICELET LTD,"1,300.00",HOMELESS PROJECTS,GRANTS,5902401385,1000081073
07.02.2020,CUSTOMER EXPERIENCE HGF,NOWMEDICAL LTD,"4,350.00",HOUSING OPTIONS,PROFESSIONAL FEES,5902402415,1000068185
07.02.2020,CUSTOMER EXPERIENCE HGF,EASYMOVE EA LIMITED,"3,028.70",NIGHTLY TA (NSC),EXTERNAL AGENCIES AND BODIES,5902402328,1000066859
07.02.2020,CUSTOMER EXPERIENCE HGF,RS REAL ESTATE LTD,"19,633.50",NIGHTLY TA (NSC),EXTERNAL AGENCIES AND BODIES,5902402239,1000072485
07.02.2020,CUSTOMER EXPERIENCE HGF,DENHAN INTERNATIONAL LIMITED,"18,702.30",NIGHTLY TA (NSC),EXTERNAL AGENCIES AND BODIES,5902402305,1000075567
07.02.2020,CUSTOMER EXPERIENCE HGF,PROPERTYPLACEBOOK LTD,"1,435.00",NIGHTLY TA (NSC),EXTERNAL AGENCIES AND BODIES,5902402438,1000077817
07.02.2020,CUSTOMER EXPERIENCE HGF,APEX HOUSING SOLUTIONS LTD,"42,070.78",NIGHTLY TA (NSC),EXTERNAL AGENCIES AND BODIES,5902402368,1000079786
07.02.2020,CUSTOMER EXPERIENCE HGF,BERNARD & WELLS LTD,"1,195.81",RAPID REHOUSING,GRANTS,5902402283,1000076235
07.02.2020,CUSTOMER EXPERIENCE HGF,BERNARD & WELLS LTD,"1,515.57",RAPID REHOUSING,GRANTS,5902402283,1000076235
07.02.2020,CUSTOMER EXPERIENCE HGF,BERNARD & WELLS LTD,"1,515.57",RAPID REHOUSING,GRANTS,5902402283,1000076235
07.02.2020,CUSTOMER EXPERIENCE HGF,TFL TELESALES / OYSTER FULFILMENT,542.5,RAPID REHOUSING,SPECIFIC GOV'T ADMIN GRANT,5902400926,1000059727
07.02.2020,DIRECTOR'S OFFICE,DARENACE LTD,475,FINANCE DIRECTOR,PROFESSIONAL FEES,5902402376,1000082184
07.02.2020,ENVIRONMENT AND LEISURE,R G WEBBER LTD,"4,480.00",CAPITAL PS (LEISURE),CONSTRUCTION FEES  - EXTERNAL,2103059617,4013944
07.02.2020,ENVIRONMENT AND LEISURE,THE GREEN INFRASTRUCTURE CONSULTANCY LTD,"5,000.00",CAPITAL PS (LEISURE),CONSTRUCTION SITE COSTS,5902400865,1000071168
07.02.2020,ENVIRONMENT DIRECTORATE,SCOT GROUP LIMITED,256.62,COMMERCIAL VEH CTRL A/C,HIRED VEHICLES,5902402462,1709512
07.02.2020,ENVIRONMENT DIRECTORATE,SCOT GROUP LIMITED,335.24,COMMERCIAL VEH CTRL A/C,HIRED VEHICLES,5902402460,1709512
07.02.2020,ENVIRONMENT DIRECTORATE,PACE ACCIDENT REPAIRS CENTRE LTD,380,COMMERCIAL VEH CTRL A/C,HIRED VEHICLES,5902402441,1000069899
07.02.2020,ENVIRONMENT DIRECTORATE,PACE ACCIDENT REPAIRS CENTRE LTD,380,COMMERCIAL VEH CTRL A/C,HIRED VEHICLES,5902402442,1000069899
07.02.2020,ENVIRONMENT DIRECTORATE,PACE ACCIDENT REPAIRS CENTRE LTD,380,COMMERCIAL VEH CTRL A/C,HIRED VEHICLES,5902402443,1000069899
07.02.2020,ENVIRONMENT DIRECTORATE,RAINBOW CAR WASH,277,COMMERCIAL VEH CTRL A/C,VEHICLE REPAIRS & MAINTENANCE,5902402453,1000079913
07.02.2020,ENVIRONMENT DIRECTORATE,F H BRUNDLE,351,ENGINEERING CRAFTS,MATERIALS,5902402346,1082714
07.02.2020,ENVIRONMENT DIRECTORATE,F H BRUNDLE,423,ENGINEERING CRAFTS,MATERIALS,5902402344,1082714
07.02.2020,ENVIRONMENT DIRECTORATE,F H BRUNDLE,712.5,ENGINEERING CRAFTS,MATERIALS,5902402347,1082714
07.02.2020,ENVIRONMENT DIRECTORATE,PURPOSE POWDER COATINGS LTD,425,ENGINEERING CRAFTS,MATERIALS,5902402274,1000059450
07.02.2020,ENVIRONMENT DIRECTORATE,PURPOSE POWDER COATINGS LTD,425,ENGINEERING CRAFTS,MATERIALS,5902402282,1000059450
07.02.2020,ENVIRONMENT DIRECTORATE,LYTE LADDERS AND TOWERS LIMITED,"1,222.68",ENGINEERING CRAFTS,MATERIALS,5902402236,1000082472
07.02.2020,ENVIRONMENT DIRECTORATE,GREENHAM TRADING LTD,"3,484.08",ESTATE CLEANING-GENERAL,MATERIALS,5902402448,1000006610
07.02.2020,ENVIRONMENT DIRECTORATE,INSTITUTE OF LICENCE (EVENTS) LTD,370,HEALTH & SAFETY,TRAINING,5902402406,1000054694
07.02.2020,ENVIRONMENT DIRECTORATE,EURO TRAINING SERVICES LTD,300,MANAGEMENT TEAM,TRAINING,5902402465,1000072728
07.02.2020,ENVIRONMENT DIRECTORATE,CHERRY PICKER HIRE LTD,"1,710.00",NON HOUSING GROUNDS,EQUIPMENT PURCHASE & REPAIR,5902402308,1000077442
07.02.2020,ENVIRONMENT DIRECTORATE,KEYSOFT SOLUTIONS LTD,"3,637.00",PROJECT SUPPORT,SOFTWARE,5902402310,1000025779
07.02.2020,ENVIRONMENT DIRECTORATE,KEYSOFT SOLUTIONS LTD,"4,156.44",PROJECT SUPPORT,SOFTWARE,5902402310,1000025779
07.02.2020,ENVIRONMENT DIRECTORATE,BEW ELECTRICAL DISTRIBUTORS LTD,385,PUBLIC LIGHTING,MATERIALS,5902402302,1000045371
07.02.2020,ENVIRONMENT DIRECTORATE,KENT COUNTY COUNCIL - LASER,"1,617.34",SANDGATE STREET,GAS,5902402338,1000012926
07.02.2020,ENVIRONMENT DIRECTORATE,CRATUS BUILDING SERVICES LIMITED,"11,245.38",SBS - HOLDING ACCOUNT,OTHER CONTRACTORS,2103059954,3000001055
07.02.2020,ENVIRONMENT DIRECTORATE,SIGN POST SOLUTIONS LTD,368,SIGN SHOP,MATERIALS,5902402349,1064841
07.02.2020,ENVIRONMENT DIRECTORATE,SIGN POST SOLUTIONS LTD,"5,282.00",SIGN SHOP,MATERIALS,5902402349,1064841
07.02.2020,ENVIRONMENT DIRECTORATE,ALL PRINT SUPPLIES LTD,"2,134.72",SIGN SHOP,MATERIALS,5902402343,1927973
07.02.2020,ENVIRONMENT DIRECTORATE,RIGHTON & BLACKBURNS LTD,606,SIGN SHOP,MATERIALS,5902402340,1000041264
07.02.2020,ENVIRONMENT DIRECTORATE,RIGHTON & BLACKBURNS LTD,"1,219.68",SIGN SHOP,MATERIALS,5902402341,1000041264
07.02.2020,ENVIRONMENT DIRECTORATE,RIGHTON & BLACKBURNS LTD,"1,482.00",SIGN SHOP,MATERIALS,5902402340,1000041264
07.02.2020,ENVIRONMENT DIRECTORATE,RIGHTON & BLACKBURNS LTD,"1,590.00",SIGN SHOP,MATERIALS,5902402340,1000041264
07.02.2020,EXCHEQUER SERVICES,ZALARIS CONSULTING UK LTD,425,GM SAP,CONSULTANTS SERVICES,5902402342,1000062505
07.02.2020,HOUSING GENERAL FUND,SOUTH EAST BUILDING CONTRACTORS LTD,"5,400.00",CAPITAL PS (HOUSING GF),CAPITAL GRANTS,5902402433,1000049893
07.02.2020,HOUSING GENERAL FUND,DAVID MILES & PARTNERS LTD,"5,000.00",CAPITAL PS (REGEN),CONSTRUCTION,5902401677,1000001119
07.02.2020,HOUSING HRA,PRB ESTATES LTD,"9,029.42",CAPITAL PS (HRA),CONST'N MAIN CONTRACT - NON CERTIFICATED,2103059618,3000001691
07.02.2020,HOUSING HRA,CALFORD SEADEN LLP,"1,039.64",CAPITAL PS (HRA),CONSTRUCTION FEES  - EXTERNAL,5902402272,1061592
07.02.2020,HOUSING HRA,CALFORD SEADEN LLP,"1,734.37",CAPITAL PS (HRA),CONSTRUCTION FEES  - EXTERNAL,5902402321,1061592
07.02.2020,HOUSING HRA,CALFORD SEADEN LLP,"7,614.30",CAPITAL PS (HRA),CONSTRUCTION FEES  - EXTERNAL,5902402318,1061592
07.02.2020,HOUSING HRA,HAWORTH TOMPKINS LTD,"4,666.00",CAPITAL PS (HRA),CONSTRUCTION FEES  - EXTERNAL,5902402246,1000043607
07.02.2020,HOUSING HRA,HAWORTH TOMPKINS LTD,"4,667.00",CAPITAL PS (HRA),CONSTRUCTION FEES  - EXTERNAL,5902402242,1000043607
07.02.2020,HOUSING HRA,OVE ARUP & PARTNERS LTD,"19,302.00",CAPITAL PS (HRA),CONSTRUCTION FEES  - EXTERNAL,5902402258,1000066606
07.02.2020,HOUSING HRA,ENGIE REGENERATION (APOLLO) LTD,"294,816.14",CAPITAL PS (HRA),CONSTRUCTION MAIN CONTRACT -CERTIFICATED,2103059957,4000449
07.02.2020,HOUSING HRA,A & E ELKINS LTD,"16,127.44",CAPITAL PS (HRA),CONSTRUCTION MAIN CONTRACT -CERTIFICATED,2103059616,4012501
07.02.2020,HOUSING HRA,SALTASH ENTERPRISES LTD,"154,327.63",CAPITAL PS (HRA),CONSTRUCTION MAIN CONTRACT -CERTIFICATED,2103059956,4013605
07.02.2020,HOUSING HRA,POWER ON CONNECTIONS LTD,"1,033.80",CAPITAL PS (HRA),UTILITIES INSTALLATION,5902402430,1000083135
07.02.2020,HOUSING HRA,POWER ON CONNECTIONS LTD,"68,698.19",CAPITAL PS (HRA),UTILITIES INSTALLATION,5902402431,1000083135
07.02.2020,LEISURE DIRECTORATE,WESTMINSTER WASTE,639,CREMATORIUM,OTHER CONTRACTORS,5902402389,1000080933
07.02.2020,LEISURE DIRECTORATE,GRAFTON MERCHANTING GB LTD,926.53,DULWICH AREA TEAM,MATERIALS,5902402296,11296147
07.02.2020,LEISURE DIRECTORATE,WESTMINSTER HOUSE YOUTH CLUB,"7,741.00",GRANTS COMMISSIONING,GRANTS,5902401292,11088645
07.02.2020,LEISURE DIRECTORATE,COMBINED PRECISION COMPONENTS PLC,643.33,SDM BUDGET,MATERIALS,5902402416,1000021821
07.02.2020,LEISURE DIRECTORATE,CASTLE WATER LTD,866,SDM BUDGET,WATER,5902402409,1000078867
07.02.2020,LEISURE DIRECTORATE,TECHNICAL SURFACES,370,SOUTHWARK AREA TEAM,OTHER R&M,5902402293,1000011451
07.02.2020,LEISURE DIRECTORATE,TECHNICAL SURFACES,450,SOUTHWARK AREA TEAM,OTHER R&M,5902402289,1000011451
07.02.2020,MODERNISATION HGF,INCLUSIVE EMPLOYERS LTD,2920,CORPORATE TRAINING BUDGETS,TRAINING,5902400850,1000083490
07.02.2020,MODERNISATION HGF,DARREN NEWMAN EMPLOYMENT LAW LTD,2000,HR PAYROLL COSTS,TRAINING,5902402423,1000082194
07.02.2020,MODERNISATION HGF,WORKING ON WELLBEING LTD,"7,171.79",OPTIMA HEALTH,CONSULTANTS SERVICES,5902401098,1000077251
07.02.2020,MODERNISATION HGF,WORKING ON WELLBEING LTD,"30,574.46",OPTIMA HEALTH,CONSULTANTS SERVICES,5902401098,1000077251
07.02.2020,MODERNISATION HGF,KIER FACILITIES SERVICES LTD,"66,090.40",PLANNED FM SERVICES BY KIER,INTEGRATED FACILITIES MANAGEMENT CONTRACT,5902401407,1000040603
07.02.2020,NEW BUILD,CAMERON CONSULTING (UK) LTD,"3,250.00",DEVELOPMENT DELIVERY,PROFESSIONAL FEES,5902402387,1000064510
07.02.2020,NEW BUILD,URBANCANDA,"2,320.00",DEVELOPMENT DELIVERY,TRAINING,5902402371,1000036367
07.02.2020,NEW BUILD,CALFORD SEADEN LLP,"5,950.00",HOMEBUILDING CAPACITY FUND,CONSULTANTS SERVICES,5902401104,1061592
07.02.2020,NEW BUILD,MOTT MACDONALD LTD,"13,245.00",INVESTMENT STRATEGY TEAM,PROFESSIONAL FEES,5902402378,1000067305
07.02.2020,PUBLIC HEALTH,PSL PRINT MANAGEMENT LTD,825,HEALTH INTERVENTIONS,EXTERNAL AGENCIES AND BODIES,5902402413,1000072210
